Workbook

Sheet Data
B2: DATE | C2: EUR | D2: GBP | E2: USD
B3: 2005-01-01 | C3: 37.8409 | D3: 53.4967 | E3: 27.7487
B4: 2005-01-12 | C4: 36.7299 | D4: 52.5832 | E4: 27.9549
B5: 2005-01-13 | C5: 36.5953 | D5: 52.3698 | E5: 27.88
B6: 2005-01-14 | C6: 36.9414 | D6: 52.7257 | E6: 27.8677
B7: 2005-01-15 | C7: 36.6971 | D7: 52.3473 | E7: 27.9469
B8: 2005-01-18 | C8: 36.6924 | D8: 52.4126 | E8: 27.9668
B9: 2005-01-19 | C9: 36.6705 | D9: 52.2591 | E9: 28.1129
B10: 2005-01-20 | C10: 36.6495 | D10: 52.5162 | E10: 28.1573
B11: 2005-01-21 | C11: 36.6213 | D11: 52.7369 | E11: 28.1594
B12: 2005-01-22 | C12: 36.4744 | D12: 52.6084 | E12: 28.1569
B13: 2005-01-25 | C13: 36.6165 | D13: 52.6275 | E13: 28.0157
B14: 2005-01-26 | C14: 36.478 | D14: 52.5164 | E14: 27.9804
B15: 2005-01-27 | C15: 36.4901 | D15: 52.5193 | E15: 28.1017
B16: 2005-01-28 | C16: 36.6665 | D16: 52.7651 | E16: 28.0025
B17: 2005-01-29 | C17: 36.625 | D17: 52.9898 | E17: 28.0845
B18: 2005-02-01 | C18: 36.5899 | D18: 52.9745 | E18: 28.1136
B19: 2005-02-02 | C19: 36.4643 | D19: 52.6257 | E19: 27.9656
B20: 2005-02-03 | C20: 36.5606 | D20: 52.7029 | E20: 27.9665
B21: 2005-02-04 | C21: 36.4667 | D21: 52.7828 | E21: 28.0104
B22: 2005-02-05 | C22: 36.2831 | D22: 52.6338 | E22: 27.9833
B23: 2005-02-08 | C23: 36.1305 | D23: 52.6391 | E23: 28.1237
B24: 2005-02-09 | C24: 35.9781 | D24: 52.3267 | E24: 28.1872
B25: 2005-02-10 | C25: 35.9737 | D25: 52.2627 | E25: 28.133
B26: 2005-02-11 | C26: 36.0025 | D26: 52.2808 | E26: 28.0853
B27: 2005-02-12 | C27: 36.1302 | D27: 52.4381 | E27: 28.0688
B28: 2005-02-15 | C28: 36.2856 | D28: 52.5854 | E28: 28.0306
B29: 2005-02-16 | C29: 36.3428 | D29: 52.9031 | E29: 28.0207
B30: 2005-02-17 | C30: 36.4749 | D30: 52.993 | E30: 28.0016
B31: 2005-02-18 | C31: 36.5453 | D31: 52.816 | E31: 27.9998
B32: 2005-02-19 | C32: 36.5066 | D32: 52.8994 | E32: 27.9359
B33: 2005-02-22 | C33: 36.4907 | D33: 52.9229 | E33: 27.9365
B34: 2005-02-23 | C34: 36.6648 | D34: 53.0991 | E34: 27.8312
B35: 2005-02-25 | C35: 36.7205 | D35: 53.0068 | E35: 27.745
B36: 2005-02-26 | C36: 36.6281 | D36: 53.0202 | E36: 27.7738
B37: 2005-03-01 | C37: 36.72 | D37: 53.2491 | E37: 27.7007
B38: 2005-03-02 | C38: 36.5511 | D38: 53.1738 | E38: 27.7091
B39: 2005-03-03 | C39: 36.4713 | D39: 53.1211 | E39: 27.699
B40: 2005-03-04 | C40: 36.4078 | D40: 52.9898 | E40: 27.7245
B41: 2005-03-05 | C41: 36.3771 | D41: 52.9255 | E41: 27.7518
B42: 2005-03-06 | C42: 36.6487 | D42: 53.2035 | E42: 27.6698
B43: 2005-03-10 | C43: 36.7848 | D43: 53.1366 | E43: 27.5562
B44: 2005-03-11 | C44: 36.903 | D44: 52.9857 | E44: 27.4637
B45: 2005-03-12 | C45: 36.8772 | D45: 52.8331 | E45: 27.4629
B46: 2005-03-15 | C46: 36.8769 | D46: 52.83 | E46: 27.477
B47: 2005-03-16 | C47: 36.7269 | D47: 52.608 | E47: 27.4902
B48: 2005-03-17 | C48: 36.6648 | D48: 52.7102 | E48: 27.489
B49: 2005-03-18 | C49: 36.8198 | D49: 52.8599 | E49: 27.4611
B50: 2005-03-19 | C50: 36.7004 | D50: 52.7833 | E50: 27.4827
B51: 2005-03-22 | C51: 36.452 | D51: 52.7747 | E51: 27.5442
B52: 2005-03-23 | C52: 36.3291 | D52: 52.2959 | E52: 27.5764
B53: 2005-03-24 | C53: 36.1451 | D53: 52.1752 | E53: 27.6381
B54: 2005-03-25 | C54: 36.0255 | D54: 51.8765 | E54: 27.697
B55: 2005-03-26 | C55: 35.8888 | D55: 51.8033 | E55: 27.7112
B56: 2005-03-29 | C56: 35.9126 | D56: 51.8005 | E56: 27.8198
B57: 2005-03-30 | C57: 35.9942 | D57: 52.039 | E57: 27.8313
B58: 2005-03-31 | C58: 36.0564 | D58: 52.2982 | E58: 27.8256
B59: 2005-04-01 | C59: 36.0274 | D59: 52.2946 | E59: 27.8548
B60: 2005-04-02 | C60: 36.1532 | D60: 52.6433 | E60: 27.8831
B61: 2005-04-05 | C61: 35.948 | D61: 52.3488 | E61: 27.8926
B62: 2005-04-06 | C62: 35.8155 | D62: 52.4199 | E62: 27.9394
B63: 2005-04-07 | C63: 35.8988 | D63: 52.5033 | E63: 27.8739
B64: 2005-04-08 | C64: 35.9202 | D64: 52.4218 | E64: 27.8085
B65: 2005-04-09 | C65: 35.7435 | D65: 52.1196 | E65: 27.8789
B66: 2005-04-12 | C66: 35.9367 | D66: 52.3626 | E66: 27.7933
B67: 2005-04-13 | C67: 36.064 | D67: 52.5647 | E67: 27.765
B68: 2005-04-14 | C68: 35.9417 | D68: 52.63 | E68: 27.7907
B69: 2005-04-15 | C69: 35.8216 | D69: 52.5386 | E69: 27.8291
B70: 2005-04-16 | C70: 35.7215 | D70: 52.416 | E70: 27.9031
B71: 2005-04-19 | C71: 35.9296 | D71: 52.6173 | E71: 27.8222
B72: 2005-04-20 | C72: 36.1416 | D72: 52.8747 | E72: 27.7543
B73: 2005-04-21 | C73: 36.216 | D73: 53.1665 | E73: 27.7241
B74: 2005-04-22 | C74: 36.2801 | D74: 53.1705 | E74: 27.7074
B75: 2005-04-23 | C75: 36.1882 | D75: 52.9484 | E75: 27.7304
B76: 2005-04-26 | C76: 36.1618 | D76: 53.1147 | E76: 27.7463
B77: 2005-04-27 | C77: 36.089 | D77: 53.0828 | E77: 27.7586
B78: 2005-04-28 | C78: 35.9275 | D78: 52.8722 | E78: 27.8055
B79: 2005-04-29 | C79: 35.9237 | D79: 52.9392 | E79: 27.794
B80: 2005-04-30 | C80: 36.0072 | D80: 53.1873 | E80: 27.7726
B81: 2005-05-04 | C81: 35.7642 | D81: 52.6943 | E81: 27.8364
B82: 2005-05-05 | C82: 35.982 | D82: 52.8197 | E82: 27.7896
B83: 2005-05-06 | C83: 36.0087 | D83: 52.935 | E83: 27.7845
B84: 2005-05-07 | C84: 35.954 | D84: 52.803 | E84: 27.7852
B85: 2005-05-12 | C85: 35.8298 | D85: 52.3386 | E85: 27.816
B86: 2005-05-13 | C86: 35.6121 | D86: 52.1265 | E86: 27.8677
B87: 2005-05-14 | C87: 35.4045 | D87: 52.0609 | E87: 27.9237
B88: 2005-05-17 | C88: 35.2885 | D88: 51.6843 | E88: 28.0223
B89: 2005-05-18 | C89: 35.3578 | D89: 51.4621 | E89: 27.9929
B90: 2005-05-19 | C90: 35.3457 | D90: 51.3257 | E90: 28.0055
B91: 2005-05-20 | C91: 35.4459 | D91: 51.4619 | E91: 27.9608
B92: 2005-05-21 | C92: 35.3397 | D92: 51.376 | E92: 27.9719
B93: 2005-05-24 | C93: 35.2233 | D93: 51.3252 | E93: 28.0619
B94: 2005-05-25 | C94: 35.2848 | D94: 51.3475 | E94: 28.0327
B95: 2005-05-26 | C95: 35.2786 | D95: 51.3072 | E95: 28.0367
B96: 2005-05-27 | C96: 35.2229 | D96: 51.2641 | E96: 28.0638
B97: 2005-05-28 | C97: 35.1859 | D97: 51.195 | E97: 28.0813
B98: 2005-05-31 | C98: 35.1963 | D98: 51.2284 | E98: 28.0919
B99: 2005-06-01 | C99: 34.9134 | D99: 51.2042 | E99: 28.1946
B100: 2005-06-02 | C100: 34.8741 | D100: 51.5077 | E100: 28.2885
B101: 2005-06-03 | C101: 34.7197 | D101: 51.4808 | E101: 28.375
B102: 2005-06-04 | C102: 34.8004 | D102: 51.5509 | E102: 28.3761
B103: 2005-06-07 | C103: 34.8483 | D103: 51.61 | E103: 28.429
B104: 2005-06-08 | C104: 34.9199 | D104: 51.948 | E104: 28.4133
B105: 2005-06-09 | C105: 34.9429 | D105: 52.0796 | E105: 28.3766
B106: 2005-06-10 | C106: 34.7606 | D106: 51.9504 | E106: 28.4457
B107: 2005-06-11 | C107: 34.7925 | D107: 51.8044 | E107: 28.4671
B108: 2005-06-15 | C108: 34.6503 | D108: 51.5955 | E108: 28.5658
B109: 2005-06-16 | C109: 34.4744 | D109: 51.7631 | E109: 28.6237
B110: 2005-06-17 | C110: 34.5488 | D110: 52.0506 | E110: 28.6024
B111: 2005-06-18 | C111: 34.6153 | D111: 52.0259 | E111: 28.5841
B112: 2005-06-21 | C112: 34.8154 | D112: 52.0493 | E112: 28.4765
B113: 2005-06-22 | C113: 34.6593 | D113: 52.0661 | E113: 28.5497
B114: 2005-06-23 | C114: 34.7773 | D114: 52.2431 | E114: 28.5528
B115: 2005-06-24 | C115: 34.6694 | D115: 52.1215 | E115: 28.6193
B116: 2005-06-25 | C116: 34.5148 | D116: 52.1063 | E116: 28.6787
B117: 2005-06-28 | C117: 34.7107 | D117: 52.1674 | E117: 28.5802
B118: 2005-06-29 | C118: 34.6981 | D118: 52.1344 | E118: 28.584
B119: 2005-06-30 | C119: 34.5241 | D119: 52.0399 | E119: 28.6721
B120: 2005-07-01 | C120: 34.6258 | D120: 51.8199 | E120: 28.6282
B121: 2005-07-02 | C121: 34.5415 | D121: 51.1239 | E121: 28.6794
B122: 2005-07-05 | C122: 34.3561 | D122: 50.735 | E122: 28.8005
B123: 2005-07-06 | C123: 34.277 | D123: 50.6889 | E123: 28.8333
B124: 2005-07-07 | C124: 34.392 | D124: 50.7177 | E124: 28.8185
B125: 2005-07-08 | C125: 34.3839 | D125: 50.4802 | E125: 28.831
B126: 2005-07-09 | C126: 34.3655 | D126: 50.2174 | E126: 28.8374
B127: 2005-07-12 | C127: 34.4987 | D127: 50.0682 | E127: 28.7154
B128: 2005-07-13 | C128: 34.7844 | D128: 50.4052 | E128: 28.5938
B129: 2005-07-14 | C129: 34.8641 | D129: 50.6907 | E129: 28.5678
B130: 2005-07-15 | C130: 34.6165 | D130: 50.5816 | E130: 28.6679
B131: 2005-07-16 | C131: 34.7101 | D131: 50.4062 | E131: 28.6269
B132: 2005-07-19 | C132: 34.5992 | D132: 50.3261 | E132: 28.6726
B133: 2005-07-20 | C133: 34.4674 | D133: 50.0594 | E133: 28.7252
B134: 2005-07-21 | C134: 34.5899 | D134: 49.8218 | E134: 28.6744
B135: 2005-07-22 | C135: 34.7562 | D135: 49.829 | E135: 28.6012
B136: 2005-07-23 | C136: 34.8037 | D136: 50.1736 | E136: 28.5792
B137: 2005-07-26 | C137: 34.5483 | D137: 49.8399 | E137: 28.6898
B138: 2005-07-27 | C138: 34.5557 | D138: 50.0304 | E138: 28.6888
B139: 2005-07-28 | C139: 34.4621 | D139: 49.899 | E139: 28.7304
B140: 2005-07-29 | C140: 34.5844 | D140: 49.9865 | E140: 28.6817
B141: 2005-07-30 | C141: 34.716 | D141: 50.2872 | E141: 28.6341
B142: 2005-08-02 | C142: 34.8173 | D142: 50.3615 | E142: 28.595
B143: 2005-08-03 | C143: 34.8879 | D143: 50.6226 | E143: 28.5826
B144: 2005-08-04 | C144: 34.8769 | D144: 50.5776 | E144: 28.604
B145: 2005-08-05 | C145: 35.1168 | D145: 50.6271 | E145: 28.4854
B146: 2005-08-06 | C146: 35.1576 | D146: 50.5142 | E146: 28.4171
B147: 2005-08-09 | C147: 35.0695 | D147: 50.4616 | E147: 28.4355
B148: 2005-08-10 | C148: 35.1872 | D148: 50.739 | E148: 28.3791
B149: 2005-08-11 | C149: 35.1563 | D149: 50.8236 | E149: 28.3931
B150: 2005-08-12 | C150: 35.1925 | D150: 51.1868 | E150: 28.3788
B151: 2005-08-13 | C151: 35.3081 | D151: 51.2762 | E151: 28.3122
B152: 2005-08-16 | C152: 35.1704 | D152: 51.4613 | E152: 28.3815
B153: 2005-08-17 | C153: 35.1052 | D153: 51.399 | E153: 28.4161
B154: 2005-08-18 | C154: 35.0132 | D154: 51.3368 | E154: 28.473
B155: 2005-08-19 | C155: 34.9673 | D155: 51.4594 | E155: 28.4936
B156: 2005-08-20 | C156: 34.7722 | D156: 51.2603 | E156: 28.6003
B157: 2005-08-23 | C157: 34.8168 | D157: 51.4191 | E157: 28.5852
B158: 2005-08-24 | C158: 34.9074 | D158: 51.3689 | E158: 28.5494
B159: 2005-08-25 | C159: 34.7929 | D159: 51.2718 | E159: 28.5844
B160: 2005-08-26 | C160: 35.028 | D160: 51.4136 | E160: 28.4572
B161: 2005-08-27 | C161: 35.051 | D161: 51.3019 | E161: 28.4505
B162: 2005-08-30 | C162: 35.0654 | D162: 51.3682 | E162: 28.4368
B163: 2005-08-31 | C163: 34.8763 | D163: 51.1983 | E163: 28.545
B164: 2005-09-01 | C164: 34.879 | D164: 50.965 | E164: 28.5566
B165: 2005-09-02 | C165: 35.1128 | D165: 51.3314 | E165: 28.4637
B166: 2005-09-03 | C166: 35.3966 | D166: 51.9373 | E166: 28.3037
B167: 2005-09-06 | C167: 35.3994 | D167: 52.0812 | E167: 28.1977
B168: 2005-09-07 | C168: 35.2212 | D168: 51.9248 | E168: 28.2108
B169: 2005-09-08 | C169: 35.2773 | D169: 51.919 | E169: 28.2015
B170: 2005-09-09 | C170: 35.1451 | D170: 51.9264 | E170: 28.2562
B171: 2005-09-10 | C171: 35.1253 | D171: 51.9662 | E171: 28.2517
B172: 2005-09-13 | C172: 34.9665 | D172: 52.0372 | E172: 28.3566
B173: 2005-09-14 | C173: 34.8774 | D173: 51.693 | E173: 28.3856
B174: 2005-09-15 | C174: 34.7805 | D174: 51.7192 | E174: 28.316
B175: 2005-09-16 | C175: 34.648 | D175: 51.582 | E175: 28.3698
B176: 2005-09-17 | C176: 34.7782 | D176: 51.256 | E176: 28.3026
B177: 2005-09-20 | C177: 34.4913 | D177: 51.2418 | E177: 28.4582
B178: 2005-09-21 | C178: 34.5565 | D178: 51.2766 | E178: 28.4065
B179: 2005-09-22 | C179: 34.6222 | D179: 51.2451 | E179: 28.3812
B180: 2005-09-23 | C180: 34.6449 | D180: 51.2811 | E180: 28.3603
B181: 2005-09-24 | C181: 34.5022 | D181: 50.9047 | E181: 28.432
B182: 2005-09-27 | C182: 34.3412 | D182: 50.6554 | E182: 28.5463
B183: 2005-09-28 | C183: 34.2985 | D183: 50.5193 | E183: 28.5678
B184: 2005-09-29 | C184: 34.3381 | D184: 50.5326 | E184: 28.5366
B185: 2005-09-30 | C185: 34.3811 | D185: 50.3889 | E185: 28.4989
B186: 2005-10-01 | C186: 34.3074 | D186: 50.2526 | E186: 28.5348
B187: 2005-10-04 | C187: 34.2185 | D187: 50.322 | E187: 28.6132
B188: 2005-10-05 | C188: 34.1339 | D188: 50.3401 | E188: 28.643
B189: 2005-10-06 | C189: 34.1843 | D189: 50.4237 | E189: 28.6157
B190: 2005-10-07 | C190: 34.396 | D190: 50.5986 | E190: 28.5207
B191: 2005-10-08 | C191: 34.6245 | D191: 50.5266 | E191: 28.4577
B192: 2005-10-11 | C192: 34.5379 | D192: 50.12 | E192: 28.4708
B193: 2005-10-12 | C193: 34.3331 | D193: 49.9277 | E193: 28.5562
B194: 2005-10-13 | C194: 34.2412 | D194: 49.859 | E194: 28.625
B195: 2005-10-14 | C195: 34.2959 | D195: 49.9825 | E195: 28.599
B196: 2005-10-15 | C196: 34.3576 | D196: 50.1543 | E196: 28.5861
B197: 2005-10-18 | C197: 34.4746 | D197: 50.4138 | E197: 28.5291
B198: 2005-10-19 | C198: 34.3082 | D198: 50.0688 | E198: 28.614
B199: 2005-10-20 | C199: 34.1248 | D199: 50.0977 | E199: 28.6715
B200: 2005-10-21 | C200: 34.2948 | D200: 50.4232 | E200: 28.6219
B201: 2005-10-22 | C201: 34.4085 | D201: 50.7314 | E201: 28.5666
... 2312 more rows

Sheet Calc
B2: Параметр | C2: Текущее | D2: Минимум | E2: Максимум | H2: Строка | I2: Порция | J2: Начало порции | K2: Конец порции | L2: Дата | M2: EUR | N2: GBP | O2: USD
B3: Дискретность | C3: 5 | D3: 1 | E3: =INT(ROWS(tblCUR[])/rngWindowWidthMin) -> 837 | H3: 1 | I3: =IF(tblWork[[#This Row],[Строка]]<=rngWindowNums,tblWork[[#This Row],[Строка]],) -> 1 | J3: =IF(tblWork[[#This Row],[Порция]]>0,1+(tblWork[[#This Row],[Порция]]-1)*rngPortionSize,"") -> 1 | K3: =IF(tblWork[[#This Row],[Порция]]>0,tblWork[[#This Row],[Начало порции]]+rngPortionSize-1,"") -> 5 | L3: =IF(tblWork[[#This Row],[Порция]]>0,INDEX(tblCUR[],tblWork[[#This Row],[Начало порции]],1),"") -> 2005-01-01 | M3: =IF(rngEnabledEUR,IF(tblWork[[#This Row],[Порция]]>0,AVERAGE(INDEX(tblCUR[EUR],tblWork[[#This Row],[Начало порции]]):INDEX(tblCUR[EUR],tblWork[[#This Row],[Конец порции]])),""),NA()) -> 36.96092 | N3: =IF(rngEnabledGBP,IF(tblWork[[#This Row],[Порция]]>0,AVERAGE(INDEX(tblCUR[GBP],tblWork[[#This Row],[Начало порции]]):INDEX(tblCUR[GBP],tblWork[[#This Row],[Конец порции]])),""),NA()) -> 52.70454 | O3: =IF(rngEnabledUSD,IF(tblWork[[#This Row],[Порция]]>0,AVERAGE(INDEX(tblCUR[USD],tblWork[[#This Row],[Начало порции]]):INDEX(tblCUR[USD],tblWork[[#This Row],[Конец порции]])),""),NA()) -> 27.87964
B4: Начало окна | C4: 1 | D4: 1 | E4: =rngWindowNums-rngWindowWidth+1 -> 1 | H4: 2 | I4: =IF(tblWork[[#This Row],[Строка]]<=rngWindowNums,tblWork[[#This Row],[Строка]],) -> 2 | J4: =IF(tblWork[[#This Row],[Порция]]>0,1+(tblWork[[#This Row],[Порция]]-1)*rngPortionSize,"") -> 6 | K4: =IF(tblWork[[#This Row],[Порция]]>0,tblWork[[#This Row],[Начало порции]]+rngPortionSize-1,"") -> 10 | L4: =IF(tblWork[[#This Row],[Порция]]>0,INDEX(tblCUR[],tblWork[[#This Row],[Начало порции]],1),"") -> 2005-01-18 | M4: =IF(rngEnabledEUR,IF(tblWork[[#This Row],[Порция]]>0,AVERAGE(INDEX(tblCUR[EUR],tblWork[[#This Row],[Начало порции]]):INDEX(tblCUR[EUR],tblWork[[#This Row],[Конец порции]])),""),NA()) -> 36.62162 | N4: =IF(rngEnabledGBP,IF(tblWork[[#This Row],[Порция]]>0,AVERAGE(INDEX(tblCUR[GBP],tblWork[[#This Row],[Начало порции]]):INDEX(tblCUR[GBP],tblWork[[#This Row],[Конец порции]])),""),NA()) -> 52.50664 | O4: =IF(rngEnabledUSD,IF(tblWork[[#This Row],[Порция]]>0,AVERAGE(INDEX(tblCUR[USD],tblWork[[#This Row],[Начало порции]]):INDEX(tblCUR[USD],tblWork[[#This Row],[Конец порции]])),""),NA()) -> 28.11066
B5: Ширина окна | C5: 502 | D5: 3 | E5: =rngWindowNums-rngStartPortion+1 -> 502 | H5: 3 | I5: =IF(tblWork[[#This Row],[Строка]]<=rngWindowNums,tblWork[[#This Row],[Строка]],) -> 3 | J5: =IF(tblWork[[#This Row],[Порция]]>0,1+(tblWork[[#This Row],[Порция]]-1)*rngPortionSize,"") -> 11 | K5: =IF(tblWork[[#This Row],[Порция]]>0,tblWork[[#This Row],[Начало порции]]+rngPortionSize-1,"") -> 15 | L5: =IF(tblWork[[#This Row],[Порция]]>0,INDEX(tblCUR[],tblWork[[#This Row],[Начало порции]],1),"") -> 2005-01-25 | M5: =IF(rngEnabledEUR,IF(tblWork[[#This Row],[Порция]]>0,AVERAGE(INDEX(tblCUR[EUR],tblWork[[#This Row],[Начало порции]]):INDEX(tblCUR[EUR],tblWork[[#This Row],[Конец порции]])),""),NA()) -> 36.57522 | N5: =IF(rngEnabledGBP,IF(tblWork[[#This Row],[Порция]]>0,AVERAGE(INDEX(tblCUR[GBP],tblWork[[#This Row],[Начало порции]]):INDEX(tblCUR[GBP],tblWork[[#This Row],[Конец порции]])),""),NA()) -> 52.68362 | O5: =IF(rngEnabledUSD,IF(tblWork[[#This Row],[Порция]]>0,AVERAGE(INDEX(tblCUR[USD],tblWork[[#This Row],[Начало порции]]):INDEX(tblCUR[USD],tblWork[[#This Row],[Конец порции]])),""),NA()) -> 28.03696
H6: 4 | I6: =IF(tblWork[[#This Row],[Строка]]<=rngWindowNums,tblWork[[#This Row],[Строка]],) -> 4 | J6: =IF(tblWork[[#This Row],[Порция]]>0,1+(tblWork[[#This Row],[Порция]]-1)*rngPortionSize,"") -> 16 | K6: =IF(tblWork[[#This Row],[Порция]]>0,tblWork[[#This Row],[Начало порции]]+rngPortionSize-1,"") -> 20 | L6: =IF(tblWork[[#This Row],[Порция]]>0,INDEX(tblCUR[],tblWork[[#This Row],[Начало порции]],1),"") -> 2005-02-01 | M6: =IF(rngEnabledEUR,IF(tblWork[[#This Row],[Порция]]>0,AVERAGE(INDEX(tblCUR[EUR],tblWork[[#This Row],[Начало порции]]):INDEX(tblCUR[EUR],tblWork[[#This Row],[Конец порции]])),""),NA()) -> 36.47292 | N6: =IF(rngEnabledGBP,IF(tblWork[[#This Row],[Порция]]>0,AVERAGE(INDEX(tblCUR[GBP],tblWork[[#This Row],[Начало порции]]):INDEX(tblCUR[GBP],tblWork[[#This Row],[Конец порции]])),""),NA()) -> 52.74394 | O6: =IF(rngEnabledUSD,IF(tblWork[[#This Row],[Порция]]>0,AVERAGE(INDEX(tblCUR[USD],tblWork[[#This Row],[Начало порции]]):INDEX(tblCUR[USD],tblWork[[#This Row],[Конец порции]])),""),NA()) -> 28.00788
B7: Дата для метки | C7: =IFERROR(INDEX(tblWork[Дата],rngStartPortion),"ошибка") -> 2005-01-01 | H7: 5 | I7: =IF(tblWork[[#This Row],[Строка]]<=rngWindowNums,tblWork[[#This Row],[Строка]],) -> 5 | J7: =IF(tblWork[[#This Row],[Порция]]>0,1+(tblWork[[#This Row],[Порция]]-1)*rngPortionSize,"") -> 21 | K7: =IF(tblWork[[#This Row],[Порция]]>0,tblWork[[#This Row],[Начало порции]]+rngPortionSize-1,"") -> 25 | L7: =IF(tblWork[[#This Row],[Порция]]>0,INDEX(tblCUR[],tblWork[[#This Row],[Начало порции]],1),"") -> 2005-02-08 | M7: =IF(rngEnabledEUR,IF(tblWork[[#This Row],[Порция]]>0,AVERAGE(INDEX(tblCUR[EUR],tblWork[[#This Row],[Начало порции]]):INDEX(tblCUR[EUR],tblWork[[#This Row],[Конец порции]])),""),NA()) -> 36.043 | N7: =IF(rngEnabledGBP,IF(tblWork[[#This Row],[Порция]]>0,AVERAGE(INDEX(tblCUR[GBP],tblWork[[#This Row],[Начало порции]]):INDEX(tblCUR[GBP],tblWork[[#This Row],[Конец порции]])),""),NA()) -> 52.38948 | O7: =IF(rngEnabledUSD,IF(tblWork[[#This Row],[Порция]]>0,AVERAGE(INDEX(tblCUR[USD],tblWork[[#This Row],[Начало порции]]):INDEX(tblCUR[USD],tblWork[[#This Row],[Конец порции]])),""),NA()) -> 28.1196
B8: Всего окон | C8: =INT(ROWS(tblCUR[])/rngPortionSize) -> 502 | H8: 6 | I8: =IF(tblWork[[#This Row],[Строка]]<=rngWindowNums,tblWork[[#This Row],[Строка]],) -> 6 | J8: =IF(tblWork[[#This Row],[Порция]]>0,1+(tblWork[[#This Row],[Порция]]-1)*rngPortionSize,"") -> 26 | K8: =IF(tblWork[[#This Row],[Порция]]>0,tblWork[[#This Row],[Начало порции]]+rngPortionSize-1,"") -> 30 | L8: =IF(tblWork[[#This Row],[Порция]]>0,INDEX(tblCUR[],tblWork[[#This Row],[Начало порции]],1),"") -> 2005-02-15 | M8: =IF(rngEnabledEUR,IF(tblWork[[#This Row],[Порция]]>0,AVERAGE(INDEX(tblCUR[EUR],tblWork[[#This Row],[Начало порции]]):INDEX(tblCUR[EUR],tblWork[[#This Row],[Конец порции]])),""),NA()) -> 36.43104 | N8: =IF(rngEnabledGBP,IF(tblWork[[#This Row],[Порция]]>0,AVERAGE(INDEX(tblCUR[GBP],tblWork[[#This Row],[Начало порции]]):INDEX(tblCUR[GBP],tblWork[[#This Row],[Конец порции]])),""),NA()) -> 52.83938 | O8: =IF(rngEnabledUSD,IF(tblWork[[#This Row],[Порция]]>0,AVERAGE(INDEX(tblCUR[USD],tblWork[[#This Row],[Начало порции]]):INDEX(tblCUR[USD],tblWork[[#This Row],[Конец порции]])),""),NA()) -> 27.99772
H9: 7 | I9: =IF(tblWork[[#This Row],[Строка]]<=rngWindowNums,tblWork[[#This Row],[Строка]],) -> 7 | J9: =IF(tblWork[[#This Row],[Порция]]>0,1+(tblWork[[#This Row],[Порция]]-1)*rngPortionSize,"") -> 31 | K9: =IF(tblWork[[#This Row],[Порция]]>0,tblWork[[#This Row],[Начало порции]]+rngPortionSize-1,"") -> 35 | L9: =IF(tblWork[[#This Row],[Порция]]>0,INDEX(tblCUR[],tblWork[[#This Row],[Начало порции]],1),"") -> 2005-02-22 | M9: =IF(rngEnabledEUR,IF(tblWork[[#This Row],[Порция]]>0,AVERAGE(INDEX(tblCUR[EUR],tblWork[[#This Row],[Начало порции]]):INDEX(tblCUR[EUR],tblWork[[#This Row],[Конец порции]])),""),NA()) -> 36.64482 | N9: =IF(rngEnabledGBP,IF(tblWork[[#This Row],[Порция]]>0,AVERAGE(INDEX(tblCUR[GBP],tblWork[[#This Row],[Начало порции]]):INDEX(tblCUR[GBP],tblWork[[#This Row],[Конец порции]])),""),NA()) -> 53.05962 | O9: =IF(rngEnabledUSD,IF(tblWork[[#This Row],[Порция]]>0,AVERAGE(INDEX(tblCUR[USD],tblWork[[#This Row],[Начало порции]]):INDEX(tblCUR[USD],tblWork[[#This Row],[Конец порции]])),""),NA()) -> 27.79744
B10: EUR включен | C10: TRUE | H10: 8 | I10: =IF(tblWork[[#This Row],[Строка]]<=rngWindowNums,tblWork[[#This Row],[Строка]],) -> 8 | J10: =IF(tblWork[[#This Row],[Порция]]>0,1+(tblWork[[#This Row],[Порция]]-1)*rngPortionSize,"") -> 36 | K10: =IF(tblWork[[#This Row],[Порция]]>0,tblWork[[#This Row],[Начало порции]]+rngPortionSize-1,"") -> 40 | L10: =IF(tblWork[[#This Row],[Порция]]>0,INDEX(tblCUR[],tblWork[[#This Row],[Начало порции]],1),"") -> 2005-03-02 | M10: =IF(rngEnabledEUR,IF(tblWork[[#This Row],[Порция]]>0,AVERAGE(INDEX(tblCUR[EUR],tblWork[[#This Row],[Начало порции]]):INDEX(tblCUR[EUR],tblWork[[#This Row],[Конец порции]])),""),NA()) -> 36.4912 | N10: =IF(rngEnabledGBP,IF(tblWork[[#This Row],[Порция]]>0,AVERAGE(INDEX(tblCUR[GBP],tblWork[[#This Row],[Начало порции]]):INDEX(tblCUR[GBP],tblWork[[#This Row],[Конец порции]])),""),NA()) -> 53.08274 | O10: =IF(rngEnabledUSD,IF(tblWork[[#This Row],[Порция]]>0,AVERAGE(INDEX(tblCUR[USD],tblWork[[#This Row],[Начало порции]]):INDEX(tblCUR[USD],tblWork[[#This Row],[Конец порции]])),""),NA()) -> 27.71084
B11: USD включен | C11: TRUE | H11: 9 | I11: =IF(tblWork[[#This Row],[Строка]]<=rngWindowNums,tblWork[[#This Row],[Строка]],) -> 9 | J11: =IF(tblWork[[#This Row],[Порция]]>0,1+(tblWork[[#This Row],[Порция]]-1)*rngPortionSize,"") -> 41 | K11: =IF(tblWork[[#This Row],[Порция]]>0,tblWork[[#This Row],[Начало порции]]+rngPortionSize-1,"") -> 45 | L11: =IF(tblWork[[#This Row],[Порция]]>0,INDEX(tblCUR[],tblWork[[#This Row],[Начало порции]],1),"") -> 2005-03-10 | M11: =IF(rngEnabledEUR,IF(tblWork[[#This Row],[Порция]]>0,AVERAGE(INDEX(tblCUR[EUR],tblWork[[#This Row],[Начало порции]]):INDEX(tblCUR[EUR],tblWork[[#This Row],[Конец порции]])),""),NA()) -> 36.83376 | N11: =IF(rngEnabledGBP,IF(tblWork[[#This Row],[Порция]]>0,AVERAGE(INDEX(tblCUR[GBP],tblWork[[#This Row],[Начало порции]]):INDEX(tblCUR[GBP],tblWork[[#This Row],[Конец порции]])),""),NA()) -> 52.87868 | O11: =IF(rngEnabledUSD,IF(tblWork[[#This Row],[Порция]]>0,AVERAGE(INDEX(tblCUR[USD],tblWork[[#This Row],[Начало порции]]):INDEX(tblCUR[USD],tblWork[[#This Row],[Конец порции]])),""),NA()) -> 27.49
B12: GBP включен | C12: TRUE | H12: 10 | I12: =IF(tblWork[[#This Row],[Строка]]<=rngWindowNums,tblWork[[#This Row],[Строка]],) -> 10 | J12: =IF(tblWork[[#This Row],[Порция]]>0,1+(tblWork[[#This Row],[Порция]]-1)*rngPortionSize,"") -> 46 | K12: =IF(tblWork[[#This Row],[Порция]]>0,tblWork[[#This Row],[Начало порции]]+rngPortionSize-1,"") -> 50 | L12: =IF(tblWork[[#This Row],[Порция]]>0,INDEX(tblCUR[],tblWork[[#This Row],[Начало порции]],1),"") -> 2005-03-17 | M12: =IF(rngEnabledEUR,IF(tblWork[[#This Row],[Порция]]>0,AVERAGE(INDEX(tblCUR[EUR],tblWork[[#This Row],[Начало порции]]):INDEX(tblCUR[EUR],tblWork[[#This Row],[Конец порции]])),""),NA()) -> 36.59322 | N12: =IF(rngEnabledGBP,IF(tblWork[[#This Row],[Порция]]>0,AVERAGE(INDEX(tblCUR[GBP],tblWork[[#This Row],[Начало порции]]):INDEX(tblCUR[GBP],tblWork[[#This Row],[Конец порции]])),""),NA()) -> 52.6848 | O12: =IF(rngEnabledUSD,IF(tblWork[[#This Row],[Порция]]>0,AVERAGE(INDEX(tblCUR[USD],tblWork[[#This Row],[Начало порции]]):INDEX(tblCUR[USD],tblWork[[#This Row],[Конец порции]])),""),NA()) -> 27.51068
H13: 11 | I13: =IF(tblWork[[#This Row],[Строка]]<=rngWindowNums,tblWork[[#This Row],[Строка]],) -> 11 | J13: =IF(tblWork[[#This Row],[Порция]]>0,1+(tblWork[[#This Row],[Порция]]-1)*rngPortionSize,"") -> 51 | K13: =IF(tblWork[[#This Row],[Порция]]>0,tblWork[[#This Row],[Начало порции]]+rngPortionSize-1,"") -> 55 | L13: =IF(tblWork[[#This Row],[Порция]]>0,INDEX(tblCUR[],tblWork[[#This Row],[Начало порции]],1),"") -> 2005-03-24 | M13: =IF(rngEnabledEUR,IF(tblWork[[#This Row],[Порция]]>0,AVERAGE(INDEX(tblCUR[EUR],tblWork[[#This Row],[Начало порции]]):INDEX(tblCUR[EUR],tblWork[[#This Row],[Конец порции]])),""),NA()) -> 35.99324 | N13: =IF(rngEnabledGBP,IF(tblWork[[#This Row],[Порция]]>0,AVERAGE(INDEX(tblCUR[GBP],tblWork[[#This Row],[Начало порции]]):INDEX(tblCUR[GBP],tblWork[[#This Row],[Конец порции]])),""),NA()) -> 51.9389 | O13: =IF(rngEnabledUSD,IF(tblWork[[#This Row],[Порция]]>0,AVERAGE(INDEX(tblCUR[USD],tblWork[[#This Row],[Начало порции]]):INDEX(tblCUR[USD],tblWork[[#This Row],[Конец порции]])),""),NA()) -> 27.73948
B14: Параметр | C14: Текущее | D14: Минимум | E14: Максимум | F14: Статусы | H14: 12 | I14: =IF(tblWork[[#This Row],[Строка]]<=rngWindowNums,tblWork[[#This Row],[Строка]],) -> 12 | J14: =IF(tblWork[[#This Row],[Порция]]>0,1+(tblWork[[#This Row],[Порция]]-1)*rngPortionSize,"") -> 56 | K14: =IF(tblWork[[#This Row],[Порция]]>0,tblWork[[#This Row],[Начало порции]]+rngPortionSize-1,"") -> 60 | L14: =IF(tblWork[[#This Row],[Порция]]>0,INDEX(tblCUR[],tblWork[[#This Row],[Начало порции]],1),"") -> 2005-03-31 | M14: =IF(rngEnabledEUR,IF(tblWork[[#This Row],[Порция]]>0,AVERAGE(INDEX(tblCUR[EUR],tblWork[[#This Row],[Начало порции]]):INDEX(tblCUR[EUR],tblWork[[#This Row],[Конец порции]])),""),NA()) -> 36.0001 | N14: =IF(rngEnabledGBP,IF(tblWork[[#This Row],[Порция]]>0,AVERAGE(INDEX(tblCUR[GBP],tblWork[[#This Row],[Начало порции]]):INDEX(tblCUR[GBP],tblWork[[#This Row],[Конец порции]])),""),NA()) -> 52.40096 | O14: =IF(rngEnabledUSD,IF(tblWork[[#This Row],[Порция]]>0,AVERAGE(INDEX(tblCUR[USD],tblWork[[#This Row],[Начало порции]]):INDEX(tblCUR[USD],tblWork[[#This Row],[Конец порции]])),""),NA()) -> 27.8791
B15: Дискретность | C15: 5 | D15: 1 | E15: =INT(ROWS(tblCUR[])/D17) -> 837 | F15: =IF(AND(rngPortionSizeFake>=D15,rngPortionSizeFake<=E15),TRUE,FALSE) -> TRUE | H15: 13 | I15: =IF(tblWork[[#This Row],[Строка]]<=rngWindowNums,tblWork[[#This Row],[Строка]],) -> 13 | J15: =IF(tblWork[[#This Row],[Порция]]>0,1+(tblWork[[#This Row],[Порция]]-1)*rngPortionSize,"") -> 61 | K15: =IF(tblWork[[#This Row],[Порция]]>0,tblWork[[#This Row],[Начало порции]]+rngPortionSize-1,"") -> 65 | L15: =IF(tblWork[[#This Row],[Порция]]>0,INDEX(tblCUR[],tblWork[[#This Row],[Начало порции]],1),"") -> 2005-04-07 | M15: =IF(rngEnabledEUR,IF(tblWork[[#This Row],[Порция]]>0,AVERAGE(INDEX(tblCUR[EUR],tblWork[[#This Row],[Начало порции]]):INDEX(tblCUR[EUR],tblWork[[#This Row],[Конец порции]])),""),NA()) -> 35.91264 | N15: =IF(rngEnabledGBP,IF(tblWork[[#This Row],[Порция]]>0,AVERAGE(INDEX(tblCUR[GBP],tblWork[[#This Row],[Начало порции]]):INDEX(tblCUR[GBP],tblWork[[#This Row],[Конец порции]])),""),NA()) -> 52.3944 | O15: =IF(rngEnabledUSD,IF(tblWork[[#This Row],[Порция]]>0,AVERAGE(INDEX(tblCUR[USD],tblWork[[#This Row],[Начало порции]]):INDEX(tblCUR[USD],tblWork[[#This Row],[Конец порции]])),""),NA()) -> 27.82392
B16: Начало окна | C16: 1 | D16: 1 | E16: =rngWindowNums-C17+1 -> 1 | F16: =IF(AND(rngStartPortionFake>=D16,rngStartPortionFake<=E16),TRUE,FALSE) -> TRUE | H16: 14 | I16: =IF(tblWork[[#This Row],[Строка]]<=rngWindowNums,tblWork[[#This Row],[Строка]],) -> 14 | J16: =IF(tblWork[[#This Row],[Порция]]>0,1+(tblWork[[#This Row],[Порция]]-1)*rngPortionSize,"") -> 66 | K16: =IF(tblWork[[#This Row],[Порция]]>0,tblWork[[#This Row],[Начало порции]]+rngPortionSize-1,"") -> 70 | L16: =IF(tblWork[[#This Row],[Порция]]>0,INDEX(tblCUR[],tblWork[[#This Row],[Начало порции]],1),"") -> 2005-04-14 | M16: =IF(rngEnabledEUR,IF(tblWork[[#This Row],[Порция]]>0,AVERAGE(INDEX(tblCUR[EUR],tblWork[[#This Row],[Начало порции]]):INDEX(tblCUR[EUR],tblWork[[#This Row],[Конец порции]])),""),NA()) -> 35.9112 | N16: =IF(rngEnabledGBP,IF(tblWork[[#This Row],[Порция]]>0,AVERAGE(INDEX(tblCUR[GBP],tblWork[[#This Row],[Начало порции]]):INDEX(tblCUR[GBP],tblWork[[#This Row],[Конец порции]])),""),NA()) -> 52.61532 | O16: =IF(rngEnabledUSD,IF(tblWork[[#This Row],[Порция]]>0,AVERAGE(INDEX(tblCUR[USD],tblWork[[#This Row],[Начало порции]]):INDEX(tblCUR[USD],tblWork[[#This Row],[Конец порции]])),""),NA()) -> 27.81988
B17: Ширина окна | C17: 502 | D17: 3 | E17: =rngWindowNums-C16+1 -> 502 | F17: =IF(AND(rngWindowWidthFake>=D17,rngWindowWidthFake<=E17),TRUE,FALSE) -> TRUE | H17: 15 | I17: =IF(tblWork[[#This Row],[Строка]]<=rngWindowNums,tblWork[[#This Row],[Строка]],) -> 15 | J17: =IF(tblWork[[#This Row],[Порция]]>0,1+(tblWork[[#This Row],[Порция]]-1)*rngPortionSize,"") -> 71 | K17: =IF(tblWork[[#This Row],[Порция]]>0,tblWork[[#This Row],[Начало порции]]+rngPortionSize-1,"") -> 75 | L17: =IF(tblWork[[#This Row],[Порция]]>0,INDEX(tblCUR[],tblWork[[#This Row],[Начало порции]],1),"") -> 2005-04-21 | M17: =IF(rngEnabledEUR,IF(tblWork[[#This Row],[Порция]]>0,AVERAGE(INDEX(tblCUR[EUR],tblWork[[#This Row],[Начало порции]]):INDEX(tblCUR[EUR],tblWork[[#This Row],[Конец порции]])),""),NA()) -> 36.18702 | N17: =IF(rngEnabledGBP,IF(tblWork[[#This Row],[Порция]]>0,AVERAGE(INDEX(tblCUR[GBP],tblWork[[#This Row],[Начало порции]]):INDEX(tblCUR[GBP],tblWork[[#This Row],[Конец порции]])),""),NA()) -> 53.09658 | O17: =IF(rngEnabledUSD,IF(tblWork[[#This Row],[Порция]]>0,AVERAGE(INDEX(tblCUR[USD],tblWork[[#This Row],[Начало порции]]):INDEX(tblCUR[USD],tblWork[[#This Row],[Конец порции]])),""),NA()) -> 27.73336
B18: Общий статус | F18: =AND(F15,F16,F17) -> TRUE | H18: 16 | I18: =IF(tblWork[[#This Row],[Строка]]<=rngWindowNums,tblWork[[#This Row],[Строка]],) -> 16 | J18: =IF(tblWork[[#This Row],[Порция]]>0,1+(tblWork[[#This Row],[Порция]]-1)*rngPortionSize,"") -> 76 | K18: =IF(tblWork[[#This Row],[Порция]]>0,tblWork[[#This Row],[Начало порции]]+rngPortionSize-1,"") -> 80 | L18: =IF(tblWork[[#This Row],[Порция]]>0,INDEX(tblCUR[],tblWork[[#This Row],[Начало порции]],1),"") -> 2005-04-28 | M18: =IF(rngEnabledEUR,IF(tblWork[[#This Row],[Порция]]>0,AVERAGE(INDEX(tblCUR[EUR],tblWork[[#This Row],[Начало порции]]):INDEX(tblCUR[EUR],tblWork[[#This Row],[Конец порции]])),""),NA()) -> 35.92092 | N18: =IF(rngEnabledGBP,IF(tblWork[[#This Row],[Порция]]>0,AVERAGE(INDEX(tblCUR[GBP],tblWork[[#This Row],[Начало порции]]):INDEX(tblCUR[GBP],tblWork[[#This Row],[Конец порции]])),""),NA()) -> 52.90254 | O18: =IF(rngEnabledUSD,IF(tblWork[[#This Row],[Порция]]>0,AVERAGE(INDEX(tblCUR[USD],tblWork[[#This Row],[Начало порции]]):INDEX(tblCUR[USD],tblWork[[#This Row],[Конец порции]])),""),NA()) -> 27.79962
H19: 17 | I19: =IF(tblWork[[#This Row],[Строка]]<=rngWindowNums,tblWork[[#This Row],[Строка]],) -> 17 | J19: =IF(tblWork[[#This Row],[Порция]]>0,1+(tblWork[[#This Row],[Порция]]-1)*rngPortionSize,"") -> 81 | K19: =IF(tblWork[[#This Row],[Порция]]>0,tblWork[[#This Row],[Начало порции]]+rngPortionSize-1,"") -> 85 | L19: =IF(tblWork[[#This Row],[Порция]]>0,INDEX(tblCUR[],tblWork[[#This Row],[Начало порции]],1),"") -> 2005-05-06 | M19: =IF(rngEnabledEUR,IF(tblWork[[#This Row],[Порция]]>0,AVERAGE(INDEX(tblCUR[EUR],tblWork[[#This Row],[Начало порции]]):INDEX(tblCUR[EUR],tblWork[[#This Row],[Конец порции]])),""),NA()) -> 35.76182 | N19: =IF(rngEnabledGBP,IF(tblWork[[#This Row],[Порция]]>0,AVERAGE(INDEX(tblCUR[GBP],tblWork[[#This Row],[Начало порции]]):INDEX(tblCUR[GBP],tblWork[[#This Row],[Конец порции]])),""),NA()) -> 52.4528 | O19: =IF(rngEnabledUSD,IF(tblWork[[#This Row],[Порция]]>0,AVERAGE(INDEX(tblCUR[USD],tblWork[[#This Row],[Начало порции]]):INDEX(tblCUR[USD],tblWork[[#This Row],[Конец порции]])),""),NA()) -> 27.83542
H20: 18 | I20: =IF(tblWork[[#This Row],[Строка]]<=rngWindowNums,tblWork[[#This Row],[Строка]],) -> 18 | J20: =IF(tblWork[[#This Row],[Порция]]>0,1+(tblWork[[#This Row],[Порция]]-1)*rngPortionSize,"") -> 86 | K20: =IF(tblWork[[#This Row],[Порция]]>0,tblWork[[#This Row],[Начало порции]]+rngPortionSize-1,"") -> 90 | L20: =IF(tblWork[[#This Row],[Порция]]>0,INDEX(tblCUR[],tblWork[[#This Row],[Начало порции]],1),"") -> 2005-05-17 | M20: =IF(rngEnabledEUR,IF(tblWork[[#This Row],[Порция]]>0,AVERAGE(INDEX(tblCUR[EUR],tblWork[[#This Row],[Начало порции]]):INDEX(tblCUR[EUR],tblWork[[#This Row],[Конец порции]])),""),NA()) -> 35.35552 | N20: =IF(rngEnabledGBP,IF(tblWork[[#This Row],[Порция]]>0,AVERAGE(INDEX(tblCUR[GBP],tblWork[[#This Row],[Начало порции]]):INDEX(tblCUR[GBP],tblWork[[#This Row],[Конец порции]])),""),NA()) -> 51.462 | O20: =IF(rngEnabledUSD,IF(tblWork[[#This Row],[Порция]]>0,AVERAGE(INDEX(tblCUR[USD],tblWork[[#This Row],[Начало порции]]):INDEX(tblCUR[USD],tblWork[[#This Row],[Конец порции]])),""),NA()) -> 27.99068
H21: 19 | I21: =IF(tblWork[[#This Row],[Строка]]<=rngWindowNums,tblWork[[#This Row],[Строка]],) -> 19 | J21: =IF(tblWork[[#This Row],[Порция]]>0,1+(tblWork[[#This Row],[Порция]]-1)*rngPortionSize,"") -> 91 | K21: =IF(tblWork[[#This Row],[Порция]]>0,tblWork[[#This Row],[Начало порции]]+rngPortionSize-1,"") -> 95 | L21: =IF(tblWork[[#This Row],[Порция]]>0,INDEX(tblCUR[],tblWork[[#This Row],[Начало порции]],1),"") -> 2005-05-24 | M21: =IF(rngEnabledEUR,IF(tblWork[[#This Row],[Порция]]>0,AVERAGE(INDEX(tblCUR[EUR],tblWork[[#This Row],[Начало порции]]):INDEX(tblCUR[EUR],tblWork[[#This Row],[Конец порции]])),""),NA()) -> 35.2391 | N21: =IF(rngEnabledGBP,IF(tblWork[[#This Row],[Порция]]>0,AVERAGE(INDEX(tblCUR[GBP],tblWork[[#This Row],[Начало порции]]):INDEX(tblCUR[GBP],tblWork[[#This Row],[Конец порции]])),""),NA()) -> 51.2878 | O21: =IF(rngEnabledUSD,IF(tblWork[[#This Row],[Порция]]>0,AVERAGE(INDEX(tblCUR[USD],tblWork[[#This Row],[Начало порции]]):INDEX(tblCUR[USD],tblWork[[#This Row],[Конец порции]])),""),NA()) -> 28.05528
H22: 20 | I22: =IF(tblWork[[#This Row],[Строка]]<=rngWindowNums,tblWork[[#This Row],[Строка]],) -> 20 | J22: =IF(tblWork[[#This Row],[Порция]]>0,1+(tblWork[[#This Row],[Порция]]-1)*rngPortionSize,"") -> 96 | K22: =IF(tblWork[[#This Row],[Порция]]>0,tblWork[[#This Row],[Начало порции]]+rngPortionSize-1,"") -> 100 | L22: =IF(tblWork[[#This Row],[Порция]]>0,INDEX(tblCUR[],tblWork[[#This Row],[Начало порции]],1),"") -> 2005-05-31 | M22: =IF(rngEnabledEUR,IF(tblWork[[#This Row],[Порция]]>0,AVERAGE(INDEX(tblCUR[EUR],tblWork[[#This Row],[Начало порции]]):INDEX(tblCUR[EUR],tblWork[[#This Row],[Конец порции]])),""),NA()) -> 34.90078 | N22: =IF(rngEnabledGBP,IF(tblWork[[#This Row],[Порция]]>0,AVERAGE(INDEX(tblCUR[GBP],tblWork[[#This Row],[Начало порции]]):INDEX(tblCUR[GBP],tblWork[[#This Row],[Конец порции]])),""),NA()) -> 51.3944 | O22: =IF(rngEnabledUSD,IF(tblWork[[#This Row],[Порция]]>0,AVERAGE(INDEX(tblCUR[USD],tblWork[[#This Row],[Начало порции]]):INDEX(tblCUR[USD],tblWork[[#This Row],[Конец порции]])),""),NA()) -> 28.26522
H23: 21 | I23: =IF(tblWork[[#This Row],[Строка]]<=rngWindowNums,tblWork[[#This Row],[Строка]],) -> 21 | J23: =IF(tblWork[[#This Row],[Порция]]>0,1+(tblWork[[#This Row],[Порция]]-1)*rngPortionSize,"") -> 101 | K23: =IF(tblWork[[#This Row],[Порция]]>0,tblWork[[#This Row],[Начало порции]]+rngPortionSize-1,"") -> 105 | L23: =IF(tblWork[[#This Row],[Порция]]>0,INDEX(tblCUR[],tblWork[[#This Row],[Начало порции]],1),"") -> 2005-06-07 | M23: =IF(rngEnabledEUR,IF(tblWork[[#This Row],[Порция]]>0,AVERAGE(INDEX(tblCUR[EUR],tblWork[[#This Row],[Начало порции]]):INDEX(tblCUR[EUR],tblWork[[#This Row],[Конец порции]])),""),NA()) -> 34.85284 | N23: =IF(rngEnabledGBP,IF(tblWork[[#This Row],[Порция]]>0,AVERAGE(INDEX(tblCUR[GBP],tblWork[[#This Row],[Начало порции]]):INDEX(tblCUR[GBP],tblWork[[#This Row],[Конец порции]])),""),NA()) -> 51.87848 | O23: =IF(rngEnabledUSD,IF(tblWork[[#This Row],[Порция]]>0,AVERAGE(INDEX(tblCUR[USD],tblWork[[#This Row],[Начало порции]]):INDEX(tblCUR[USD],tblWork[[#This Row],[Конец порции]])),""),NA()) -> 28.42634
H24: 22 | I24: =IF(tblWork[[#This Row],[Строка]]<=rngWindowNums,tblWork[[#This Row],[Строка]],) -> 22 | J24: =IF(tblWork[[#This Row],[Порция]]>0,1+(tblWork[[#This Row],[Порция]]-1)*rngPortionSize,"") -> 106 | K24: =IF(tblWork[[#This Row],[Порция]]>0,tblWork[[#This Row],[Начало порции]]+rngPortionSize-1,"") -> 110 | L24: =IF(tblWork[[#This Row],[Порция]]>0,INDEX(tblCUR[],tblWork[[#This Row],[Начало порции]],1),"") -> 2005-06-15 | M24: =IF(rngEnabledEUR,IF(tblWork[[#This Row],[Порция]]>0,AVERAGE(INDEX(tblCUR[EUR],tblWork[[#This Row],[Начало порции]]):INDEX(tblCUR[EUR],tblWork[[#This Row],[Конец порции]])),""),NA()) -> 34.62084 | N24: =IF(rngEnabledGBP,IF(tblWork[[#This Row],[Порция]]>0,AVERAGE(INDEX(tblCUR[GBP],tblWork[[#This Row],[Начало порции]]):INDEX(tblCUR[GBP],tblWork[[#This Row],[Конец порции]])),""),NA()) -> 51.89688 | O24: =IF(rngEnabledUSD,IF(tblWork[[#This Row],[Порция]]>0,AVERAGE(INDEX(tblCUR[USD],tblWork[[#This Row],[Начало порции]]):INDEX(tblCUR[USD],tblWork[[#This Row],[Конец порции]])),""),NA()) -> 28.5705
H25: 23 | I25: =IF(tblWork[[#This Row],[Строка]]<=rngWindowNums,tblWork[[#This Row],[Строка]],) -> 23 | J25: =IF(tblWork[[#This Row],[Порция]]>0,1+(tblWork[[#This Row],[Порция]]-1)*rngPortionSize,"") -> 111 | K25: =IF(tblWork[[#This Row],[Порция]]>0,tblWork[[#This Row],[Начало порции]]+rngPortionSize-1,"") -> 115 | L25: =IF(tblWork[[#This Row],[Порция]]>0,INDEX(tblCUR[],tblWork[[#This Row],[Начало порции]],1),"") -> 2005-06-22 | M25: =IF(rngEnabledEUR,IF(tblWork[[#This Row],[Порция]]>0,AVERAGE(INDEX(tblCUR[EUR],tblWork[[#This Row],[Начало порции]]):INDEX(tblCUR[EUR],tblWork[[#This Row],[Конец порции]])),""),NA()) -> 34.6663 | N25: =IF(rngEnabledGBP,IF(tblWork[[#This Row],[Порция]]>0,AVERAGE(INDEX(tblCUR[GBP],tblWork[[#This Row],[Начало порции]]):INDEX(tblCUR[GBP],tblWork[[#This Row],[Конец порции]])),""),NA()) -> 52.14088 | O25: =IF(rngEnabledUSD,IF(tblWork[[#This Row],[Порция]]>0,AVERAGE(INDEX(tblCUR[USD],tblWork[[#This Row],[Начало порции]]):INDEX(tblCUR[USD],tblWork[[#This Row],[Конец порции]])),""),NA()) -> 28.59614
H26: 24 | I26: =IF(tblWork[[#This Row],[Строка]]<=rngWindowNums,tblWork[[#This Row],[Строка]],) -> 24 | J26: =IF(tblWork[[#This Row],[Порция]]>0,1+(tblWork[[#This Row],[Порция]]-1)*rngPortionSize,"") -> 116 | K26: =IF(tblWork[[#This Row],[Порция]]>0,tblWork[[#This Row],[Начало порции]]+rngPortionSize-1,"") -> 120 | L26: =IF(tblWork[[#This Row],[Порция]]>0,INDEX(tblCUR[],tblWork[[#This Row],[Начало порции]],1),"") -> 2005-06-29 | M26: =IF(rngEnabledEUR,IF(tblWork[[#This Row],[Порция]]>0,AVERAGE(INDEX(tblCUR[EUR],tblWork[[#This Row],[Начало порции]]):INDEX(tblCUR[EUR],tblWork[[#This Row],[Конец порции]])),""),NA()) -> 34.54912 | N26: =IF(rngEnabledGBP,IF(tblWork[[#This Row],[Порция]]>0,AVERAGE(INDEX(tblCUR[GBP],tblWork[[#This Row],[Начало порции]]):INDEX(tblCUR[GBP],tblWork[[#This Row],[Конец порции]])),""),NA()) -> 51.57062 | O26: =IF(rngEnabledUSD,IF(tblWork[[#This Row],[Порция]]>0,AVERAGE(INDEX(tblCUR[USD],tblWork[[#This Row],[Начало порции]]):INDEX(tblCUR[USD],tblWork[[#This Row],[Конец порции]])),""),NA()) -> 28.67284
H27: 25 | I27: =IF(tblWork[[#This Row],[Строка]]<=rngWindowNums,tblWork[[#This Row],[Строка]],) -> 25 | J27: =IF(tblWork[[#This Row],[Порция]]>0,1+(tblWork[[#This Row],[Порция]]-1)*rngPortionSize,"") -> 121 | K27: =IF(tblWork[[#This Row],[Порция]]>0,tblWork[[#This Row],[Начало порции]]+rngPortionSize-1,"") -> 125 | L27: =IF(tblWork[[#This Row],[Порция]]>0,INDEX(tblCUR[],tblWork[[#This Row],[Начало порции]],1),"") -> 2005-07-06 | M27: =IF(rngEnabledEUR,IF(tblWork[[#This Row],[Порция]]>0,AVERAGE(INDEX(tblCUR[EUR],tblWork[[#This Row],[Начало порции]]):INDEX(tblCUR[EUR],tblWork[[#This Row],[Конец порции]])),""),NA()) -> 34.38342 | N27: =IF(rngEnabledGBP,IF(tblWork[[#This Row],[Порция]]>0,AVERAGE(INDEX(tblCUR[GBP],tblWork[[#This Row],[Начало порции]]):INDEX(tblCUR[GBP],tblWork[[#This Row],[Конец порции]])),""),NA()) -> 50.43448 | O27: =IF(rngEnabledUSD,IF(tblWork[[#This Row],[Порция]]>0,AVERAGE(INDEX(tblCUR[USD],tblWork[[#This Row],[Начало порции]]):INDEX(tblCUR[USD],tblWork[[#This Row],[Конец порции]])),""),NA()) -> 28.80712
H28: 26 | I28: =IF(tblWork[[#This Row],[Строка]]<=rngWindowNums,tblWork[[#This Row],[Строка]],) -> 26 | J28: =IF(tblWork[[#This Row],[Порция]]>0,1+(tblWork[[#This Row],[Порция]]-1)*rngPortionSize,"") -> 126 | K28: =IF(tblWork[[#This Row],[Порция]]>0,tblWork[[#This Row],[Начало порции]]+rngPortionSize-1,"") -> 130 | L28: =IF(tblWork[[#This Row],[Порция]]>0,INDEX(tblCUR[],tblWork[[#This Row],[Начало порции]],1),"") -> 2005-07-13 | M28: =IF(rngEnabledEUR,IF(tblWork[[#This Row],[Порция]]>0,AVERAGE(INDEX(tblCUR[EUR],tblWork[[#This Row],[Начало порции]]):INDEX(tblCUR[EUR],tblWork[[#This Row],[Конец порции]])),""),NA()) -> 34.71486 | N28: =IF(rngEnabledGBP,IF(tblWork[[#This Row],[Порция]]>0,AVERAGE(INDEX(tblCUR[GBP],tblWork[[#This Row],[Начало порции]]):INDEX(tblCUR[GBP],tblWork[[#This Row],[Конец порции]])),""),NA()) -> 50.48196 | O28: =IF(rngEnabledUSD,IF(tblWork[[#This Row],[Порция]]>0,AVERAGE(INDEX(tblCUR[USD],tblWork[[#This Row],[Начало порции]]):INDEX(tblCUR[USD],tblWork[[#This Row],[Конец порции]])),""),NA()) -> 28.6258
H29: 27 | I29: =IF(tblWork[[#This Row],[Строка]]<=rngWindowNums,tblWork[[#This Row],[Строка]],) -> 27 | J29: =IF(tblWork[[#This Row],[Порция]]>0,1+(tblWork[[#This Row],[Порция]]-1)*rngPortionSize,"") -> 131 | K29: =IF(tblWork[[#This Row],[Порция]]>0,tblWork[[#This Row],[Начало порции]]+rngPortionSize-1,"") -> 135 | L29: =IF(tblWork[[#This Row],[Порция]]>0,INDEX(tblCUR[],tblWork[[#This Row],[Начало порции]],1),"") -> 2005-07-20 | M29: =IF(rngEnabledEUR,IF(tblWork[[#This Row],[Порция]]>0,AVERAGE(INDEX(tblCUR[EUR],tblWork[[#This Row],[Начало порции]]):INDEX(tblCUR[EUR],tblWork[[#This Row],[Конец порции]])),""),NA()) -> 34.6331 | N29: =IF(rngEnabledGBP,IF(tblWork[[#This Row],[Порция]]>0,AVERAGE(INDEX(tblCUR[GBP],tblWork[[#This Row],[Начало порции]]):INDEX(tblCUR[GBP],tblWork[[#This Row],[Конец порции]])),""),NA()) -> 49.94474 | O29: =IF(rngEnabledUSD,IF(tblWork[[#This Row],[Порция]]>0,AVERAGE(INDEX(tblCUR[USD],tblWork[[#This Row],[Начало порции]]):INDEX(tblCUR[USD],tblWork[[#This Row],[Конец порции]])),""),NA()) -> 28.65396
H30: 28 | I30: =IF(tblWork[[#This Row],[Строка]]<=rngWindowNums,tblWork[[#This Row],[Строка]],) -> 28 | J30: =IF(tblWork[[#This Row],[Порция]]>0,1+(tblWork[[#This Row],[Порция]]-1)*rngPortionSize,"") -> 136 | K30: =IF(tblWork[[#This Row],[Порция]]>0,tblWork[[#This Row],[Начало порции]]+rngPortionSize-1,"") -> 140 | L30: =IF(tblWork[[#This Row],[Порция]]>0,INDEX(tblCUR[],tblWork[[#This Row],[Начало порции]],1),"") -> 2005-07-27 | M30: =IF(rngEnabledEUR,IF(tblWork[[#This Row],[Порция]]>0,AVERAGE(INDEX(tblCUR[EUR],tblWork[[#This Row],[Начало порции]]):INDEX(tblCUR[EUR],tblWork[[#This Row],[Конец порции]])),""),NA()) -> 34.6271 | N30: =IF(rngEnabledGBP,IF(tblWork[[#This Row],[Порция]]>0,AVERAGE(INDEX(tblCUR[GBP],tblWork[[#This Row],[Начало порции]]):INDEX(tblCUR[GBP],tblWork[[#This Row],[Конец порции]])),""),NA()) -> 50.11292 | O30: =IF(rngEnabledUSD,IF(tblWork[[#This Row],[Порция]]>0,AVERAGE(INDEX(tblCUR[USD],tblWork[[#This Row],[Начало порции]]):INDEX(tblCUR[USD],tblWork[[#This Row],[Конец порции]])),""),NA()) -> 28.666
H31: 29 | I31: =IF(tblWork[[#This Row],[Строка]]<=rngWindowNums,tblWork[[#This Row],[Строка]],) -> 29 | J31: =IF(tblWork[[#This Row],[Порция]]>0,1+(tblWork[[#This Row],[Порция]]-1)*rngPortionSize,"") -> 141 | K31: =IF(tblWork[[#This Row],[Порция]]>0,tblWork[[#This Row],[Начало порции]]+rngPortionSize-1,"") -> 145 | L31: =IF(tblWork[[#This Row],[Порция]]>0,INDEX(tblCUR[],tblWork[[#This Row],[Начало порции]],1),"") -> 2005-08-03 | M31: =IF(rngEnabledEUR,IF(tblWork[[#This Row],[Порция]]>0,AVERAGE(INDEX(tblCUR[EUR],tblWork[[#This Row],[Начало порции]]):INDEX(tblCUR[EUR],tblWork[[#This Row],[Конец порции]])),""),NA()) -> 35.02174 | N31: =IF(rngEnabledGBP,IF(tblWork[[#This Row],[Порция]]>0,AVERAGE(INDEX(tblCUR[GBP],tblWork[[#This Row],[Начало порции]]):INDEX(tblCUR[GBP],tblWork[[#This Row],[Конец порции]])),""),NA()) -> 50.56062 | O31: =IF(rngEnabledUSD,IF(tblWork[[#This Row],[Порция]]>0,AVERAGE(INDEX(tblCUR[USD],tblWork[[#This Row],[Начало порции]]):INDEX(tblCUR[USD],tblWork[[#This Row],[Конец порции]])),""),NA()) -> 28.50492
H32: 30 | I32: =IF(tblWork[[#This Row],[Строка]]<=rngWindowNums,tblWork[[#This Row],[Строка]],) -> 30 | J32: =IF(tblWork[[#This Row],[Порция]]>0,1+(tblWork[[#This Row],[Порция]]-1)*rngPortionSize,"") -> 146 | K32: =IF(tblWork[[#This Row],[Порция]]>0,tblWork[[#This Row],[Начало порции]]+rngPortionSize-1,"") -> 150 | L32: =IF(tblWork[[#This Row],[Порция]]>0,INDEX(tblCUR[],tblWork[[#This Row],[Начало порции]],1),"") -> 2005-08-10 | M32: =IF(rngEnabledEUR,IF(tblWork[[#This Row],[Порция]]>0,AVERAGE(INDEX(tblCUR[EUR],tblWork[[#This Row],[Начало порции]]):INDEX(tblCUR[EUR],tblWork[[#This Row],[Конец порции]])),""),NA()) -> 35.2029 | N32: =IF(rngEnabledGBP,IF(tblWork[[#This Row],[Порция]]>0,AVERAGE(INDEX(tblCUR[GBP],tblWork[[#This Row],[Начало порции]]):INDEX(tblCUR[GBP],tblWork[[#This Row],[Конец порции]])),""),NA()) -> 51.09738 | O32: =IF(rngEnabledUSD,IF(tblWork[[#This Row],[Порция]]>0,AVERAGE(INDEX(tblCUR[USD],tblWork[[#This Row],[Начало порции]]):INDEX(tblCUR[USD],tblWork[[#This Row],[Конец порции]])),""),NA()) -> 28.36894
H33: 31 | I33: =IF(tblWork[[#This Row],[Строка]]<=rngWindowNums,tblWork[[#This Row],[Строка]],) -> 31 | J33: =IF(tblWork[[#This Row],[Порция]]>0,1+(tblWork[[#This Row],[Порция]]-1)*rngPortionSize,"") -> 151 | K33: =IF(tblWork[[#This Row],[Порция]]>0,tblWork[[#This Row],[Начало порции]]+rngPortionSize-1,"") -> 155 | L33: =IF(tblWork[[#This Row],[Порция]]>0,INDEX(tblCUR[],tblWork[[#This Row],[Начало порции]],1),"") -> 2005-08-17 | M33: =IF(rngEnabledEUR,IF(tblWork[[#This Row],[Порция]]>0,AVERAGE(INDEX(tblCUR[EUR],tblWork[[#This Row],[Начало порции]]):INDEX(tblCUR[EUR],tblWork[[#This Row],[Конец порции]])),""),NA()) -> 34.93494 | N33: =IF(rngEnabledGBP,IF(tblWork[[#This Row],[Порция]]>0,AVERAGE(INDEX(tblCUR[GBP],tblWork[[#This Row],[Начало порции]]):INDEX(tblCUR[GBP],tblWork[[#This Row],[Конец порции]])),""),NA()) -> 51.37492 | O33: =IF(rngEnabledUSD,IF(tblWork[[#This Row],[Порция]]>0,AVERAGE(INDEX(tblCUR[USD],tblWork[[#This Row],[Начало порции]]):INDEX(tblCUR[USD],tblWork[[#This Row],[Конец порции]])),""),NA()) -> 28.51364
H34: 32 | I34: =IF(tblWork[[#This Row],[Строка]]<=rngWindowNums,tblWork[[#This Row],[Строка]],) -> 32 | J34: =IF(tblWork[[#This Row],[Порция]]>0,1+(tblWork[[#This Row],[Порция]]-1)*rngPortionSize,"") -> 156 | K34: =IF(tblWork[[#This Row],[Порция]]>0,tblWork[[#This Row],[Начало порции]]+rngPortionSize-1,"") -> 160 | L34: =IF(tblWork[[#This Row],[Порция]]>0,INDEX(tblCUR[],tblWork[[#This Row],[Начало порции]],1),"") -> 2005-08-24 | M34: =IF(rngEnabledEUR,IF(tblWork[[#This Row],[Порция]]>0,AVERAGE(INDEX(tblCUR[EUR],tblWork[[#This Row],[Начало порции]]):INDEX(tblCUR[EUR],tblWork[[#This Row],[Конец порции]])),""),NA()) -> 34.96894 | N34: =IF(rngEnabledGBP,IF(tblWork[[#This Row],[Порция]]>0,AVERAGE(INDEX(tblCUR[GBP],tblWork[[#This Row],[Начало порции]]):INDEX(tblCUR[GBP],tblWork[[#This Row],[Конец порции]])),""),NA()) -> 51.34488 | O34: =IF(rngEnabledUSD,IF(tblWork[[#This Row],[Порция]]>0,AVERAGE(INDEX(tblCUR[USD],tblWork[[#This Row],[Начало порции]]):INDEX(tblCUR[USD],tblWork[[#This Row],[Конец порции]])),""),NA()) -> 28.49566
H35: 33 | I35: =IF(tblWork[[#This Row],[Строка]]<=rngWindowNums,tblWork[[#This Row],[Строка]],) -> 33 | J35: =IF(tblWork[[#This Row],[Порция]]>0,1+(tblWork[[#This Row],[Порция]]-1)*rngPortionSize,"") -> 161 | K35: =IF(tblWork[[#This Row],[Порция]]>0,tblWork[[#This Row],[Начало порции]]+rngPortionSize-1,"") -> 165 | L35: =IF(tblWork[[#This Row],[Порция]]>0,INDEX(tblCUR[],tblWork[[#This Row],[Начало порции]],1),"") -> 2005-08-31 | M35: =IF(rngEnabledEUR,IF(tblWork[[#This Row],[Порция]]>0,AVERAGE(INDEX(tblCUR[EUR],tblWork[[#This Row],[Начало порции]]):INDEX(tblCUR[EUR],tblWork[[#This Row],[Конец порции]])),""),NA()) -> 35.13282 | N35: =IF(rngEnabledGBP,IF(tblWork[[#This Row],[Порция]]>0,AVERAGE(INDEX(tblCUR[GBP],tblWork[[#This Row],[Начало порции]]):INDEX(tblCUR[GBP],tblWork[[#This Row],[Конец порции]])),""),NA()) -> 51.50264 | O35: =IF(rngEnabledUSD,IF(tblWork[[#This Row],[Порция]]>0,AVERAGE(INDEX(tblCUR[USD],tblWork[[#This Row],[Начало порции]]):INDEX(tblCUR[USD],tblWork[[#This Row],[Конец порции]])),""),NA()) -> 28.41334
H36: 34 | I36: =IF(tblWork[[#This Row],[Строка]]<=rngWindowNums,tblWork[[#This Row],[Строка]],) -> 34 | J36: =IF(tblWork[[#This Row],[Порция]]>0,1+(tblWork[[#This Row],[Порция]]-1)*rngPortionSize,"") -> 166 | K36: =IF(tblWork[[#This Row],[Порция]]>0,tblWork[[#This Row],[Начало порции]]+rngPortionSize-1,"") -> 170 | L36: =IF(tblWork[[#This Row],[Порция]]>0,INDEX(tblCUR[],tblWork[[#This Row],[Начало порции]],1),"") -> 2005-09-07 | M36: =IF(rngEnabledEUR,IF(tblWork[[#This Row],[Порция]]>0,AVERAGE(INDEX(tblCUR[EUR],tblWork[[#This Row],[Начало порции]]):INDEX(tblCUR[EUR],tblWork[[#This Row],[Конец порции]])),""),NA()) -> 35.14708 | N36: =IF(rngEnabledGBP,IF(tblWork[[#This Row],[Порция]]>0,AVERAGE(INDEX(tblCUR[GBP],tblWork[[#This Row],[Начало порции]]):INDEX(tblCUR[GBP],tblWork[[#This Row],[Конец порции]])),""),NA()) -> 51.95472 | O36: =IF(rngEnabledUSD,IF(tblWork[[#This Row],[Порция]]>0,AVERAGE(INDEX(tblCUR[USD],tblWork[[#This Row],[Начало порции]]):INDEX(tblCUR[USD],tblWork[[#This Row],[Конец порции]])),""),NA()) -> 28.25536
H37: 35 | I37: =IF(tblWork[[#This Row],[Строка]]<=rngWindowNums,tblWork[[#This Row],[Строка]],) -> 35 | J37: =IF(tblWork[[#This Row],[Порция]]>0,1+(tblWork[[#This Row],[Порция]]-1)*rngPortionSize,"") -> 171 | K37: =IF(tblWork[[#This Row],[Порция]]>0,tblWork[[#This Row],[Начало порции]]+rngPortionSize-1,"") -> 175 | L37: =IF(tblWork[[#This Row],[Порция]]>0,INDEX(tblCUR[],tblWork[[#This Row],[Начало порции]],1),"") -> 2005-09-14 | M37: =IF(rngEnabledEUR,IF(tblWork[[#This Row],[Порция]]>0,AVERAGE(INDEX(tblCUR[EUR],tblWork[[#This Row],[Начало порции]]):INDEX(tblCUR[EUR],tblWork[[#This Row],[Конец порции]])),""),NA()) -> 34.71508 | N37: =IF(rngEnabledGBP,IF(tblWork[[#This Row],[Порция]]>0,AVERAGE(INDEX(tblCUR[GBP],tblWork[[#This Row],[Начало порции]]):INDEX(tblCUR[GBP],tblWork[[#This Row],[Конец порции]])),""),NA()) -> 51.4984 | O37: =IF(rngEnabledUSD,IF(tblWork[[#This Row],[Порция]]>0,AVERAGE(INDEX(tblCUR[USD],tblWork[[#This Row],[Начало порции]]):INDEX(tblCUR[USD],tblWork[[#This Row],[Конец порции]])),""),NA()) -> 28.36644
H38: 36 | I38: =IF(tblWork[[#This Row],[Строка]]<=rngWindowNums,tblWork[[#This Row],[Строка]],) -> 36 | J38: =IF(tblWork[[#This Row],[Порция]]>0,1+(tblWork[[#This Row],[Порция]]-1)*rngPortionSize,"") -> 176 | K38: =IF(tblWork[[#This Row],[Порция]]>0,tblWork[[#This Row],[Начало порции]]+rngPortionSize-1,"") -> 180 | L38: =IF(tblWork[[#This Row],[Порция]]>0,INDEX(tblCUR[],tblWork[[#This Row],[Начало порции]],1),"") -> 2005-09-21 | M38: =IF(rngEnabledEUR,IF(tblWork[[#This Row],[Порция]]>0,AVERAGE(INDEX(tblCUR[EUR],tblWork[[#This Row],[Начало порции]]):INDEX(tblCUR[EUR],tblWork[[#This Row],[Конец порции]])),""),NA()) -> 34.5334 | N38: =IF(rngEnabledGBP,IF(tblWork[[#This Row],[Порция]]>0,AVERAGE(INDEX(tblCUR[GBP],tblWork[[#This Row],[Начало порции]]):INDEX(tblCUR[GBP],tblWork[[#This Row],[Конец порции]])),""),NA()) -> 51.07258 | O38: =IF(rngEnabledUSD,IF(tblWork[[#This Row],[Порция]]>0,AVERAGE(INDEX(tblCUR[USD],tblWork[[#This Row],[Начало порции]]):INDEX(tblCUR[USD],tblWork[[#This Row],[Конец порции]])),""),NA()) -> 28.42526
H39: 37 | I39: =IF(tblWork[[#This Row],[Строка]]<=rngWindowNums,tblWork[[#This Row],[Строка]],) -> 37 | J39: =IF(tblWork[[#This Row],[Порция]]>0,1+(tblWork[[#This Row],[Порция]]-1)*rngPortionSize,"") -> 181 | K39: =IF(tblWork[[#This Row],[Порция]]>0,tblWork[[#This Row],[Начало порции]]+rngPortionSize-1,"") -> 185 | L39: =IF(tblWork[[#This Row],[Порция]]>0,INDEX(tblCUR[],tblWork[[#This Row],[Начало порции]],1),"") -> 2005-09-28 | M39: =IF(rngEnabledEUR,IF(tblWork[[#This Row],[Порция]]>0,AVERAGE(INDEX(tblCUR[EUR],tblWork[[#This Row],[Начало порции]]):INDEX(tblCUR[EUR],tblWork[[#This Row],[Конец порции]])),""),NA()) -> 34.30872 | N39: =IF(rngEnabledGBP,IF(tblWork[[#This Row],[Порция]]>0,AVERAGE(INDEX(tblCUR[GBP],tblWork[[#This Row],[Начало порции]]):INDEX(tblCUR[GBP],tblWork[[#This Row],[Конец порции]])),""),NA()) -> 50.40308 | O39: =IF(rngEnabledUSD,IF(tblWork[[#This Row],[Порция]]>0,AVERAGE(INDEX(tblCUR[USD],tblWork[[#This Row],[Начало порции]]):INDEX(tblCUR[USD],tblWork[[#This Row],[Конец порции]])),""),NA()) -> 28.55026
H40: 38 | I40: =IF(tblWork[[#This Row],[Строка]]<=rngWindowNums,tblWork[[#This Row],[Строка]],) -> 38 | J40: =IF(tblWork[[#This Row],[Порция]]>0,1+(tblWork[[#This Row],[Порция]]-1)*rngPortionSize,"") -> 186 | K40: =IF(tblWork[[#This Row],[Порция]]>0,tblWork[[#This Row],[Начало порции]]+rngPortionSize-1,"") -> 190 | L40: =IF(tblWork[[#This Row],[Порция]]>0,INDEX(tblCUR[],tblWork[[#This Row],[Начало порции]],1),"") -> 2005-10-05 | M40: =IF(rngEnabledEUR,IF(tblWork[[#This Row],[Порция]]>0,AVERAGE(INDEX(tblCUR[EUR],tblWork[[#This Row],[Начало порции]]):INDEX(tblCUR[EUR],tblWork[[#This Row],[Конец порции]])),""),NA()) -> 34.37532 | N40: =IF(rngEnabledGBP,IF(tblWork[[#This Row],[Порция]]>0,AVERAGE(INDEX(tblCUR[GBP],tblWork[[#This Row],[Начало порции]]):INDEX(tblCUR[GBP],tblWork[[#This Row],[Конец порции]])),""),NA()) -> 50.4018 | O40: =IF(rngEnabledUSD,IF(tblWork[[#This Row],[Порция]]>0,AVERAGE(INDEX(tblCUR[USD],tblWork[[#This Row],[Начало порции]]):INDEX(tblCUR[USD],tblWork[[#This Row],[Конец порции]])),""),NA()) -> 28.54158
H41: 39 | I41: =IF(tblWork[[#This Row],[Строка]]<=rngWindowNums,tblWork[[#This Row],[Строка]],) -> 39 | J41: =IF(tblWork[[#This Row],[Порция]]>0,1+(tblWork[[#This Row],[Порция]]-1)*rngPortionSize,"") -> 191 | K41: =IF(tblWork[[#This Row],[Порция]]>0,tblWork[[#This Row],[Начало порции]]+rngPortionSize-1,"") -> 195 | L41: =IF(tblWork[[#This Row],[Порция]]>0,INDEX(tblCUR[],tblWork[[#This Row],[Начало порции]],1),"") -> 2005-10-12 | M41: =IF(rngEnabledEUR,IF(tblWork[[#This Row],[Порция]]>0,AVERAGE(INDEX(tblCUR[EUR],tblWork[[#This Row],[Начало порции]]):INDEX(tblCUR[EUR],tblWork[[#This Row],[Конец порции]])),""),NA()) -> 34.34048 | N41: =IF(rngEnabledGBP,IF(tblWork[[#This Row],[Порция]]>0,AVERAGE(INDEX(tblCUR[GBP],tblWork[[#This Row],[Начало порции]]):INDEX(tblCUR[GBP],tblWork[[#This Row],[Конец порции]])),""),NA()) -> 50.06746 | O41: =IF(rngEnabledUSD,IF(tblWork[[#This Row],[Порция]]>0,AVERAGE(INDEX(tblCUR[USD],tblWork[[#This Row],[Начало порции]]):INDEX(tblCUR[USD],tblWork[[#This Row],[Конец порции]])),""),NA()) -> 28.57908
H42: 40 | I42: =IF(tblWork[[#This Row],[Строка]]<=rngWindowNums,tblWork[[#This Row],[Строка]],) -> 40 | J42: =IF(tblWork[[#This Row],[Порция]]>0,1+(tblWork[[#This Row],[Порция]]-1)*rngPortionSize,"") -> 196 | K42: =IF(tblWork[[#This Row],[Порция]]>0,tblWork[[#This Row],[Начало порции]]+rngPortionSize-1,"") -> 200 | L42: =IF(tblWork[[#This Row],[Порция]]>0,INDEX(tblCUR[],tblWork[[#This Row],[Начало порции]],1),"") -> 2005-10-19 | M42: =IF(rngEnabledEUR,IF(tblWork[[#This Row],[Порция]]>0,AVERAGE(INDEX(tblCUR[EUR],tblWork[[#This Row],[Начало порции]]):INDEX(tblCUR[EUR],tblWork[[#This Row],[Конец порции]])),""),NA()) -> 34.26744 | N42: =IF(rngEnabledGBP,IF(tblWork[[#This Row],[Порция]]>0,AVERAGE(INDEX(tblCUR[GBP],tblWork[[#This Row],[Начало порции]]):INDEX(tblCUR[GBP],tblWork[[#This Row],[Конец порции]])),""),NA()) -> 50.37966 | O42: =IF(rngEnabledUSD,IF(tblWork[[#This Row],[Порция]]>0,AVERAGE(INDEX(tblCUR[USD],tblWork[[#This Row],[Начало порции]]):INDEX(tblCUR[USD],tblWork[[#This Row],[Конец порции]])),""),NA()) -> 28.61976
H43: 41 | I43: =IF(tblWork[[#This Row],[Строка]]<=rngWindowNums,tblWork[[#This Row],[Строка]],) -> 41 | J43: =IF(tblWork[[#This Row],[Порция]]>0,1+(tblWork[[#This Row],[Порция]]-1)*rngPortionSize,"") -> 201 | K43: =IF(tblWork[[#This Row],[Порция]]>0,tblWork[[#This Row],[Начало порции]]+rngPortionSize-1,"") -> 205 | L43: =IF(tblWork[[#This Row],[Порция]]>0,INDEX(tblCUR[],tblWork[[#This Row],[Начало порции]],1),"") -> 2005-10-26 | M43: =IF(rngEnabledEUR,IF(tblWork[[#This Row],[Порция]]>0,AVERAGE(INDEX(tblCUR[EUR],tblWork[[#This Row],[Начало порции]]):INDEX(tblCUR[EUR],tblWork[[#This Row],[Конец порции]])),""),NA()) -> 34.40878 | N43: =IF(rngEnabledGBP,IF(tblWork[[#This Row],[Порция]]>0,AVERAGE(INDEX(tblCUR[GBP],tblWork[[#This Row],[Начало порции]]):INDEX(tblCUR[GBP],tblWork[[#This Row],[Конец порции]])),""),NA()) -> 50.6775 | O43: =IF(rngEnabledUSD,IF(tblWork[[#This Row],[Порция]]>0,AVERAGE(INDEX(tblCUR[USD],tblWork[[#This Row],[Начало порции]]):INDEX(tblCUR[USD],tblWork[[#This Row],[Конец порции]])),""),NA()) -> 28.49574
H44: 42 | I44: =IF(tblWork[[#This Row],[Строка]]<=rngWindowNums,tblWork[[#This Row],[Строка]],) -> 42 | J44: =IF(tblWork[[#This Row],[Порция]]>0,1+(tblWork[[#This Row],[Порция]]-1)*rngPortionSize,"") -> 206 | K44: =IF(tblWork[[#This Row],[Порция]]>0,tblWork[[#This Row],[Начало порции]]+rngPortionSize-1,"") -> 210 | L44: =IF(tblWork[[#This Row],[Порция]]>0,INDEX(tblCUR[],tblWork[[#This Row],[Начало порции]],1),"") -> 2005-11-02 | M44: =IF(rngEnabledEUR,IF(tblWork[[#This Row],[Порция]]>0,AVERAGE(INDEX(tblCUR[EUR],tblWork[[#This Row],[Начало порции]]):INDEX(tblCUR[EUR],tblWork[[#This Row],[Конец порции]])),""),NA()) -> 34.16974 | N44: =IF(rngEnabledGBP,IF(tblWork[[#This Row],[Порция]]>0,AVERAGE(INDEX(tblCUR[GBP],tblWork[[#This Row],[Начало порции]]):INDEX(tblCUR[GBP],tblWork[[#This Row],[Конец порции]])),""),NA()) -> 50.43982 | O44: =IF(rngEnabledUSD,IF(tblWork[[#This Row],[Порция]]>0,AVERAGE(INDEX(tblCUR[USD],tblWork[[#This Row],[Начало порции]]):INDEX(tblCUR[USD],tblWork[[#This Row],[Конец порции]])),""),NA()) -> 28.66282
H45: 43 | I45: =IF(tblWork[[#This Row],[Строка]]<=rngWindowNums,tblWork[[#This Row],[Строка]],) -> 43 | J45: =IF(tblWork[[#This Row],[Порция]]>0,1+(tblWork[[#This Row],[Порция]]-1)*rngPortionSize,"") -> 211 | K45: =IF(tblWork[[#This Row],[Порция]]>0,tblWork[[#This Row],[Начало порции]]+rngPortionSize-1,"") -> 215 | L45: =IF(tblWork[[#This Row],[Порция]]>0,INDEX(tblCUR[],tblWork[[#This Row],[Начало порции]],1),"") -> 2005-11-10 | M45: =IF(rngEnabledEUR,IF(tblWork[[#This Row],[Порция]]>0,AVERAGE(INDEX(tblCUR[EUR],tblWork[[#This Row],[Начало порции]]):INDEX(tblCUR[EUR],tblWork[[#This Row],[Конец порции]])),""),NA()) -> 33.85192 | N45: =IF(rngEnabledGBP,IF(tblWork[[#This Row],[Порция]]>0,AVERAGE(INDEX(tblCUR[GBP],tblWork[[#This Row],[Начало порции]]):INDEX(tblCUR[GBP],tblWork[[#This Row],[Конец порции]])),""),NA()) -> 50.2505 | O45: =IF(rngEnabledUSD,IF(tblWork[[#This Row],[Порция]]>0,AVERAGE(INDEX(tblCUR[USD],tblWork[[#This Row],[Начало порции]]):INDEX(tblCUR[USD],tblWork[[#This Row],[Конец порции]])),""),NA()) -> 28.83916
H46: 44 | I46: =IF(tblWork[[#This Row],[Строка]]<=rngWindowNums,tblWork[[#This Row],[Строка]],) -> 44 | J46: =IF(tblWork[[#This Row],[Порция]]>0,1+(tblWork[[#This Row],[Порция]]-1)*rngPortionSize,"") -> 216 | K46: =IF(tblWork[[#This Row],[Порция]]>0,tblWork[[#This Row],[Начало порции]]+rngPortionSize-1,"") -> 220 | L46: =IF(tblWork[[#This Row],[Порция]]>0,INDEX(tblCUR[],tblWork[[#This Row],[Начало порции]],1),"") -> 2005-11-17 | M46: =IF(rngEnabledEUR,IF(tblWork[[#This Row],[Порция]]>0,AVERAGE(INDEX(tblCUR[EUR],tblWork[[#This Row],[Начало порции]]):INDEX(tblCUR[EUR],tblWork[[#This Row],[Конец порции]])),""),NA()) -> 33.78928 | N46: =IF(rngEnabledGBP,IF(tblWork[[#This Row],[Порция]]>0,AVERAGE(INDEX(tblCUR[GBP],tblWork[[#This Row],[Начало порции]]):INDEX(tblCUR[GBP],tblWork[[#This Row],[Конец порции]])),""),NA()) -> 49.61806 | O46: =IF(rngEnabledUSD,IF(tblWork[[#This Row],[Порция]]>0,AVERAGE(INDEX(tblCUR[USD],tblWork[[#This Row],[Начало порции]]):INDEX(tblCUR[USD],tblWork[[#This Row],[Конец порции]])),""),NA()) -> 28.82858
H47: 45 | I47: =IF(tblWork[[#This Row],[Строка]]<=rngWindowNums,tblWork[[#This Row],[Строка]],) -> 45 | J47: =IF(tblWork[[#This Row],[Порция]]>0,1+(tblWork[[#This Row],[Порция]]-1)*rngPortionSize,"") -> 221 | K47: =IF(tblWork[[#This Row],[Порция]]>0,tblWork[[#This Row],[Начало порции]]+rngPortionSize-1,"") -> 225 | L47: =IF(tblWork[[#This Row],[Порция]]>0,INDEX(tblCUR[],tblWork[[#This Row],[Начало порции]],1),"") -> 2005-11-24 | M47: =IF(rngEnabledEUR,IF(tblWork[[#This Row],[Порция]]>0,AVERAGE(INDEX(tblCUR[EUR],tblWork[[#This Row],[Начало порции]]):INDEX(tblCUR[EUR],tblWork[[#This Row],[Конец порции]])),""),NA()) -> 33.90596 | N47: =IF(rngEnabledGBP,IF(tblWork[[#This Row],[Порция]]>0,AVERAGE(INDEX(tblCUR[GBP],tblWork[[#This Row],[Начало порции]]):INDEX(tblCUR[GBP],tblWork[[#This Row],[Конец порции]])),""),NA()) -> 49.51058 | O47: =IF(rngEnabledUSD,IF(tblWork[[#This Row],[Порция]]>0,AVERAGE(INDEX(tblCUR[USD],tblWork[[#This Row],[Начало порции]]):INDEX(tblCUR[USD],tblWork[[#This Row],[Конец порции]])),""),NA()) -> 28.77166
H48: 46 | I48: =IF(tblWork[[#This Row],[Строка]]<=rngWindowNums,tblWork[[#This Row],[Строка]],) -> 46 | J48: =IF(tblWork[[#This Row],[Порция]]>0,1+(tblWork[[#This Row],[Порция]]-1)*rngPortionSize,"") -> 226 | K48: =IF(tblWork[[#This Row],[Порция]]>0,tblWork[[#This Row],[Начало порции]]+rngPortionSize-1,"") -> 230 | L48: =IF(tblWork[[#This Row],[Порция]]>0,INDEX(tblCUR[],tblWork[[#This Row],[Начало порции]],1),"") -> 2005-12-01 | M48: =IF(rngEnabledEUR,IF(tblWork[[#This Row],[Порция]]>0,AVERAGE(INDEX(tblCUR[EUR],tblWork[[#This Row],[Начало порции]]):INDEX(tblCUR[EUR],tblWork[[#This Row],[Конец порции]])),""),NA()) -> 33.95764 | N48: =IF(rngEnabledGBP,IF(tblWork[[#This Row],[Порция]]>0,AVERAGE(INDEX(tblCUR[GBP],tblWork[[#This Row],[Начало порции]]):INDEX(tblCUR[GBP],tblWork[[#This Row],[Конец порции]])),""),NA()) -> 49.988 | O48: =IF(rngEnabledUSD,IF(tblWork[[#This Row],[Порция]]>0,AVERAGE(INDEX(tblCUR[USD],tblWork[[#This Row],[Начало порции]]):INDEX(tblCUR[USD],tblWork[[#This Row],[Конец порции]])),""),NA()) -> 28.89398
H49: 47 | I49: =IF(tblWork[[#This Row],[Строка]]<=rngWindowNums,tblWork[[#This Row],[Строка]],) -> 47 | J49: =IF(tblWork[[#This Row],[Порция]]>0,1+(tblWork[[#This Row],[Порция]]-1)*rngPortionSize,"") -> 231 | K49: =IF(tblWork[[#This Row],[Порция]]>0,tblWork[[#This Row],[Начало порции]]+rngPortionSize-1,"") -> 235 | L49: =IF(tblWork[[#This Row],[Порция]]>0,INDEX(tblCUR[],tblWork[[#This Row],[Начало порции]],1),"") -> 2005-12-08 | M49: =IF(rngEnabledEUR,IF(tblWork[[#This Row],[Порция]]>0,AVERAGE(INDEX(tblCUR[EUR],tblWork[[#This Row],[Начало порции]]):INDEX(tblCUR[EUR],tblWork[[#This Row],[Конец порции]])),""),NA()) -> 34.1227 | N49: =IF(rngEnabledGBP,IF(tblWork[[#This Row],[Порция]]>0,AVERAGE(INDEX(tblCUR[GBP],tblWork[[#This Row],[Начало порции]]):INDEX(tblCUR[GBP],tblWork[[#This Row],[Конец порции]])),""),NA()) -> 50.55976 | O49: =IF(rngEnabledUSD,IF(tblWork[[#This Row],[Порция]]>0,AVERAGE(INDEX(tblCUR[USD],tblWork[[#This Row],[Начало порции]]):INDEX(tblCUR[USD],tblWork[[#This Row],[Конец порции]])),""),NA()) -> 28.88048
H50: 48 | I50: =IF(tblWork[[#This Row],[Строка]]<=rngWindowNums,tblWork[[#This Row],[Строка]],) -> 48 | J50: =IF(tblWork[[#This Row],[Порция]]>0,1+(tblWork[[#This Row],[Порция]]-1)*rngPortionSize,"") -> 236 | K50: =IF(tblWork[[#This Row],[Порция]]>0,tblWork[[#This Row],[Начало порции]]+rngPortionSize-1,"") -> 240 | L50: =IF(tblWork[[#This Row],[Порция]]>0,INDEX(tblCUR[],tblWork[[#This Row],[Начало порции]],1),"") -> 2005-12-15 | M50: =IF(rngEnabledEUR,IF(tblWork[[#This Row],[Порция]]>0,AVERAGE(INDEX(tblCUR[EUR],tblWork[[#This Row],[Начало порции]]):INDEX(tblCUR[EUR],tblWork[[#This Row],[Конец порции]])),""),NA()) -> 34.39374 | N50: =IF(rngEnabledGBP,IF(tblWork[[#This Row],[Порция]]>0,AVERAGE(INDEX(tblCUR[GBP],tblWork[[#This Row],[Начало порции]]):INDEX(tblCUR[GBP],tblWork[[#This Row],[Конец порции]])),""),NA()) -> 50.67638 | O50: =IF(rngEnabledUSD,IF(tblWork[[#This Row],[Порция]]>0,AVERAGE(INDEX(tblCUR[USD],tblWork[[#This Row],[Начало порции]]):INDEX(tblCUR[USD],tblWork[[#This Row],[Конец порции]])),""),NA()) -> 28.66148
H51: 49 | I51: =IF(tblWork[[#This Row],[Строка]]<=rngWindowNums,tblWork[[#This Row],[Строка]],) -> 49 | J51: =IF(tblWork[[#This Row],[Порция]]>0,1+(tblWork[[#This Row],[Порция]]-1)*rngPortionSize,"") -> 241 | K51: =IF(tblWork[[#This Row],[Порция]]>0,tblWork[[#This Row],[Начало порции]]+rngPortionSize-1,"") -> 245 | L51: =IF(tblWork[[#This Row],[Порция]]>0,INDEX(tblCUR[],tblWork[[#This Row],[Начало порции]],1),"") -> 2005-12-22 | M51: =IF(rngEnabledEUR,IF(tblWork[[#This Row],[Порция]]>0,AVERAGE(INDEX(tblCUR[EUR],tblWork[[#This Row],[Начало порции]]):INDEX(tblCUR[EUR],tblWork[[#This Row],[Конец порции]])),""),NA()) -> 34.1502 | N51: =IF(rngEnabledGBP,IF(tblWork[[#This Row],[Порция]]>0,AVERAGE(INDEX(tblCUR[GBP],tblWork[[#This Row],[Начало порции]]):INDEX(tblCUR[GBP],tblWork[[#This Row],[Конец порции]])),""),NA()) -> 50.14578 | O51: =IF(rngEnabledUSD,IF(tblWork[[#This Row],[Порция]]>0,AVERAGE(INDEX(tblCUR[USD],tblWork[[#This Row],[Начало порции]]):INDEX(tblCUR[USD],tblWork[[#This Row],[Конец порции]])),""),NA()) -> 28.80128
H52: 50 | I52: =IF(tblWork[[#This Row],[Строка]]<=rngWindowNums,tblWork[[#This Row],[Строка]],) -> 50 | J52: =IF(tblWork[[#This Row],[Порция]]>0,1+(tblWork[[#This Row],[Порция]]-1)*rngPortionSize,"") -> 246 | K52: =IF(tblWork[[#This Row],[Порция]]>0,tblWork[[#This Row],[Начало порции]]+rngPortionSize-1,"") -> 250 | L52: =IF(tblWork[[#This Row],[Порция]]>0,INDEX(tblCUR[],tblWork[[#This Row],[Начало порции]],1),"") -> 2005-12-29 | M52: =IF(rngEnabledEUR,IF(tblWork[[#This Row],[Порция]]>0,AVERAGE(INDEX(tblCUR[EUR],tblWork[[#This Row],[Начало порции]]):INDEX(tblCUR[EUR],tblWork[[#This Row],[Конец порции]])),""),NA()) -> 34.25712 | N52: =IF(rngEnabledGBP,IF(tblWork[[#This Row],[Порция]]>0,AVERAGE(INDEX(tblCUR[GBP],tblWork[[#This Row],[Начало порции]]):INDEX(tblCUR[GBP],tblWork[[#This Row],[Конец порции]])),""),NA()) -> 49.91934 | O52: =IF(rngEnabledUSD,IF(tblWork[[#This Row],[Порция]]>0,AVERAGE(INDEX(tblCUR[USD],tblWork[[#This Row],[Начало порции]]):INDEX(tblCUR[USD],tblWork[[#This Row],[Конец порции]])),""),NA()) -> 28.65704
H53: 51 | I53: =IF(tblWork[[#This Row],[Строка]]<=rngWindowNums,tblWork[[#This Row],[Строка]],) -> 51 | J53: =IF(tblWork[[#This Row],[Порция]]>0,1+(tblWork[[#This Row],[Порция]]-1)*rngPortionSize,"") -> 251 | K53: =IF(tblWork[[#This Row],[Порция]]>0,tblWork[[#This Row],[Начало порции]]+rngPortionSize-1,"") -> 255 | L53: =IF(tblWork[[#This Row],[Порция]]>0,INDEX(tblCUR[],tblWork[[#This Row],[Начало порции]],1),"") -> 2006-01-13 | M53: =IF(rngEnabledEUR,IF(tblWork[[#This Row],[Порция]]>0,AVERAGE(INDEX(tblCUR[EUR],tblWork[[#This Row],[Начало порции]]):INDEX(tblCUR[EUR],tblWork[[#This Row],[Конец порции]])),""),NA()) -> 34.3539 | N53: =IF(rngEnabledGBP,IF(tblWork[[#This Row],[Порция]]>0,AVERAGE(INDEX(tblCUR[GBP],tblWork[[#This Row],[Начало порции]]):INDEX(tblCUR[GBP],tblWork[[#This Row],[Конец порции]])),""),NA()) -> 50.09874 | O53: =IF(rngEnabledUSD,IF(tblWork[[#This Row],[Порция]]>0,AVERAGE(INDEX(tblCUR[USD],tblWork[[#This Row],[Начало порции]]):INDEX(tblCUR[USD],tblWork[[#This Row],[Конец порции]])),""),NA()) -> 28.34866
H54: 52 | I54: =IF(tblWork[[#This Row],[Строка]]<=rngWindowNums,tblWork[[#This Row],[Строка]],) -> 52 | J54: =IF(tblWork[[#This Row],[Порция]]>0,1+(tblWork[[#This Row],[Порция]]-1)*rngPortionSize,"") -> 256 | K54: =IF(tblWork[[#This Row],[Порция]]>0,tblWork[[#This Row],[Начало порции]]+rngPortionSize-1,"") -> 260 | L54: =IF(tblWork[[#This Row],[Порция]]>0,INDEX(tblCUR[],tblWork[[#This Row],[Начало порции]],1),"") -> 2006-01-20 | M54: =IF(rngEnabledEUR,IF(tblWork[[#This Row],[Порция]]>0,AVERAGE(INDEX(tblCUR[EUR],tblWork[[#This Row],[Начало порции]]):INDEX(tblCUR[EUR],tblWork[[#This Row],[Конец порции]])),""),NA()) -> 34.28684 | N54: =IF(rngEnabledGBP,IF(tblWork[[#This Row],[Порция]]>0,AVERAGE(INDEX(tblCUR[GBP],tblWork[[#This Row],[Начало порции]]):INDEX(tblCUR[GBP],tblWork[[#This Row],[Конец порции]])),""),NA()) -> 49.85792 | O54: =IF(rngEnabledUSD,IF(tblWork[[#This Row],[Порция]]>0,AVERAGE(INDEX(tblCUR[USD],tblWork[[#This Row],[Начало порции]]):INDEX(tblCUR[USD],tblWork[[#This Row],[Конец порции]])),""),NA()) -> 28.11974
H55: 53 | I55: =IF(tblWork[[#This Row],[Строка]]<=rngWindowNums,tblWork[[#This Row],[Строка]],) -> 53 | J55: =IF(tblWork[[#This Row],[Порция]]>0,1+(tblWork[[#This Row],[Порция]]-1)*rngPortionSize,"") -> 261 | K55: =IF(tblWork[[#This Row],[Порция]]>0,tblWork[[#This Row],[Начало порции]]+rngPortionSize-1,"") -> 265 | L55: =IF(tblWork[[#This Row],[Порция]]>0,INDEX(tblCUR[],tblWork[[#This Row],[Начало порции]],1),"") -> 2006-01-27 | M55: =IF(rngEnabledEUR,IF(tblWork[[#This Row],[Порция]]>0,AVERAGE(INDEX(tblCUR[EUR],tblWork[[#This Row],[Начало порции]]):INDEX(tblCUR[EUR],tblWork[[#This Row],[Конец порции]])),""),NA()) -> 34.1382 | N55: =IF(rngEnabledGBP,IF(tblWork[[#This Row],[Порция]]>0,AVERAGE(INDEX(tblCUR[GBP],tblWork[[#This Row],[Начало порции]]):INDEX(tblCUR[GBP],tblWork[[#This Row],[Конец порции]])),""),NA()) -> 49.85614 | O55: =IF(rngEnabledUSD,IF(tblWork[[#This Row],[Порция]]>0,AVERAGE(INDEX(tblCUR[USD],tblWork[[#This Row],[Начало порции]]):INDEX(tblCUR[USD],tblWork[[#This Row],[Конец порции]])),""),NA()) -> 28.06984
H56: 54 | I56: =IF(tblWork[[#This Row],[Строка]]<=rngWindowNums,tblWork[[#This Row],[Строка]],) -> 54 | J56: =IF(tblWork[[#This Row],[Порция]]>0,1+(tblWork[[#This Row],[Порция]]-1)*rngPortionSize,"") -> 266 | K56: =IF(tblWork[[#This Row],[Порция]]>0,tblWork[[#This Row],[Начало порции]]+rngPortionSize-1,"") -> 270 | L56: =IF(tblWork[[#This Row],[Порция]]>0,INDEX(tblCUR[],tblWork[[#This Row],[Начало порции]],1),"") -> 2006-02-03 | M56: =IF(rngEnabledEUR,IF(tblWork[[#This Row],[Порция]]>0,AVERAGE(INDEX(tblCUR[EUR],tblWork[[#This Row],[Начало порции]]):INDEX(tblCUR[EUR],tblWork[[#This Row],[Конец порции]])),""),NA()) -> 33.92668 | N56: =IF(rngEnabledGBP,IF(tblWork[[#This Row],[Порция]]>0,AVERAGE(INDEX(tblCUR[GBP],tblWork[[#This Row],[Начало порции]]):INDEX(tblCUR[GBP],tblWork[[#This Row],[Конец порции]])),""),NA()) -> 49.68378 | O56: =IF(rngEnabledUSD,IF(tblWork[[#This Row],[Порция]]>0,AVERAGE(INDEX(tblCUR[USD],tblWork[[#This Row],[Начало порции]]):INDEX(tblCUR[USD],tblWork[[#This Row],[Конец порции]])),""),NA()) -> 28.22296
H57: 55 | I57: =IF(tblWork[[#This Row],[Строка]]<=rngWindowNums,tblWork[[#This Row],[Строка]],) -> 55 | J57: =IF(tblWork[[#This Row],[Порция]]>0,1+(tblWork[[#This Row],[Порция]]-1)*rngPortionSize,"") -> 271 | K57: =IF(tblWork[[#This Row],[Порция]]>0,tblWork[[#This Row],[Начало порции]]+rngPortionSize-1,"") -> 275 | L57: =IF(tblWork[[#This Row],[Порция]]>0,INDEX(tblCUR[],tblWork[[#This Row],[Начало порции]],1),"") -> 2006-02-10 | M57: =IF(rngEnabledEUR,IF(tblWork[[#This Row],[Порция]]>0,AVERAGE(INDEX(tblCUR[EUR],tblWork[[#This Row],[Начало порции]]):INDEX(tblCUR[EUR],tblWork[[#This Row],[Конец порции]])),""),NA()) -> 33.6924 | N57: =IF(rngEnabledGBP,IF(tblWork[[#This Row],[Порция]]>0,AVERAGE(INDEX(tblCUR[GBP],tblWork[[#This Row],[Начало порции]]):INDEX(tblCUR[GBP],tblWork[[#This Row],[Конец порции]])),""),NA()) -> 49.15762 | O57: =IF(rngEnabledUSD,IF(tblWork[[#This Row],[Порция]]>0,AVERAGE(INDEX(tblCUR[USD],tblWork[[#This Row],[Начало порции]]):INDEX(tblCUR[USD],tblWork[[#This Row],[Конец порции]])),""),NA()) -> 28.22228
H58: 56 | I58: =IF(tblWork[[#This Row],[Строка]]<=rngWindowNums,tblWork[[#This Row],[Строка]],) -> 56 | J58: =IF(tblWork[[#This Row],[Порция]]>0,1+(tblWork[[#This Row],[Порция]]-1)*rngPortionSize,"") -> 276 | K58: =IF(tblWork[[#This Row],[Порция]]>0,tblWork[[#This Row],[Начало порции]]+rngPortionSize-1,"") -> 280 | L58: =IF(tblWork[[#This Row],[Порция]]>0,INDEX(tblCUR[],tblWork[[#This Row],[Начало порции]],1),"") -> 2006-02-17 | M58: =IF(rngEnabledEUR,IF(tblWork[[#This Row],[Порция]]>0,AVERAGE(INDEX(tblCUR[EUR],tblWork[[#This Row],[Начало порции]]):INDEX(tblCUR[EUR],tblWork[[#This Row],[Конец порции]])),""),NA()) -> 33.5753 | N58: =IF(rngEnabledGBP,IF(tblWork[[#This Row],[Порция]]>0,AVERAGE(INDEX(tblCUR[GBP],tblWork[[#This Row],[Начало порции]]):INDEX(tblCUR[GBP],tblWork[[#This Row],[Конец порции]])),""),NA()) -> 49.10674 | O58: =IF(rngEnabledUSD,IF(tblWork[[#This Row],[Порция]]>0,AVERAGE(INDEX(tblCUR[USD],tblWork[[#This Row],[Начало порции]]):INDEX(tblCUR[USD],tblWork[[#This Row],[Конец порции]])),""),NA()) -> 28.19186
H59: 57 | I59: =IF(tblWork[[#This Row],[Строка]]<=rngWindowNums,tblWork[[#This Row],[Строка]],) -> 57 | J59: =IF(tblWork[[#This Row],[Порция]]>0,1+(tblWork[[#This Row],[Порция]]-1)*rngPortionSize,"") -> 281 | K59: =IF(tblWork[[#This Row],[Порция]]>0,tblWork[[#This Row],[Начало порции]]+rngPortionSize-1,"") -> 285 | L59: =IF(tblWork[[#This Row],[Порция]]>0,INDEX(tblCUR[],tblWork[[#This Row],[Начало порции]],1),"") -> 2006-02-27 | M59: =IF(rngEnabledEUR,IF(tblWork[[#This Row],[Порция]]>0,AVERAGE(INDEX(tblCUR[EUR],tblWork[[#This Row],[Начало порции]]):INDEX(tblCUR[EUR],tblWork[[#This Row],[Конец порции]])),""),NA()) -> 33.39676 | N59: =IF(rngEnabledGBP,IF(tblWork[[#This Row],[Порция]]>0,AVERAGE(INDEX(tblCUR[GBP],tblWork[[#This Row],[Начало порции]]):INDEX(tblCUR[GBP],tblWork[[#This Row],[Конец порции]])),""),NA()) -> 49.06264 | O59: =IF(rngEnabledUSD,IF(tblWork[[#This Row],[Порция]]>0,AVERAGE(INDEX(tblCUR[USD],tblWork[[#This Row],[Начало порции]]):INDEX(tblCUR[USD],tblWork[[#This Row],[Конец порции]])),""),NA()) -> 28.09016
H60: 58 | I60: =IF(tblWork[[#This Row],[Строка]]<=rngWindowNums,tblWork[[#This Row],[Строка]],) -> 58 | J60: =IF(tblWork[[#This Row],[Порция]]>0,1+(tblWork[[#This Row],[Порция]]-1)*rngPortionSize,"") -> 286 | K60: =IF(tblWork[[#This Row],[Порция]]>0,tblWork[[#This Row],[Начало порции]]+rngPortionSize-1,"") -> 290 | L60: =IF(tblWork[[#This Row],[Порция]]>0,INDEX(tblCUR[],tblWork[[#This Row],[Начало порции]],1),"") -> 2006-03-04 | M60: =IF(rngEnabledEUR,IF(tblWork[[#This Row],[Порция]]>0,AVERAGE(INDEX(tblCUR[EUR],tblWork[[#This Row],[Начало порции]]):INDEX(tblCUR[EUR],tblWork[[#This Row],[Конец порции]])),""),NA()) -> 33.50714 | N60: =IF(rngEnabledGBP,IF(tblWork[[#This Row],[Порция]]>0,AVERAGE(INDEX(tblCUR[GBP],tblWork[[#This Row],[Начало порции]]):INDEX(tblCUR[GBP],tblWork[[#This Row],[Конец порции]])),""),NA()) -> 48.84084 | O60: =IF(rngEnabledUSD,IF(tblWork[[#This Row],[Порция]]>0,AVERAGE(INDEX(tblCUR[USD],tblWork[[#This Row],[Начало порции]]):INDEX(tblCUR[USD],tblWork[[#This Row],[Конец порции]])),""),NA()) -> 27.96526
H61: 59 | I61: =IF(tblWork[[#This Row],[Строка]]<=rngWindowNums,tblWork[[#This Row],[Строка]],) -> 59 | J61: =IF(tblWork[[#This Row],[Порция]]>0,1+(tblWork[[#This Row],[Порция]]-1)*rngPortionSize,"") -> 291 | K61: =IF(tblWork[[#This Row],[Порция]]>0,tblWork[[#This Row],[Начало порции]]+rngPortionSize-1,"") -> 295 | L61: =IF(tblWork[[#This Row],[Порция]]>0,INDEX(tblCUR[],tblWork[[#This Row],[Начало порции]],1),"") -> 2006-03-14 | M61: =IF(rngEnabledEUR,IF(tblWork[[#This Row],[Порция]]>0,AVERAGE(INDEX(tblCUR[EUR],tblWork[[#This Row],[Начало порции]]):INDEX(tblCUR[EUR],tblWork[[#This Row],[Конец порции]])),""),NA()) -> 33.53852 | N61: =IF(rngEnabledGBP,IF(tblWork[[#This Row],[Порция]]>0,AVERAGE(INDEX(tblCUR[GBP],tblWork[[#This Row],[Начало порции]]):INDEX(tblCUR[GBP],tblWork[[#This Row],[Конец порции]])),""),NA()) -> 48.54558 | O61: =IF(rngEnabledUSD,IF(tblWork[[#This Row],[Порция]]>0,AVERAGE(INDEX(tblCUR[USD],tblWork[[#This Row],[Начало порции]]):INDEX(tblCUR[USD],tblWork[[#This Row],[Конец порции]])),""),NA()) -> 27.87278
H62: 60 | I62: =IF(tblWork[[#This Row],[Строка]]<=rngWindowNums,tblWork[[#This Row],[Строка]],) -> 60 | J62: =IF(tblWork[[#This Row],[Порция]]>0,1+(tblWork[[#This Row],[Порция]]-1)*rngPortionSize,"") -> 296 | K62: =IF(tblWork[[#This Row],[Порция]]>0,tblWork[[#This Row],[Начало порции]]+rngPortionSize-1,"") -> 300 | L62: =IF(tblWork[[#This Row],[Порция]]>0,INDEX(tblCUR[],tblWork[[#This Row],[Начало порции]],1),"") -> 2006-03-21 | M62: =IF(rngEnabledEUR,IF(tblWork[[#This Row],[Порция]]>0,AVERAGE(INDEX(tblCUR[EUR],tblWork[[#This Row],[Начало порции]]):INDEX(tblCUR[EUR],tblWork[[#This Row],[Конец порции]])),""),NA()) -> 33.53478 | N62: =IF(rngEnabledGBP,IF(tblWork[[#This Row],[Порция]]>0,AVERAGE(INDEX(tblCUR[GBP],tblWork[[#This Row],[Начало порции]]):INDEX(tblCUR[GBP],tblWork[[#This Row],[Конец порции]])),""),NA()) -> 48.48128 | O62: =IF(rngEnabledUSD,IF(tblWork[[#This Row],[Порция]]>0,AVERAGE(INDEX(tblCUR[USD],tblWork[[#This Row],[Начало порции]]):INDEX(tblCUR[USD],tblWork[[#This Row],[Конец порции]])),""),NA()) -> 27.7435
H63: 61 | I63: =IF(tblWork[[#This Row],[Строка]]<=rngWindowNums,tblWork[[#This Row],[Строка]],) -> 61 | J63: =IF(tblWork[[#This Row],[Порция]]>0,1+(tblWork[[#This Row],[Порция]]-1)*rngPortionSize,"") -> 301 | K63: =IF(tblWork[[#This Row],[Порция]]>0,tblWork[[#This Row],[Начало порции]]+rngPortionSize-1,"") -> 305 | L63: =IF(tblWork[[#This Row],[Порция]]>0,INDEX(tblCUR[],tblWork[[#This Row],[Начало порции]],1),"") -> 2006-03-28 | M63: =IF(rngEnabledEUR,IF(tblWork[[#This Row],[Порция]]>0,AVERAGE(INDEX(tblCUR[EUR],tblWork[[#This Row],[Начало порции]]):INDEX(tblCUR[EUR],tblWork[[#This Row],[Конец порции]])),""),NA()) -> 33.46672 | N63: =IF(rngEnabledGBP,IF(tblWork[[#This Row],[Порция]]>0,AVERAGE(INDEX(tblCUR[GBP],tblWork[[#This Row],[Начало порции]]):INDEX(tblCUR[GBP],tblWork[[#This Row],[Конец порции]])),""),NA()) -> 48.434 | O63: =IF(rngEnabledUSD,IF(tblWork[[#This Row],[Порция]]>0,AVERAGE(INDEX(tblCUR[USD],tblWork[[#This Row],[Начало порции]]):INDEX(tblCUR[USD],tblWork[[#This Row],[Конец порции]])),""),NA()) -> 27.76828
H64: 62 | I64: =IF(tblWork[[#This Row],[Строка]]<=rngWindowNums,tblWork[[#This Row],[Строка]],) -> 62 | J64: =IF(tblWork[[#This Row],[Порция]]>0,1+(tblWork[[#This Row],[Порция]]-1)*rngPortionSize,"") -> 306 | K64: =IF(tblWork[[#This Row],[Порция]]>0,tblWork[[#This Row],[Начало порции]]+rngPortionSize-1,"") -> 310 | L64: =IF(tblWork[[#This Row],[Порция]]>0,INDEX(tblCUR[],tblWork[[#This Row],[Начало порции]],1),"") -> 2006-04-04 | M64: =IF(rngEnabledEUR,IF(tblWork[[#This Row],[Порция]]>0,AVERAGE(INDEX(tblCUR[EUR],tblWork[[#This Row],[Начало порции]]):INDEX(tblCUR[EUR],tblWork[[#This Row],[Конец порции]])),""),NA()) -> 33.68432 | N64: =IF(rngEnabledGBP,IF(tblWork[[#This Row],[Порция]]>0,AVERAGE(INDEX(tblCUR[GBP],tblWork[[#This Row],[Начало порции]]):INDEX(tblCUR[GBP],tblWork[[#This Row],[Конец порции]])),""),NA()) -> 48.24866 | O64: =IF(rngEnabledUSD,IF(tblWork[[#This Row],[Порция]]>0,AVERAGE(INDEX(tblCUR[USD],tblWork[[#This Row],[Начало порции]]):INDEX(tblCUR[USD],tblWork[[#This Row],[Конец порции]])),""),NA()) -> 27.63338
H65: 63 | I65: =IF(tblWork[[#This Row],[Строка]]<=rngWindowNums,tblWork[[#This Row],[Строка]],) -> 63 | J65: =IF(tblWork[[#This Row],[Порция]]>0,1+(tblWork[[#This Row],[Порция]]-1)*rngPortionSize,"") -> 311 | K65: =IF(tblWork[[#This Row],[Порция]]>0,tblWork[[#This Row],[Начало порции]]+rngPortionSize-1,"") -> 315 | L65: =IF(tblWork[[#This Row],[Порция]]>0,INDEX(tblCUR[],tblWork[[#This Row],[Начало порции]],1),"") -> 2006-04-11 | M65: =IF(rngEnabledEUR,IF(tblWork[[#This Row],[Порция]]>0,AVERAGE(INDEX(tblCUR[EUR],tblWork[[#This Row],[Начало порции]]):INDEX(tblCUR[EUR],tblWork[[#This Row],[Конец порции]])),""),NA()) -> 33.56508 | N65: =IF(rngEnabledGBP,IF(tblWork[[#This Row],[Порция]]>0,AVERAGE(INDEX(tblCUR[GBP],tblWork[[#This Row],[Начало порции]]):INDEX(tblCUR[GBP],tblWork[[#This Row],[Конец порции]])),""),NA()) -> 48.41744 | O65: =IF(rngEnabledUSD,IF(tblWork[[#This Row],[Порция]]>0,AVERAGE(INDEX(tblCUR[USD],tblWork[[#This Row],[Начало порции]]):INDEX(tblCUR[USD],tblWork[[#This Row],[Конец порции]])),""),NA()) -> 27.68988
H66: 64 | I66: =IF(tblWork[[#This Row],[Строка]]<=rngWindowNums,tblWork[[#This Row],[Строка]],) -> 64 | J66: =IF(tblWork[[#This Row],[Порция]]>0,1+(tblWork[[#This Row],[Порция]]-1)*rngPortionSize,"") -> 316 | K66: =IF(tblWork[[#This Row],[Порция]]>0,tblWork[[#This Row],[Начало порции]]+rngPortionSize-1,"") -> 320 | L66: =IF(tblWork[[#This Row],[Порция]]>0,INDEX(tblCUR[],tblWork[[#This Row],[Начало порции]],1),"") -> 2006-04-18 | M66: =IF(rngEnabledEUR,IF(tblWork[[#This Row],[Порция]]>0,AVERAGE(INDEX(tblCUR[EUR],tblWork[[#This Row],[Начало порции]]):INDEX(tblCUR[EUR],tblWork[[#This Row],[Конец порции]])),""),NA()) -> 33.81422 | N66: =IF(rngEnabledGBP,IF(tblWork[[#This Row],[Порция]]>0,AVERAGE(INDEX(tblCUR[GBP],tblWork[[#This Row],[Начало порции]]):INDEX(tblCUR[GBP],tblWork[[#This Row],[Конец порции]])),""),NA()) -> 48.88086 | O66: =IF(rngEnabledUSD,IF(tblWork[[#This Row],[Порция]]>0,AVERAGE(INDEX(tblCUR[USD],tblWork[[#This Row],[Начало порции]]):INDEX(tblCUR[USD],tblWork[[#This Row],[Конец порции]])),""),NA()) -> 27.5305
H67: 65 | I67: =IF(tblWork[[#This Row],[Строка]]<=rngWindowNums,tblWork[[#This Row],[Строка]],) -> 65 | J67: =IF(tblWork[[#This Row],[Порция]]>0,1+(tblWork[[#This Row],[Порция]]-1)*rngPortionSize,"") -> 321 | K67: =IF(tblWork[[#This Row],[Порция]]>0,tblWork[[#This Row],[Начало порции]]+rngPortionSize-1,"") -> 325 | L67: =IF(tblWork[[#This Row],[Порция]]>0,INDEX(tblCUR[],tblWork[[#This Row],[Начало порции]],1),"") -> 2006-04-25 | M67: =IF(rngEnabledEUR,IF(tblWork[[#This Row],[Порция]]>0,AVERAGE(INDEX(tblCUR[EUR],tblWork[[#This Row],[Начало порции]]):INDEX(tblCUR[EUR],tblWork[[#This Row],[Конец порции]])),""),NA()) -> 34.03382 | N67: =IF(rngEnabledGBP,IF(tblWork[[#This Row],[Порция]]>0,AVERAGE(INDEX(tblCUR[GBP],tblWork[[#This Row],[Начало порции]]):INDEX(tblCUR[GBP],tblWork[[#This Row],[Конец порции]])),""),NA()) -> 48.99598 | O67: =IF(rngEnabledUSD,IF(tblWork[[#This Row],[Порция]]>0,AVERAGE(INDEX(tblCUR[USD],tblWork[[#This Row],[Начало порции]]):INDEX(tblCUR[USD],tblWork[[#This Row],[Конец порции]])),""),NA()) -> 27.37712
H68: 66 | I68: =IF(tblWork[[#This Row],[Строка]]<=rngWindowNums,tblWork[[#This Row],[Строка]],) -> 66 | J68: =IF(tblWork[[#This Row],[Порция]]>0,1+(tblWork[[#This Row],[Порция]]-1)*rngPortionSize,"") -> 326 | K68: =IF(tblWork[[#This Row],[Порция]]>0,tblWork[[#This Row],[Начало порции]]+rngPortionSize-1,"") -> 330 | L68: =IF(tblWork[[#This Row],[Порция]]>0,INDEX(tblCUR[],tblWork[[#This Row],[Начало порции]],1),"") -> 2006-05-03 | M68: =IF(rngEnabledEUR,IF(tblWork[[#This Row],[Порция]]>0,AVERAGE(INDEX(tblCUR[EUR],tblWork[[#This Row],[Начало порции]]):INDEX(tblCUR[EUR],tblWork[[#This Row],[Конец порции]])),""),NA()) -> 34.35784 | N68: =IF(rngEnabledGBP,IF(tblWork[[#This Row],[Порция]]>0,AVERAGE(INDEX(tblCUR[GBP],tblWork[[#This Row],[Начало порции]]):INDEX(tblCUR[GBP],tblWork[[#This Row],[Конец порции]])),""),NA()) -> 50.0632 | O68: =IF(rngEnabledUSD,IF(tblWork[[#This Row],[Порция]]>0,AVERAGE(INDEX(tblCUR[USD],tblWork[[#This Row],[Начало порции]]):INDEX(tblCUR[USD],tblWork[[#This Row],[Конец порции]])),""),NA()) -> 27.16316
H69: 67 | I69: =IF(tblWork[[#This Row],[Строка]]<=rngWindowNums,tblWork[[#This Row],[Строка]],) -> 67 | J69: =IF(tblWork[[#This Row],[Порция]]>0,1+(tblWork[[#This Row],[Порция]]-1)*rngPortionSize,"") -> 331 | K69: =IF(tblWork[[#This Row],[Порция]]>0,tblWork[[#This Row],[Начало порции]]+rngPortionSize-1,"") -> 335 | L69: =IF(tblWork[[#This Row],[Порция]]>0,INDEX(tblCUR[],tblWork[[#This Row],[Начало порции]],1),"") -> 2006-05-11 | M69: =IF(rngEnabledEUR,IF(tblWork[[#This Row],[Порция]]>0,AVERAGE(INDEX(tblCUR[EUR],tblWork[[#This Row],[Начало порции]]):INDEX(tblCUR[EUR],tblWork[[#This Row],[Конец порции]])),""),NA()) -> 34.61266 | N69: =IF(rngEnabledGBP,IF(tblWork[[#This Row],[Порция]]>0,AVERAGE(INDEX(tblCUR[GBP],tblWork[[#This Row],[Начало порции]]):INDEX(tblCUR[GBP],tblWork[[#This Row],[Конец порции]])),""),NA()) -> 50.6922 | O69: =IF(rngEnabledUSD,IF(tblWork[[#This Row],[Порция]]>0,AVERAGE(INDEX(tblCUR[USD],tblWork[[#This Row],[Начало порции]]):INDEX(tblCUR[USD],tblWork[[#This Row],[Конец порции]])),""),NA()) -> 26.99882
H70: 68 | I70: =IF(tblWork[[#This Row],[Строка]]<=rngWindowNums,tblWork[[#This Row],[Строка]],) -> 68 | J70: =IF(tblWork[[#This Row],[Порция]]>0,1+(tblWork[[#This Row],[Порция]]-1)*rngPortionSize,"") -> 336 | K70: =IF(tblWork[[#This Row],[Порция]]>0,tblWork[[#This Row],[Начало порции]]+rngPortionSize-1,"") -> 340 | L70: =IF(tblWork[[#This Row],[Порция]]>0,INDEX(tblCUR[],tblWork[[#This Row],[Начало порции]],1),"") -> 2006-05-18 | M70: =IF(rngEnabledEUR,IF(tblWork[[#This Row],[Порция]]>0,AVERAGE(INDEX(tblCUR[EUR],tblWork[[#This Row],[Начало порции]]):INDEX(tblCUR[EUR],tblWork[[#This Row],[Конец порции]])),""),NA()) -> 34.5879 | N70: =IF(rngEnabledGBP,IF(tblWork[[#This Row],[Порция]]>0,AVERAGE(INDEX(tblCUR[GBP],tblWork[[#This Row],[Начало порции]]):INDEX(tblCUR[GBP],tblWork[[#This Row],[Конец порции]])),""),NA()) -> 50.90374 | O70: =IF(rngEnabledUSD,IF(tblWork[[#This Row],[Порция]]>0,AVERAGE(INDEX(tblCUR[USD],tblWork[[#This Row],[Начало порции]]):INDEX(tblCUR[USD],tblWork[[#This Row],[Конец порции]])),""),NA()) -> 27.0212
H71: 69 | I71: =IF(tblWork[[#This Row],[Строка]]<=rngWindowNums,tblWork[[#This Row],[Строка]],) -> 69 | J71: =IF(tblWork[[#This Row],[Порция]]>0,1+(tblWork[[#This Row],[Порция]]-1)*rngPortionSize,"") -> 341 | K71: =IF(tblWork[[#This Row],[Порция]]>0,tblWork[[#This Row],[Начало порции]]+rngPortionSize-1,"") -> 345 | L71: =IF(tblWork[[#This Row],[Порция]]>0,INDEX(tblCUR[],tblWork[[#This Row],[Начало порции]],1),"") -> 2006-05-25 | M71: =IF(rngEnabledEUR,IF(tblWork[[#This Row],[Порция]]>0,AVERAGE(INDEX(tblCUR[EUR],tblWork[[#This Row],[Начало порции]]):INDEX(tblCUR[EUR],tblWork[[#This Row],[Конец порции]])),""),NA()) -> 34.56038 | N71: =IF(rngEnabledGBP,IF(tblWork[[#This Row],[Порция]]>0,AVERAGE(INDEX(tblCUR[GBP],tblWork[[#This Row],[Начало порции]]):INDEX(tblCUR[GBP],tblWork[[#This Row],[Конец порции]])),""),NA()) -> 50.54726 | O71: =IF(rngEnabledUSD,IF(tblWork[[#This Row],[Порция]]>0,AVERAGE(INDEX(tblCUR[USD],tblWork[[#This Row],[Начало порции]]):INDEX(tblCUR[USD],tblWork[[#This Row],[Конец порции]])),""),NA()) -> 27.0278
H72: 70 | I72: =IF(tblWork[[#This Row],[Строка]]<=rngWindowNums,tblWork[[#This Row],[Строка]],) -> 70 | J72: =IF(tblWork[[#This Row],[Порция]]>0,1+(tblWork[[#This Row],[Порция]]-1)*rngPortionSize,"") -> 346 | K72: =IF(tblWork[[#This Row],[Порция]]>0,tblWork[[#This Row],[Начало порции]]+rngPortionSize-1,"") -> 350 | L72: =IF(tblWork[[#This Row],[Порция]]>0,INDEX(tblCUR[],tblWork[[#This Row],[Начало порции]],1),"") -> 2006-06-01 | M72: =IF(rngEnabledEUR,IF(tblWork[[#This Row],[Порция]]>0,AVERAGE(INDEX(tblCUR[EUR],tblWork[[#This Row],[Начало порции]]):INDEX(tblCUR[EUR],tblWork[[#This Row],[Конец порции]])),""),NA()) -> 34.5598 | N72: =IF(rngEnabledGBP,IF(tblWork[[#This Row],[Порция]]>0,AVERAGE(INDEX(tblCUR[GBP],tblWork[[#This Row],[Начало порции]]):INDEX(tblCUR[GBP],tblWork[[#This Row],[Конец порции]])),""),NA()) -> 50.35186 | O72: =IF(rngEnabledUSD,IF(tblWork[[#This Row],[Порция]]>0,AVERAGE(INDEX(tblCUR[USD],tblWork[[#This Row],[Начало порции]]):INDEX(tblCUR[USD],tblWork[[#This Row],[Конец порции]])),""),NA()) -> 26.86234
H73: 71 | I73: =IF(tblWork[[#This Row],[Строка]]<=rngWindowNums,tblWork[[#This Row],[Строка]],) -> 71 | J73: =IF(tblWork[[#This Row],[Порция]]>0,1+(tblWork[[#This Row],[Порция]]-1)*rngPortionSize,"") -> 351 | K73: =IF(tblWork[[#This Row],[Порция]]>0,tblWork[[#This Row],[Начало порции]]+rngPortionSize-1,"") -> 355 | L73: =IF(tblWork[[#This Row],[Порция]]>0,INDEX(tblCUR[],tblWork[[#This Row],[Начало порции]],1),"") -> 2006-06-08 | M73: =IF(rngEnabledEUR,IF(tblWork[[#This Row],[Порция]]>0,AVERAGE(INDEX(tblCUR[EUR],tblWork[[#This Row],[Начало порции]]):INDEX(tblCUR[EUR],tblWork[[#This Row],[Конец порции]])),""),NA()) -> 34.19516 | N73: =IF(rngEnabledGBP,IF(tblWork[[#This Row],[Порция]]>0,AVERAGE(INDEX(tblCUR[GBP],tblWork[[#This Row],[Начало порции]]):INDEX(tblCUR[GBP],tblWork[[#This Row],[Конец порции]])),""),NA()) -> 49.84214 | O73: =IF(rngEnabledUSD,IF(tblWork[[#This Row],[Порция]]>0,AVERAGE(INDEX(tblCUR[USD],tblWork[[#This Row],[Начало порции]]):INDEX(tblCUR[USD],tblWork[[#This Row],[Конец порции]])),""),NA()) -> 26.98386
H74: 72 | I74: =IF(tblWork[[#This Row],[Строка]]<=rngWindowNums,tblWork[[#This Row],[Строка]],) -> 72 | J74: =IF(tblWork[[#This Row],[Порция]]>0,1+(tblWork[[#This Row],[Порция]]-1)*rngPortionSize,"") -> 356 | K74: =IF(tblWork[[#This Row],[Порция]]>0,tblWork[[#This Row],[Начало порции]]+rngPortionSize-1,"") -> 360 | L74: =IF(tblWork[[#This Row],[Порция]]>0,INDEX(tblCUR[],tblWork[[#This Row],[Начало порции]],1),"") -> 2006-06-16 | M74: =IF(rngEnabledEUR,IF(tblWork[[#This Row],[Порция]]>0,AVERAGE(INDEX(tblCUR[EUR],tblWork[[#This Row],[Начало порции]]):INDEX(tblCUR[EUR],tblWork[[#This Row],[Конец порции]])),""),NA()) -> 34.0904 | N74: =IF(rngEnabledGBP,IF(tblWork[[#This Row],[Порция]]>0,AVERAGE(INDEX(tblCUR[GBP],tblWork[[#This Row],[Начало порции]]):INDEX(tblCUR[GBP],tblWork[[#This Row],[Конец порции]])),""),NA()) -> 49.90626 | O74: =IF(rngEnabledUSD,IF(tblWork[[#This Row],[Порция]]>0,AVERAGE(INDEX(tblCUR[USD],tblWork[[#This Row],[Начало порции]]):INDEX(tblCUR[USD],tblWork[[#This Row],[Конец порции]])),""),NA()) -> 27.0246
H75: 73 | I75: =IF(tblWork[[#This Row],[Строка]]<=rngWindowNums,tblWork[[#This Row],[Строка]],) -> 73 | J75: =IF(tblWork[[#This Row],[Порция]]>0,1+(tblWork[[#This Row],[Порция]]-1)*rngPortionSize,"") -> 361 | K75: =IF(tblWork[[#This Row],[Порция]]>0,tblWork[[#This Row],[Начало порции]]+rngPortionSize-1,"") -> 365 | L75: =IF(tblWork[[#This Row],[Порция]]>0,INDEX(tblCUR[],tblWork[[#This Row],[Начало порции]],1),"") -> 2006-06-23 | M75: =IF(rngEnabledEUR,IF(tblWork[[#This Row],[Порция]]>0,AVERAGE(INDEX(tblCUR[EUR],tblWork[[#This Row],[Начало порции]]):INDEX(tblCUR[EUR],tblWork[[#This Row],[Конец порции]])),""),NA()) -> 34.03836 | N75: =IF(rngEnabledGBP,IF(tblWork[[#This Row],[Порция]]>0,AVERAGE(INDEX(tblCUR[GBP],tblWork[[#This Row],[Начало порции]]):INDEX(tblCUR[GBP],tblWork[[#This Row],[Конец порции]])),""),NA()) -> 49.43424 | O75: =IF(rngEnabledUSD,IF(tblWork[[#This Row],[Порция]]>0,AVERAGE(INDEX(tblCUR[USD],tblWork[[#This Row],[Начало порции]]):INDEX(tblCUR[USD],tblWork[[#This Row],[Конец порции]])),""),NA()) -> 27.0439
H76: 74 | I76: =IF(tblWork[[#This Row],[Строка]]<=rngWindowNums,tblWork[[#This Row],[Строка]],) -> 74 | J76: =IF(tblWork[[#This Row],[Порция]]>0,1+(tblWork[[#This Row],[Порция]]-1)*rngPortionSize,"") -> 366 | K76: =IF(tblWork[[#This Row],[Порция]]>0,tblWork[[#This Row],[Начало порции]]+rngPortionSize-1,"") -> 370 | L76: =IF(tblWork[[#This Row],[Порция]]>0,INDEX(tblCUR[],tblWork[[#This Row],[Начало порции]],1),"") -> 2006-06-30 | M76: =IF(rngEnabledEUR,IF(tblWork[[#This Row],[Порция]]>0,AVERAGE(INDEX(tblCUR[EUR],tblWork[[#This Row],[Начало порции]]):INDEX(tblCUR[EUR],tblWork[[#This Row],[Конец порции]])),""),NA()) -> 34.26692 | N76: =IF(rngEnabledGBP,IF(tblWork[[#This Row],[Порция]]>0,AVERAGE(INDEX(tblCUR[GBP],tblWork[[#This Row],[Начало порции]]):INDEX(tblCUR[GBP],tblWork[[#This Row],[Конец порции]])),""),NA()) -> 49.45936 | O76: =IF(rngEnabledUSD,IF(tblWork[[#This Row],[Порция]]>0,AVERAGE(INDEX(tblCUR[USD],tblWork[[#This Row],[Начало порции]]):INDEX(tblCUR[USD],tblWork[[#This Row],[Конец порции]])),""),NA()) -> 26.91806
H77: 75 | I77: =IF(tblWork[[#This Row],[Строка]]<=rngWindowNums,tblWork[[#This Row],[Строка]],) -> 75 | J77: =IF(tblWork[[#This Row],[Порция]]>0,1+(tblWork[[#This Row],[Порция]]-1)*rngPortionSize,"") -> 371 | K77: =IF(tblWork[[#This Row],[Порция]]>0,tblWork[[#This Row],[Начало порции]]+rngPortionSize-1,"") -> 375 | L77: =IF(tblWork[[#This Row],[Порция]]>0,INDEX(tblCUR[],tblWork[[#This Row],[Начало порции]],1),"") -> 2006-07-07 | M77: =IF(rngEnabledEUR,IF(tblWork[[#This Row],[Порция]]>0,AVERAGE(INDEX(tblCUR[EUR],tblWork[[#This Row],[Начало порции]]):INDEX(tblCUR[EUR],tblWork[[#This Row],[Конец порции]])),""),NA()) -> 34.30508 | N77: =IF(rngEnabledGBP,IF(tblWork[[#This Row],[Порция]]>0,AVERAGE(INDEX(tblCUR[GBP],tblWork[[#This Row],[Начало порции]]):INDEX(tblCUR[GBP],tblWork[[#This Row],[Конец порции]])),""),NA()) -> 49.53372 | O77: =IF(rngEnabledUSD,IF(tblWork[[#This Row],[Порция]]>0,AVERAGE(INDEX(tblCUR[USD],tblWork[[#This Row],[Начало порции]]):INDEX(tblCUR[USD],tblWork[[#This Row],[Конец порции]])),""),NA()) -> 26.8849
H78: 76 | I78: =IF(tblWork[[#This Row],[Строка]]<=rngWindowNums,tblWork[[#This Row],[Строка]],) -> 76 | J78: =IF(tblWork[[#This Row],[Порция]]>0,1+(tblWork[[#This Row],[Порция]]-1)*rngPortionSize,"") -> 376 | K78: =IF(tblWork[[#This Row],[Порция]]>0,tblWork[[#This Row],[Начало порции]]+rngPortionSize-1,"") -> 380 | L78: =IF(tblWork[[#This Row],[Порция]]>0,INDEX(tblCUR[],tblWork[[#This Row],[Начало порции]],1),"") -> 2006-07-14 | M78: =IF(rngEnabledEUR,IF(tblWork[[#This Row],[Порция]]>0,AVERAGE(INDEX(tblCUR[EUR],tblWork[[#This Row],[Начало порции]]):INDEX(tblCUR[EUR],tblWork[[#This Row],[Конец порции]])),""),NA()) -> 34.01534 | N78: =IF(rngEnabledGBP,IF(tblWork[[#This Row],[Порция]]>0,AVERAGE(INDEX(tblCUR[GBP],tblWork[[#This Row],[Начало порции]]):INDEX(tblCUR[GBP],tblWork[[#This Row],[Конец порции]])),""),NA()) -> 49.4149 | O78: =IF(rngEnabledUSD,IF(tblWork[[#This Row],[Порция]]>0,AVERAGE(INDEX(tblCUR[USD],tblWork[[#This Row],[Начало порции]]):INDEX(tblCUR[USD],tblWork[[#This Row],[Конец порции]])),""),NA()) -> 26.9769
H79: 77 | I79: =IF(tblWork[[#This Row],[Строка]]<=rngWindowNums,tblWork[[#This Row],[Строка]],) -> 77 | J79: =IF(tblWork[[#This Row],[Порция]]>0,1+(tblWork[[#This Row],[Порция]]-1)*rngPortionSize,"") -> 381 | K79: =IF(tblWork[[#This Row],[Порция]]>0,tblWork[[#This Row],[Начало порции]]+rngPortionSize-1,"") -> 385 | L79: =IF(tblWork[[#This Row],[Порция]]>0,INDEX(tblCUR[],tblWork[[#This Row],[Начало порции]],1),"") -> 2006-07-21 | M79: =IF(rngEnabledEUR,IF(tblWork[[#This Row],[Порция]]>0,AVERAGE(INDEX(tblCUR[EUR],tblWork[[#This Row],[Начало порции]]):INDEX(tblCUR[EUR],tblWork[[#This Row],[Конец порции]])),""),NA()) -> 34.00442 | N79: =IF(rngEnabledGBP,IF(tblWork[[#This Row],[Порция]]>0,AVERAGE(INDEX(tblCUR[GBP],tblWork[[#This Row],[Начало порции]]):INDEX(tblCUR[GBP],tblWork[[#This Row],[Конец порции]])),""),NA()) -> 49.76822 | O79: =IF(rngEnabledUSD,IF(tblWork[[#This Row],[Порция]]>0,AVERAGE(INDEX(tblCUR[USD],tblWork[[#This Row],[Начало порции]]):INDEX(tblCUR[USD],tblWork[[#This Row],[Конец порции]])),""),NA()) -> 26.9394
H80: 78 | I80: =IF(tblWork[[#This Row],[Строка]]<=rngWindowNums,tblWork[[#This Row],[Строка]],) -> 78 | J80: =IF(tblWork[[#This Row],[Порция]]>0,1+(tblWork[[#This Row],[Порция]]-1)*rngPortionSize,"") -> 386 | K80: =IF(tblWork[[#This Row],[Порция]]>0,tblWork[[#This Row],[Начало порции]]+rngPortionSize-1,"") -> 390 | L80: =IF(tblWork[[#This Row],[Порция]]>0,INDEX(tblCUR[],tblWork[[#This Row],[Начало порции]],1),"") -> 2006-07-28 | M80: =IF(rngEnabledEUR,IF(tblWork[[#This Row],[Порция]]>0,AVERAGE(INDEX(tblCUR[EUR],tblWork[[#This Row],[Начало порции]]):INDEX(tblCUR[EUR],tblWork[[#This Row],[Конец порции]])),""),NA()) -> 34.1929 | N80: =IF(rngEnabledGBP,IF(tblWork[[#This Row],[Порция]]>0,AVERAGE(INDEX(tblCUR[GBP],tblWork[[#This Row],[Начало порции]]):INDEX(tblCUR[GBP],tblWork[[#This Row],[Конец порции]])),""),NA()) -> 50.0204 | O80: =IF(rngEnabledUSD,IF(tblWork[[#This Row],[Порция]]>0,AVERAGE(INDEX(tblCUR[USD],tblWork[[#This Row],[Начало порции]]):INDEX(tblCUR[USD],tblWork[[#This Row],[Конец порции]])),""),NA()) -> 26.82734
H81: 79 | I81: =IF(tblWork[[#This Row],[Строка]]<=rngWindowNums,tblWork[[#This Row],[Строка]],) -> 79 | J81: =IF(tblWork[[#This Row],[Порция]]>0,1+(tblWork[[#This Row],[Порция]]-1)*rngPortionSize,"") -> 391 | K81: =IF(tblWork[[#This Row],[Порция]]>0,tblWork[[#This Row],[Начало порции]]+rngPortionSize-1,"") -> 395 | L81: =IF(tblWork[[#This Row],[Порция]]>0,INDEX(tblCUR[],tblWork[[#This Row],[Начало порции]],1),"") -> 2006-08-04 | M81: =IF(rngEnabledEUR,IF(tblWork[[#This Row],[Порция]]>0,AVERAGE(INDEX(tblCUR[EUR],tblWork[[#This Row],[Начало порции]]):INDEX(tblCUR[EUR],tblWork[[#This Row],[Конец порции]])),""),NA()) -> 34.2846 | N81: =IF(rngEnabledGBP,IF(tblWork[[#This Row],[Порция]]>0,AVERAGE(INDEX(tblCUR[GBP],tblWork[[#This Row],[Начало порции]]):INDEX(tblCUR[GBP],tblWork[[#This Row],[Конец порции]])),""),NA()) -> 50.71518 | O81: =IF(rngEnabledUSD,IF(tblWork[[#This Row],[Порция]]>0,AVERAGE(INDEX(tblCUR[USD],tblWork[[#This Row],[Начало порции]]):INDEX(tblCUR[USD],tblWork[[#This Row],[Конец порции]])),""),NA()) -> 26.74902
H82: 80 | I82: =IF(tblWork[[#This Row],[Строка]]<=rngWindowNums,tblWork[[#This Row],[Строка]],) -> 80 | J82: =IF(tblWork[[#This Row],[Порция]]>0,1+(tblWork[[#This Row],[Порция]]-1)*rngPortionSize,"") -> 396 | K82: =IF(tblWork[[#This Row],[Порция]]>0,tblWork[[#This Row],[Начало порции]]+rngPortionSize-1,"") -> 400 | L82: =IF(tblWork[[#This Row],[Порция]]>0,INDEX(tblCUR[],tblWork[[#This Row],[Начало порции]],1),"") -> 2006-08-11 | M82: =IF(rngEnabledEUR,IF(tblWork[[#This Row],[Порция]]>0,AVERAGE(INDEX(tblCUR[EUR],tblWork[[#This Row],[Начало порции]]):INDEX(tblCUR[EUR],tblWork[[#This Row],[Конец порции]])),""),NA()) -> 34.23518 | N82: =IF(rngEnabledGBP,IF(tblWork[[#This Row],[Порция]]>0,AVERAGE(INDEX(tblCUR[GBP],tblWork[[#This Row],[Начало порции]]):INDEX(tblCUR[GBP],tblWork[[#This Row],[Конец порции]])),""),NA()) -> 50.76108 | O82: =IF(rngEnabledUSD,IF(tblWork[[#This Row],[Порция]]>0,AVERAGE(INDEX(tblCUR[USD],tblWork[[#This Row],[Начало порции]]):INDEX(tblCUR[USD],tblWork[[#This Row],[Конец порции]])),""),NA()) -> 26.77996
H83: 81 | I83: =IF(tblWork[[#This Row],[Строка]]<=rngWindowNums,tblWork[[#This Row],[Строка]],) -> 81 | J83: =IF(tblWork[[#This Row],[Порция]]>0,1+(tblWork[[#This Row],[Порция]]-1)*rngPortionSize,"") -> 401 | K83: =IF(tblWork[[#This Row],[Порция]]>0,tblWork[[#This Row],[Начало порции]]+rngPortionSize-1,"") -> 405 | L83: =IF(tblWork[[#This Row],[Порция]]>0,INDEX(tblCUR[],tblWork[[#This Row],[Начало порции]],1),"") -> 2006-08-18 | M83: =IF(rngEnabledEUR,IF(tblWork[[#This Row],[Порция]]>0,AVERAGE(INDEX(tblCUR[EUR],tblWork[[#This Row],[Начало порции]]):INDEX(tblCUR[EUR],tblWork[[#This Row],[Конец порции]])),""),NA()) -> 34.3434 | N83: =IF(rngEnabledGBP,IF(tblWork[[#This Row],[Порция]]>0,AVERAGE(INDEX(tblCUR[GBP],tblWork[[#This Row],[Начало порции]]):INDEX(tblCUR[GBP],tblWork[[#This Row],[Конец порции]])),""),NA()) -> 50.5234 | O83: =IF(rngEnabledUSD,IF(tblWork[[#This Row],[Порция]]>0,AVERAGE(INDEX(tblCUR[USD],tblWork[[#This Row],[Начало порции]]):INDEX(tblCUR[USD],tblWork[[#This Row],[Конец порции]])),""),NA()) -> 26.72434
H84: 82 | I84: =IF(tblWork[[#This Row],[Строка]]<=rngWindowNums,tblWork[[#This Row],[Строка]],) -> 82 | J84: =IF(tblWork[[#This Row],[Порция]]>0,1+(tblWork[[#This Row],[Порция]]-1)*rngPortionSize,"") -> 406 | K84: =IF(tblWork[[#This Row],[Порция]]>0,tblWork[[#This Row],[Начало порции]]+rngPortionSize-1,"") -> 410 | L84: =IF(tblWork[[#This Row],[Порция]]>0,INDEX(tblCUR[],tblWork[[#This Row],[Начало порции]],1),"") -> 2006-08-25 | M84: =IF(rngEnabledEUR,IF(tblWork[[#This Row],[Порция]]>0,AVERAGE(INDEX(tblCUR[EUR],tblWork[[#This Row],[Начало порции]]):INDEX(tblCUR[EUR],tblWork[[#This Row],[Конец порции]])),""),NA()) -> 34.25868 | N84: =IF(rngEnabledGBP,IF(tblWork[[#This Row],[Порция]]>0,AVERAGE(INDEX(tblCUR[GBP],tblWork[[#This Row],[Начало порции]]):INDEX(tblCUR[GBP],tblWork[[#This Row],[Конец порции]])),""),NA()) -> 50.68026 | O84: =IF(rngEnabledUSD,IF(tblWork[[#This Row],[Порция]]>0,AVERAGE(INDEX(tblCUR[USD],tblWork[[#This Row],[Начало порции]]):INDEX(tblCUR[USD],tblWork[[#This Row],[Конец порции]])),""),NA()) -> 26.76716
H85: 83 | I85: =IF(tblWork[[#This Row],[Строка]]<=rngWindowNums,tblWork[[#This Row],[Строка]],) -> 83 | J85: =IF(tblWork[[#This Row],[Порция]]>0,1+(tblWork[[#This Row],[Порция]]-1)*rngPortionSize,"") -> 411 | K85: =IF(tblWork[[#This Row],[Порция]]>0,tblWork[[#This Row],[Начало порции]]+rngPortionSize-1,"") -> 415 | L85: =IF(tblWork[[#This Row],[Порция]]>0,INDEX(tblCUR[],tblWork[[#This Row],[Начало порции]],1),"") -> 2006-09-01 | M85: =IF(rngEnabledEUR,IF(tblWork[[#This Row],[Порция]]>0,AVERAGE(INDEX(tblCUR[EUR],tblWork[[#This Row],[Начало порции]]):INDEX(tblCUR[EUR],tblWork[[#This Row],[Конец порции]])),""),NA()) -> 34.26282 | N85: =IF(rngEnabledGBP,IF(tblWork[[#This Row],[Порция]]>0,AVERAGE(INDEX(tblCUR[GBP],tblWork[[#This Row],[Начало порции]]):INDEX(tblCUR[GBP],tblWork[[#This Row],[Конец порции]])),""),NA()) -> 50.82022 | O85: =IF(rngEnabledUSD,IF(tblWork[[#This Row],[Порция]]>0,AVERAGE(INDEX(tblCUR[USD],tblWork[[#This Row],[Начало порции]]):INDEX(tblCUR[USD],tblWork[[#This Row],[Конец порции]])),""),NA()) -> 26.70358
H86: 84 | I86: =IF(tblWork[[#This Row],[Строка]]<=rngWindowNums,tblWork[[#This Row],[Строка]],) -> 84 | J86: =IF(tblWork[[#This Row],[Порция]]>0,1+(tblWork[[#This Row],[Порция]]-1)*rngPortionSize,"") -> 416 | K86: =IF(tblWork[[#This Row],[Порция]]>0,tblWork[[#This Row],[Начало порции]]+rngPortionSize-1,"") -> 420 | L86: =IF(tblWork[[#This Row],[Порция]]>0,INDEX(tblCUR[],tblWork[[#This Row],[Начало порции]],1),"") -> 2006-09-08 | M86: =IF(rngEnabledEUR,IF(tblWork[[#This Row],[Порция]]>0,AVERAGE(INDEX(tblCUR[EUR],tblWork[[#This Row],[Начало порции]]):INDEX(tblCUR[EUR],tblWork[[#This Row],[Конец порции]])),""),NA()) -> 34.05402 | N86: =IF(rngEnabledGBP,IF(tblWork[[#This Row],[Порция]]>0,AVERAGE(INDEX(tblCUR[GBP],tblWork[[#This Row],[Начало порции]]):INDEX(tblCUR[GBP],tblWork[[#This Row],[Конец порции]])),""),NA()) -> 50.11156 | O86: =IF(rngEnabledUSD,IF(tblWork[[#This Row],[Порция]]>0,AVERAGE(INDEX(tblCUR[USD],tblWork[[#This Row],[Начало порции]]):INDEX(tblCUR[USD],tblWork[[#This Row],[Конец порции]])),""),NA()) -> 26.76084
H87: 85 | I87: =IF(tblWork[[#This Row],[Строка]]<=rngWindowNums,tblWork[[#This Row],[Строка]],) -> 85 | J87: =IF(tblWork[[#This Row],[Порция]]>0,1+(tblWork[[#This Row],[Порция]]-1)*rngPortionSize,"") -> 421 | K87: =IF(tblWork[[#This Row],[Порция]]>0,tblWork[[#This Row],[Начало порции]]+rngPortionSize-1,"") -> 425 | L87: =IF(tblWork[[#This Row],[Порция]]>0,INDEX(tblCUR[],tblWork[[#This Row],[Начало порции]],1),"") -> 2006-09-15 | M87: =IF(rngEnabledEUR,IF(tblWork[[#This Row],[Порция]]>0,AVERAGE(INDEX(tblCUR[EUR],tblWork[[#This Row],[Начало порции]]):INDEX(tblCUR[EUR],tblWork[[#This Row],[Конец порции]])),""),NA()) -> 33.99552 | N87: =IF(rngEnabledGBP,IF(tblWork[[#This Row],[Порция]]>0,AVERAGE(INDEX(tblCUR[GBP],tblWork[[#This Row],[Начало порции]]):INDEX(tblCUR[GBP],tblWork[[#This Row],[Конец порции]])),""),NA()) -> 50.41998 | O87: =IF(rngEnabledUSD,IF(tblWork[[#This Row],[Порция]]>0,AVERAGE(INDEX(tblCUR[USD],tblWork[[#This Row],[Начало порции]]):INDEX(tblCUR[USD],tblWork[[#This Row],[Конец порции]])),""),NA()) -> 26.78838
H88: 86 | I88: =IF(tblWork[[#This Row],[Строка]]<=rngWindowNums,tblWork[[#This Row],[Строка]],) -> 86 | J88: =IF(tblWork[[#This Row],[Порция]]>0,1+(tblWork[[#This Row],[Порция]]-1)*rngPortionSize,"") -> 426 | K88: =IF(tblWork[[#This Row],[Порция]]>0,tblWork[[#This Row],[Начало порции]]+rngPortionSize-1,"") -> 430 | L88: =IF(tblWork[[#This Row],[Порция]]>0,INDEX(tblCUR[],tblWork[[#This Row],[Начало порции]],1),"") -> 2006-09-22 | M88: =IF(rngEnabledEUR,IF(tblWork[[#This Row],[Порция]]>0,AVERAGE(INDEX(tblCUR[EUR],tblWork[[#This Row],[Начало порции]]):INDEX(tblCUR[EUR],tblWork[[#This Row],[Конец порции]])),""),NA()) -> 34.06952 | N88: =IF(rngEnabledGBP,IF(tblWork[[#This Row],[Порция]]>0,AVERAGE(INDEX(tblCUR[GBP],tblWork[[#This Row],[Начало порции]]):INDEX(tblCUR[GBP],tblWork[[#This Row],[Конец порции]])),""),NA()) -> 50.74016 | O88: =IF(rngEnabledUSD,IF(tblWork[[#This Row],[Порция]]>0,AVERAGE(INDEX(tblCUR[USD],tblWork[[#This Row],[Начало порции]]):INDEX(tblCUR[USD],tblWork[[#This Row],[Конец порции]])),""),NA()) -> 26.72516
H89: 87 | I89: =IF(tblWork[[#This Row],[Строка]]<=rngWindowNums,tblWork[[#This Row],[Строка]],) -> 87 | J89: =IF(tblWork[[#This Row],[Порция]]>0,1+(tblWork[[#This Row],[Порция]]-1)*rngPortionSize,"") -> 431 | K89: =IF(tblWork[[#This Row],[Порция]]>0,tblWork[[#This Row],[Начало порции]]+rngPortionSize-1,"") -> 435 | L89: =IF(tblWork[[#This Row],[Порция]]>0,INDEX(tblCUR[],tblWork[[#This Row],[Начало порции]],1),"") -> 2006-09-29 | M89: =IF(rngEnabledEUR,IF(tblWork[[#This Row],[Порция]]>0,AVERAGE(INDEX(tblCUR[EUR],tblWork[[#This Row],[Начало порции]]):INDEX(tblCUR[EUR],tblWork[[#This Row],[Конец порции]])),""),NA()) -> 34.02952 | N89: =IF(rngEnabledGBP,IF(tblWork[[#This Row],[Порция]]>0,AVERAGE(INDEX(tblCUR[GBP],tblWork[[#This Row],[Начало порции]]):INDEX(tblCUR[GBP],tblWork[[#This Row],[Конец порции]])),""),NA()) -> 50.33686 | O89: =IF(rngEnabledUSD,IF(tblWork[[#This Row],[Порция]]>0,AVERAGE(INDEX(tblCUR[USD],tblWork[[#This Row],[Начало порции]]):INDEX(tblCUR[USD],tblWork[[#This Row],[Конец порции]])),""),NA()) -> 26.76502
H90: 88 | I90: =IF(tblWork[[#This Row],[Строка]]<=rngWindowNums,tblWork[[#This Row],[Строка]],) -> 88 | J90: =IF(tblWork[[#This Row],[Порция]]>0,1+(tblWork[[#This Row],[Порция]]-1)*rngPortionSize,"") -> 436 | K90: =IF(tblWork[[#This Row],[Порция]]>0,tblWork[[#This Row],[Начало порции]]+rngPortionSize-1,"") -> 440 | L90: =IF(tblWork[[#This Row],[Порция]]>0,INDEX(tblCUR[],tblWork[[#This Row],[Начало порции]],1),"") -> 2006-10-06 | M90: =IF(rngEnabledEUR,IF(tblWork[[#This Row],[Порция]]>0,AVERAGE(INDEX(tblCUR[EUR],tblWork[[#This Row],[Начало порции]]):INDEX(tblCUR[EUR],tblWork[[#This Row],[Конец порции]])),""),NA()) -> 33.91776 | N90: =IF(rngEnabledGBP,IF(tblWork[[#This Row],[Порция]]>0,AVERAGE(INDEX(tblCUR[GBP],tblWork[[#This Row],[Начало порции]]):INDEX(tblCUR[GBP],tblWork[[#This Row],[Конец порции]])),""),NA()) -> 50.27456 | O90: =IF(rngEnabledUSD,IF(tblWork[[#This Row],[Порция]]>0,AVERAGE(INDEX(tblCUR[USD],tblWork[[#This Row],[Начало порции]]):INDEX(tblCUR[USD],tblWork[[#This Row],[Конец порции]])),""),NA()) -> 26.86502
H91: 89 | I91: =IF(tblWork[[#This Row],[Строка]]<=rngWindowNums,tblWork[[#This Row],[Строка]],) -> 89 | J91: =IF(tblWork[[#This Row],[Порция]]>0,1+(tblWork[[#This Row],[Порция]]-1)*rngPortionSize,"") -> 441 | K91: =IF(tblWork[[#This Row],[Порция]]>0,tblWork[[#This Row],[Начало порции]]+rngPortionSize-1,"") -> 445 | L91: =IF(tblWork[[#This Row],[Порция]]>0,INDEX(tblCUR[],tblWork[[#This Row],[Начало порции]],1),"") -> 2006-10-13 | M91: =IF(rngEnabledEUR,IF(tblWork[[#This Row],[Порция]]>0,AVERAGE(INDEX(tblCUR[EUR],tblWork[[#This Row],[Начало порции]]):INDEX(tblCUR[EUR],tblWork[[#This Row],[Конец порции]])),""),NA()) -> 33.78348 | N91: =IF(rngEnabledGBP,IF(tblWork[[#This Row],[Порция]]>0,AVERAGE(INDEX(tblCUR[GBP],tblWork[[#This Row],[Начало порции]]):INDEX(tblCUR[GBP],tblWork[[#This Row],[Конец порции]])),""),NA()) -> 50.16108 | O91: =IF(rngEnabledUSD,IF(tblWork[[#This Row],[Порция]]>0,AVERAGE(INDEX(tblCUR[USD],tblWork[[#This Row],[Начало порции]]):INDEX(tblCUR[USD],tblWork[[#This Row],[Конец порции]])),""),NA()) -> 26.9449
H92: 90 | I92: =IF(tblWork[[#This Row],[Строка]]<=rngWindowNums,tblWork[[#This Row],[Строка]],) -> 90 | J92: =IF(tblWork[[#This Row],[Порция]]>0,1+(tblWork[[#This Row],[Порция]]-1)*rngPortionSize,"") -> 446 | K92: =IF(tblWork[[#This Row],[Порция]]>0,tblWork[[#This Row],[Начало порции]]+rngPortionSize-1,"") -> 450 | L92: =IF(tblWork[[#This Row],[Порция]]>0,INDEX(tblCUR[],tblWork[[#This Row],[Начало порции]],1),"") -> 2006-10-20 | M92: =IF(rngEnabledEUR,IF(tblWork[[#This Row],[Порция]]>0,AVERAGE(INDEX(tblCUR[EUR],tblWork[[#This Row],[Начало порции]]):INDEX(tblCUR[EUR],tblWork[[#This Row],[Конец порции]])),""),NA()) -> 33.82012 | N92: =IF(rngEnabledGBP,IF(tblWork[[#This Row],[Порция]]>0,AVERAGE(INDEX(tblCUR[GBP],tblWork[[#This Row],[Начало порции]]):INDEX(tblCUR[GBP],tblWork[[#This Row],[Конец порции]])),""),NA()) -> 50.42058 | O92: =IF(rngEnabledUSD,IF(tblWork[[#This Row],[Порция]]>0,AVERAGE(INDEX(tblCUR[USD],tblWork[[#This Row],[Начало порции]]):INDEX(tblCUR[USD],tblWork[[#This Row],[Конец порции]])),""),NA()) -> 26.89994
H93: 91 | I93: =IF(tblWork[[#This Row],[Строка]]<=rngWindowNums,tblWork[[#This Row],[Строка]],) -> 91 | J93: =IF(tblWork[[#This Row],[Порция]]>0,1+(tblWork[[#This Row],[Порция]]-1)*rngPortionSize,"") -> 451 | K93: =IF(tblWork[[#This Row],[Порция]]>0,tblWork[[#This Row],[Начало порции]]+rngPortionSize-1,"") -> 455 | L93: =IF(tblWork[[#This Row],[Порция]]>0,INDEX(tblCUR[],tblWork[[#This Row],[Начало порции]],1),"") -> 2006-10-27 | M93: =IF(rngEnabledEUR,IF(tblWork[[#This Row],[Порция]]>0,AVERAGE(INDEX(tblCUR[EUR],tblWork[[#This Row],[Начало порции]]):INDEX(tblCUR[EUR],tblWork[[#This Row],[Конец порции]])),""),NA()) -> 33.99854 | N93: =IF(rngEnabledGBP,IF(tblWork[[#This Row],[Порция]]>0,AVERAGE(INDEX(tblCUR[GBP],tblWork[[#This Row],[Начало порции]]):INDEX(tblCUR[GBP],tblWork[[#This Row],[Конец порции]])),""),NA()) -> 50.75698 | O93: =IF(rngEnabledUSD,IF(tblWork[[#This Row],[Порция]]>0,AVERAGE(INDEX(tblCUR[USD],tblWork[[#This Row],[Начало порции]]):INDEX(tblCUR[USD],tblWork[[#This Row],[Конец порции]])),""),NA()) -> 26.77524
H94: 92 | I94: =IF(tblWork[[#This Row],[Строка]]<=rngWindowNums,tblWork[[#This Row],[Строка]],) -> 92 | J94: =IF(tblWork[[#This Row],[Порция]]>0,1+(tblWork[[#This Row],[Порция]]-1)*rngPortionSize,"") -> 456 | K94: =IF(tblWork[[#This Row],[Порция]]>0,tblWork[[#This Row],[Начало порции]]+rngPortionSize-1,"") -> 460 | L94: =IF(tblWork[[#This Row],[Порция]]>0,INDEX(tblCUR[],tblWork[[#This Row],[Начало порции]],1),"") -> 2006-11-03 | M94: =IF(rngEnabledEUR,IF(tblWork[[#This Row],[Порция]]>0,AVERAGE(INDEX(tblCUR[EUR],tblWork[[#This Row],[Начало порции]]):INDEX(tblCUR[EUR],tblWork[[#This Row],[Конец порции]])),""),NA()) -> 34.09762 | N94: =IF(rngEnabledGBP,IF(tblWork[[#This Row],[Порция]]>0,AVERAGE(INDEX(tblCUR[GBP],tblWork[[#This Row],[Начало порции]]):INDEX(tblCUR[GBP],tblWork[[#This Row],[Конец порции]])),""),NA()) -> 50.90284 | O94: =IF(rngEnabledUSD,IF(tblWork[[#This Row],[Порция]]>0,AVERAGE(INDEX(tblCUR[USD],tblWork[[#This Row],[Начало порции]]):INDEX(tblCUR[USD],tblWork[[#This Row],[Конец порции]])),""),NA()) -> 26.71056
H95: 93 | I95: =IF(tblWork[[#This Row],[Строка]]<=rngWindowNums,tblWork[[#This Row],[Строка]],) -> 93 | J95: =IF(tblWork[[#This Row],[Порция]]>0,1+(tblWork[[#This Row],[Порция]]-1)*rngPortionSize,"") -> 461 | K95: =IF(tblWork[[#This Row],[Порция]]>0,tblWork[[#This Row],[Начало порции]]+rngPortionSize-1,"") -> 465 | L95: =IF(tblWork[[#This Row],[Порция]]>0,INDEX(tblCUR[],tblWork[[#This Row],[Начало порции]],1),"") -> 2006-11-11 | M95: =IF(rngEnabledEUR,IF(tblWork[[#This Row],[Порция]]>0,AVERAGE(INDEX(tblCUR[EUR],tblWork[[#This Row],[Начало порции]]):INDEX(tblCUR[EUR],tblWork[[#This Row],[Конец порции]])),""),NA()) -> 34.19872 | N95: =IF(rngEnabledGBP,IF(tblWork[[#This Row],[Порция]]>0,AVERAGE(INDEX(tblCUR[GBP],tblWork[[#This Row],[Начало порции]]):INDEX(tblCUR[GBP],tblWork[[#This Row],[Конец порции]])),""),NA()) -> 50.66796 | O95: =IF(rngEnabledUSD,IF(tblWork[[#This Row],[Порция]]>0,AVERAGE(INDEX(tblCUR[USD],tblWork[[#This Row],[Начало порции]]):INDEX(tblCUR[USD],tblWork[[#This Row],[Конец порции]])),""),NA()) -> 26.63994
H96: 94 | I96: =IF(tblWork[[#This Row],[Строка]]<=rngWindowNums,tblWork[[#This Row],[Строка]],) -> 94 | J96: =IF(tblWork[[#This Row],[Порция]]>0,1+(tblWork[[#This Row],[Порция]]-1)*rngPortionSize,"") -> 466 | K96: =IF(tblWork[[#This Row],[Порция]]>0,tblWork[[#This Row],[Начало порции]]+rngPortionSize-1,"") -> 470 | L96: =IF(tblWork[[#This Row],[Порция]]>0,INDEX(tblCUR[],tblWork[[#This Row],[Начало порции]],1),"") -> 2006-11-18 | M96: =IF(rngEnabledEUR,IF(tblWork[[#This Row],[Порция]]>0,AVERAGE(INDEX(tblCUR[EUR],tblWork[[#This Row],[Начало порции]]):INDEX(tblCUR[EUR],tblWork[[#This Row],[Конец порции]])),""),NA()) -> 34.21822 | N96: =IF(rngEnabledGBP,IF(tblWork[[#This Row],[Порция]]>0,AVERAGE(INDEX(tblCUR[GBP],tblWork[[#This Row],[Начало порции]]):INDEX(tblCUR[GBP],tblWork[[#This Row],[Конец порции]])),""),NA()) -> 50.58674 | O96: =IF(rngEnabledUSD,IF(tblWork[[#This Row],[Порция]]>0,AVERAGE(INDEX(tblCUR[USD],tblWork[[#This Row],[Начало порции]]):INDEX(tblCUR[USD],tblWork[[#This Row],[Конец порции]])),""),NA()) -> 26.6304
H97: 95 | I97: =IF(tblWork[[#This Row],[Строка]]<=rngWindowNums,tblWork[[#This Row],[Строка]],) -> 95 | J97: =IF(tblWork[[#This Row],[Порция]]>0,1+(tblWork[[#This Row],[Порция]]-1)*rngPortionSize,"") -> 471 | K97: =IF(tblWork[[#This Row],[Порция]]>0,tblWork[[#This Row],[Начало порции]]+rngPortionSize-1,"") -> 475 | L97: =IF(tblWork[[#This Row],[Порция]]>0,INDEX(tblCUR[],tblWork[[#This Row],[Начало порции]],1),"") -> 2006-11-25 | M97: =IF(rngEnabledEUR,IF(tblWork[[#This Row],[Порция]]>0,AVERAGE(INDEX(tblCUR[EUR],tblWork[[#This Row],[Начало порции]]):INDEX(tblCUR[EUR],tblWork[[#This Row],[Конец порции]])),""),NA()) -> 34.5978 | N97: =IF(rngEnabledGBP,IF(tblWork[[#This Row],[Порция]]>0,AVERAGE(INDEX(tblCUR[GBP],tblWork[[#This Row],[Начало порции]]):INDEX(tblCUR[GBP],tblWork[[#This Row],[Конец порции]])),""),NA()) -> 51.15734 | O97: =IF(rngEnabledUSD,IF(tblWork[[#This Row],[Порция]]>0,AVERAGE(INDEX(tblCUR[USD],tblWork[[#This Row],[Начало порции]]):INDEX(tblCUR[USD],tblWork[[#This Row],[Конец порции]])),""),NA()) -> 26.37192
H98: 96 | I98: =IF(tblWork[[#This Row],[Строка]]<=rngWindowNums,tblWork[[#This Row],[Строка]],) -> 96 | J98: =IF(tblWork[[#This Row],[Порция]]>0,1+(tblWork[[#This Row],[Порция]]-1)*rngPortionSize,"") -> 476 | K98: =IF(tblWork[[#This Row],[Порция]]>0,tblWork[[#This Row],[Начало порции]]+rngPortionSize-1,"") -> 480 | L98: =IF(tblWork[[#This Row],[Порция]]>0,INDEX(tblCUR[],tblWork[[#This Row],[Начало порции]],1),"") -> 2006-12-02 | M98: =IF(rngEnabledEUR,IF(tblWork[[#This Row],[Порция]]>0,AVERAGE(INDEX(tblCUR[EUR],tblWork[[#This Row],[Начало порции]]):INDEX(tblCUR[EUR],tblWork[[#This Row],[Конец порции]])),""),NA()) -> 34.86438 | N98: =IF(rngEnabledGBP,IF(tblWork[[#This Row],[Порция]]>0,AVERAGE(INDEX(tblCUR[GBP],tblWork[[#This Row],[Начало порции]]):INDEX(tblCUR[GBP],tblWork[[#This Row],[Конец порции]])),""),NA()) -> 51.74558 | O98: =IF(rngEnabledUSD,IF(tblWork[[#This Row],[Порция]]>0,AVERAGE(INDEX(tblCUR[USD],tblWork[[#This Row],[Начало порции]]):INDEX(tblCUR[USD],tblWork[[#This Row],[Конец порции]])),""),NA()) -> 26.20322
H99: 97 | I99: =IF(tblWork[[#This Row],[Строка]]<=rngWindowNums,tblWork[[#This Row],[Строка]],) -> 97 | J99: =IF(tblWork[[#This Row],[Порция]]>0,1+(tblWork[[#This Row],[Порция]]-1)*rngPortionSize,"") -> 481 | K99: =IF(tblWork[[#This Row],[Порция]]>0,tblWork[[#This Row],[Начало порции]]+rngPortionSize-1,"") -> 485 | L99: =IF(tblWork[[#This Row],[Порция]]>0,INDEX(tblCUR[],tblWork[[#This Row],[Начало порции]],1),"") -> 2006-12-09 | M99: =IF(rngEnabledEUR,IF(tblWork[[#This Row],[Порция]]>0,AVERAGE(INDEX(tblCUR[EUR],tblWork[[#This Row],[Начало порции]]):INDEX(tblCUR[EUR],tblWork[[#This Row],[Конец порции]])),""),NA()) -> 34.7755 | N99: =IF(rngEnabledGBP,IF(tblWork[[#This Row],[Порция]]>0,AVERAGE(INDEX(tblCUR[GBP],tblWork[[#This Row],[Начало порции]]):INDEX(tblCUR[GBP],tblWork[[#This Row],[Конец порции]])),""),NA()) -> 51.53724 | O99: =IF(rngEnabledUSD,IF(tblWork[[#This Row],[Порция]]>0,AVERAGE(INDEX(tblCUR[USD],tblWork[[#This Row],[Начало порции]]):INDEX(tblCUR[USD],tblWork[[#This Row],[Конец порции]])),""),NA()) -> 26.25838
H100: 98 | I100: =IF(tblWork[[#This Row],[Строка]]<=rngWindowNums,tblWork[[#This Row],[Строка]],) -> 98 | J100: =IF(tblWork[[#This Row],[Порция]]>0,1+(tblWork[[#This Row],[Порция]]-1)*rngPortionSize,"") -> 486 | K100: =IF(tblWork[[#This Row],[Порция]]>0,tblWork[[#This Row],[Начало порции]]+rngPortionSize-1,"") -> 490 | L100: =IF(tblWork[[#This Row],[Порция]]>0,INDEX(tblCUR[],tblWork[[#This Row],[Начало порции]],1),"") -> 2006-12-16 | M100: =IF(rngEnabledEUR,IF(tblWork[[#This Row],[Порция]]>0,AVERAGE(INDEX(tblCUR[EUR],tblWork[[#This Row],[Начало порции]]):INDEX(tblCUR[EUR],tblWork[[#This Row],[Конец порции]])),""),NA()) -> 34.64898 | N100: =IF(rngEnabledGBP,IF(tblWork[[#This Row],[Порция]]>0,AVERAGE(INDEX(tblCUR[GBP],tblWork[[#This Row],[Начало порции]]):INDEX(tblCUR[GBP],tblWork[[#This Row],[Конец порции]])),""),NA()) -> 51.65534 | O100: =IF(rngEnabledUSD,IF(tblWork[[#This Row],[Порция]]>0,AVERAGE(INDEX(tblCUR[USD],tblWork[[#This Row],[Начало порции]]):INDEX(tblCUR[USD],tblWork[[#This Row],[Конец порции]])),""),NA()) -> 26.33398
H101: 99 | I101: =IF(tblWork[[#This Row],[Строка]]<=rngWindowNums,tblWork[[#This Row],[Строка]],) -> 99 | J101: =IF(tblWork[[#This Row],[Порция]]>0,1+(tblWork[[#This Row],[Порция]]-1)*rngPortionSize,"") -> 491 | K101: =IF(tblWork[[#This Row],[Порция]]>0,tblWork[[#This Row],[Начало порции]]+rngPortionSize-1,"") -> 495 | L101: =IF(tblWork[[#This Row],[Порция]]>0,INDEX(tblCUR[],tblWork[[#This Row],[Начало порции]],1),"") -> 2006-12-23 | M101: =IF(rngEnabledEUR,IF(tblWork[[#This Row],[Порция]]>0,AVERAGE(INDEX(tblCUR[EUR],tblWork[[#This Row],[Начало порции]]):INDEX(tblCUR[EUR],tblWork[[#This Row],[Конец порции]])),""),NA()) -> 34.64236 | N101: =IF(rngEnabledGBP,IF(tblWork[[#This Row],[Порция]]>0,AVERAGE(INDEX(tblCUR[GBP],tblWork[[#This Row],[Начало порции]]):INDEX(tblCUR[GBP],tblWork[[#This Row],[Конец порции]])),""),NA()) -> 51.63032 | O101: =IF(rngEnabledUSD,IF(tblWork[[#This Row],[Порция]]>0,AVERAGE(INDEX(tblCUR[USD],tblWork[[#This Row],[Начало порции]]):INDEX(tblCUR[USD],tblWork[[#This Row],[Конец порции]])),""),NA()) -> 26.34446
H102: 100 | I102: =IF(tblWork[[#This Row],[Строка]]<=rngWindowNums,tblWork[[#This Row],[Строка]],) -> 100 | J102: =IF(tblWork[[#This Row],[Порция]]>0,1+(tblWork[[#This Row],[Порция]]-1)*rngPortionSize,"") -> 496 | K102: =IF(tblWork[[#This Row],[Порция]]>0,tblWork[[#This Row],[Начало порции]]+rngPortionSize-1,"") -> 500 | L102: =IF(tblWork[[#This Row],[Порция]]>0,INDEX(tblCUR[],tblWork[[#This Row],[Начало порции]],1),"") -> 2006-12-30 | M102: =IF(rngEnabledEUR,IF(tblWork[[#This Row],[Порция]]>0,AVERAGE(INDEX(tblCUR[EUR],tblWork[[#This Row],[Начало порции]]):INDEX(tblCUR[EUR],tblWork[[#This Row],[Конец порции]])),""),NA()) -> 34.4584 | N102: =IF(rngEnabledGBP,IF(tblWork[[#This Row],[Порция]]>0,AVERAGE(INDEX(tblCUR[GBP],tblWork[[#This Row],[Начало порции]]):INDEX(tblCUR[GBP],tblWork[[#This Row],[Конец порции]])),""),NA()) -> 51.52022 | O102: =IF(rngEnabledUSD,IF(tblWork[[#This Row],[Порция]]>0,AVERAGE(INDEX(tblCUR[USD],tblWork[[#This Row],[Начало порции]]):INDEX(tblCUR[USD],tblWork[[#This Row],[Конец порции]])),""),NA()) -> 26.47528
H103: 101 | I103: =IF(tblWork[[#This Row],[Строка]]<=rngWindowNums,tblWork[[#This Row],[Строка]],) -> 101 | J103: =IF(tblWork[[#This Row],[Порция]]>0,1+(tblWork[[#This Row],[Порция]]-1)*rngPortionSize,"") -> 501 | K103: =IF(tblWork[[#This Row],[Порция]]>0,tblWork[[#This Row],[Начало порции]]+rngPortionSize-1,"") -> 505 | L103: =IF(tblWork[[#This Row],[Порция]]>0,INDEX(tblCUR[],tblWork[[#This Row],[Начало порции]],1),"") -> 2007-01-16 | M103: =IF(rngEnabledEUR,IF(tblWork[[#This Row],[Порция]]>0,AVERAGE(INDEX(tblCUR[EUR],tblWork[[#This Row],[Начало порции]]):INDEX(tblCUR[EUR],tblWork[[#This Row],[Конец порции]])),""),NA()) -> 34.38692 | N103: =IF(rngEnabledGBP,IF(tblWork[[#This Row],[Порция]]>0,AVERAGE(INDEX(tblCUR[GBP],tblWork[[#This Row],[Начало порции]]):INDEX(tblCUR[GBP],tblWork[[#This Row],[Конец порции]])),""),NA()) -> 52.2418 | O103: =IF(rngEnabledUSD,IF(tblWork[[#This Row],[Порция]]>0,AVERAGE(INDEX(tblCUR[USD],tblWork[[#This Row],[Начало порции]]):INDEX(tblCUR[USD],tblWork[[#This Row],[Конец порции]])),""),NA()) -> 26.5438
H104: 102 | I104: =IF(tblWork[[#This Row],[Строка]]<=rngWindowNums,tblWork[[#This Row],[Строка]],) -> 102 | J104: =IF(tblWork[[#This Row],[Порция]]>0,1+(tblWork[[#This Row],[Порция]]-1)*rngPortionSize,"") -> 506 | K104: =IF(tblWork[[#This Row],[Порция]]>0,tblWork[[#This Row],[Начало порции]]+rngPortionSize-1,"") -> 510 | L104: =IF(tblWork[[#This Row],[Порция]]>0,INDEX(tblCUR[],tblWork[[#This Row],[Начало порции]],1),"") -> 2007-01-23 | M104: =IF(rngEnabledEUR,IF(tblWork[[#This Row],[Порция]]>0,AVERAGE(INDEX(tblCUR[EUR],tblWork[[#This Row],[Начало порции]]):INDEX(tblCUR[EUR],tblWork[[#This Row],[Конец порции]])),""),NA()) -> 34.3971 | N104: =IF(rngEnabledGBP,IF(tblWork[[#This Row],[Порция]]>0,AVERAGE(INDEX(tblCUR[GBP],tblWork[[#This Row],[Начало порции]]):INDEX(tblCUR[GBP],tblWork[[#This Row],[Конец порции]])),""),NA()) -> 52.31462 | O104: =IF(rngEnabledUSD,IF(tblWork[[#This Row],[Порция]]>0,AVERAGE(INDEX(tblCUR[USD],tblWork[[#This Row],[Начало порции]]):INDEX(tblCUR[USD],tblWork[[#This Row],[Конец порции]])),""),NA()) -> 26.51852
H105: 103 | I105: =IF(tblWork[[#This Row],[Строка]]<=rngWindowNums,tblWork[[#This Row],[Строка]],) -> 103 | J105: =IF(tblWork[[#This Row],[Порция]]>0,1+(tblWork[[#This Row],[Порция]]-1)*rngPortionSize,"") -> 511 | K105: =IF(tblWork[[#This Row],[Порция]]>0,tblWork[[#This Row],[Начало порции]]+rngPortionSize-1,"") -> 515 | L105: =IF(tblWork[[#This Row],[Порция]]>0,INDEX(tblCUR[],tblWork[[#This Row],[Начало порции]],1),"") -> 2007-01-30 | M105: =IF(rngEnabledEUR,IF(tblWork[[#This Row],[Порция]]>0,AVERAGE(INDEX(tblCUR[EUR],tblWork[[#This Row],[Начало порции]]):INDEX(tblCUR[EUR],tblWork[[#This Row],[Конец порции]])),""),NA()) -> 34.41058 | N105: =IF(rngEnabledGBP,IF(tblWork[[#This Row],[Порция]]>0,AVERAGE(INDEX(tblCUR[GBP],tblWork[[#This Row],[Начало порции]]):INDEX(tblCUR[GBP],tblWork[[#This Row],[Конец порции]])),""),NA()) -> 52.05972 | O105: =IF(rngEnabledUSD,IF(tblWork[[#This Row],[Порция]]>0,AVERAGE(INDEX(tblCUR[USD],tblWork[[#This Row],[Начало порции]]):INDEX(tblCUR[USD],tblWork[[#This Row],[Конец порции]])),""),NA()) -> 26.52488
H106: 104 | I106: =IF(tblWork[[#This Row],[Строка]]<=rngWindowNums,tblWork[[#This Row],[Строка]],) -> 104 | J106: =IF(tblWork[[#This Row],[Порция]]>0,1+(tblWork[[#This Row],[Порция]]-1)*rngPortionSize,"") -> 516 | K106: =IF(tblWork[[#This Row],[Порция]]>0,tblWork[[#This Row],[Начало порции]]+rngPortionSize-1,"") -> 520 | L106: =IF(tblWork[[#This Row],[Порция]]>0,INDEX(tblCUR[],tblWork[[#This Row],[Начало порции]],1),"") -> 2007-02-06 | M106: =IF(rngEnabledEUR,IF(tblWork[[#This Row],[Порция]]>0,AVERAGE(INDEX(tblCUR[EUR],tblWork[[#This Row],[Начало порции]]):INDEX(tblCUR[EUR],tblWork[[#This Row],[Конец порции]])),""),NA()) -> 34.34754 | N106: =IF(rngEnabledGBP,IF(tblWork[[#This Row],[Порция]]>0,AVERAGE(INDEX(tblCUR[GBP],tblWork[[#This Row],[Начало порции]]):INDEX(tblCUR[GBP],tblWork[[#This Row],[Конец порции]])),""),NA()) -> 51.97732 | O106: =IF(rngEnabledUSD,IF(tblWork[[#This Row],[Порция]]>0,AVERAGE(INDEX(tblCUR[USD],tblWork[[#This Row],[Начало порции]]):INDEX(tblCUR[USD],tblWork[[#This Row],[Конец порции]])),""),NA()) -> 26.46578
H107: 105 | I107: =IF(tblWork[[#This Row],[Строка]]<=rngWindowNums,tblWork[[#This Row],[Строка]],) -> 105 | J107: =IF(tblWork[[#This Row],[Порция]]>0,1+(tblWork[[#This Row],[Порция]]-1)*rngPortionSize,"") -> 521 | K107: =IF(tblWork[[#This Row],[Порция]]>0,tblWork[[#This Row],[Начало порции]]+rngPortionSize-1,"") -> 525 | L107: =IF(tblWork[[#This Row],[Порция]]>0,INDEX(tblCUR[],tblWork[[#This Row],[Начало порции]],1),"") -> 2007-02-13 | M107: =IF(rngEnabledEUR,IF(tblWork[[#This Row],[Порция]]>0,AVERAGE(INDEX(tblCUR[EUR],tblWork[[#This Row],[Начало порции]]):INDEX(tblCUR[EUR],tblWork[[#This Row],[Конец порции]])),""),NA()) -> 34.37182 | N107: =IF(rngEnabledGBP,IF(tblWork[[#This Row],[Порция]]>0,AVERAGE(INDEX(tblCUR[GBP],tblWork[[#This Row],[Начало порции]]):INDEX(tblCUR[GBP],tblWork[[#This Row],[Конец порции]])),""),NA()) -> 51.38834 | O107: =IF(rngEnabledUSD,IF(tblWork[[#This Row],[Порция]]>0,AVERAGE(INDEX(tblCUR[USD],tblWork[[#This Row],[Начало порции]]):INDEX(tblCUR[USD],tblWork[[#This Row],[Конец порции]])),""),NA()) -> 26.2981
H108: 106 | I108: =IF(tblWork[[#This Row],[Строка]]<=rngWindowNums,tblWork[[#This Row],[Строка]],) -> 106 | J108: =IF(tblWork[[#This Row],[Порция]]>0,1+(tblWork[[#This Row],[Порция]]-1)*rngPortionSize,"") -> 526 | K108: =IF(tblWork[[#This Row],[Порция]]>0,tblWork[[#This Row],[Начало порции]]+rngPortionSize-1,"") -> 530 | L108: =IF(tblWork[[#This Row],[Порция]]>0,INDEX(tblCUR[],tblWork[[#This Row],[Начало порции]],1),"") -> 2007-02-20 | M108: =IF(rngEnabledEUR,IF(tblWork[[#This Row],[Порция]]>0,AVERAGE(INDEX(tblCUR[EUR],tblWork[[#This Row],[Начало порции]]):INDEX(tblCUR[EUR],tblWork[[#This Row],[Конец порции]])),""),NA()) -> 34.45836 | N108: =IF(rngEnabledGBP,IF(tblWork[[#This Row],[Порция]]>0,AVERAGE(INDEX(tblCUR[GBP],tblWork[[#This Row],[Начало порции]]):INDEX(tblCUR[GBP],tblWork[[#This Row],[Конец порции]])),""),NA()) -> 51.2523 | O108: =IF(rngEnabledUSD,IF(tblWork[[#This Row],[Порция]]>0,AVERAGE(INDEX(tblCUR[USD],tblWork[[#This Row],[Начало порции]]):INDEX(tblCUR[USD],tblWork[[#This Row],[Конец порции]])),""),NA()) -> 26.20532
H109: 107 | I109: =IF(tblWork[[#This Row],[Строка]]<=rngWindowNums,tblWork[[#This Row],[Строка]],) -> 107 | J109: =IF(tblWork[[#This Row],[Порция]]>0,1+(tblWork[[#This Row],[Порция]]-1)*rngPortionSize,"") -> 531 | K109: =IF(tblWork[[#This Row],[Порция]]>0,tblWork[[#This Row],[Начало порции]]+rngPortionSize-1,"") -> 535 | L109: =IF(tblWork[[#This Row],[Порция]]>0,INDEX(tblCUR[],tblWork[[#This Row],[Начало порции]],1),"") -> 2007-02-28 | M109: =IF(rngEnabledEUR,IF(tblWork[[#This Row],[Порция]]>0,AVERAGE(INDEX(tblCUR[EUR],tblWork[[#This Row],[Начало порции]]):INDEX(tblCUR[EUR],tblWork[[#This Row],[Конец порции]])),""),NA()) -> 34.51008 | N109: =IF(rngEnabledGBP,IF(tblWork[[#This Row],[Порция]]>0,AVERAGE(INDEX(tblCUR[GBP],tblWork[[#This Row],[Начало порции]]):INDEX(tblCUR[GBP],tblWork[[#This Row],[Конец порции]])),""),NA()) -> 51.06442 | O109: =IF(rngEnabledUSD,IF(tblWork[[#This Row],[Порция]]>0,AVERAGE(INDEX(tblCUR[USD],tblWork[[#This Row],[Начало порции]]):INDEX(tblCUR[USD],tblWork[[#This Row],[Конец порции]])),""),NA()) -> 26.16666
H110: 108 | I110: =IF(tblWork[[#This Row],[Строка]]<=rngWindowNums,tblWork[[#This Row],[Строка]],) -> 108 | J110: =IF(tblWork[[#This Row],[Порция]]>0,1+(tblWork[[#This Row],[Порция]]-1)*rngPortionSize,"") -> 536 | K110: =IF(tblWork[[#This Row],[Порция]]>0,tblWork[[#This Row],[Начало порции]]+rngPortionSize-1,"") -> 540 | L110: =IF(tblWork[[#This Row],[Порция]]>0,INDEX(tblCUR[],tblWork[[#This Row],[Начало порции]],1),"") -> 2007-03-07 | M110: =IF(rngEnabledEUR,IF(tblWork[[#This Row],[Порция]]>0,AVERAGE(INDEX(tblCUR[EUR],tblWork[[#This Row],[Начало порции]]):INDEX(tblCUR[EUR],tblWork[[#This Row],[Конец порции]])),""),NA()) -> 34.441 | N110: =IF(rngEnabledGBP,IF(tblWork[[#This Row],[Порция]]>0,AVERAGE(INDEX(tblCUR[GBP],tblWork[[#This Row],[Начало порции]]):INDEX(tblCUR[GBP],tblWork[[#This Row],[Конец порции]])),""),NA()) -> 50.6185 | O110: =IF(rngEnabledUSD,IF(tblWork[[#This Row],[Порция]]>0,AVERAGE(INDEX(tblCUR[USD],tblWork[[#This Row],[Начало порции]]):INDEX(tblCUR[USD],tblWork[[#This Row],[Конец порции]])),""),NA()) -> 26.22042
H111: 109 | I111: =IF(tblWork[[#This Row],[Строка]]<=rngWindowNums,tblWork[[#This Row],[Строка]],) -> 109 | J111: =IF(tblWork[[#This Row],[Порция]]>0,1+(tblWork[[#This Row],[Порция]]-1)*rngPortionSize,"") -> 541 | K111: =IF(tblWork[[#This Row],[Порция]]>0,tblWork[[#This Row],[Начало порции]]+rngPortionSize-1,"") -> 545 | L111: =IF(tblWork[[#This Row],[Порция]]>0,INDEX(tblCUR[],tblWork[[#This Row],[Начало порции]],1),"") -> 2007-03-15 | M111: =IF(rngEnabledEUR,IF(tblWork[[#This Row],[Порция]]>0,AVERAGE(INDEX(tblCUR[EUR],tblWork[[#This Row],[Начало порции]]):INDEX(tblCUR[EUR],tblWork[[#This Row],[Конец порции]])),""),NA()) -> 34.5965 | N111: =IF(rngEnabledGBP,IF(tblWork[[#This Row],[Порция]]>0,AVERAGE(INDEX(tblCUR[GBP],tblWork[[#This Row],[Начало порции]]):INDEX(tblCUR[GBP],tblWork[[#This Row],[Конец порции]])),""),NA()) -> 50.5179 | O111: =IF(rngEnabledUSD,IF(tblWork[[#This Row],[Порция]]>0,AVERAGE(INDEX(tblCUR[USD],tblWork[[#This Row],[Начало порции]]):INDEX(tblCUR[USD],tblWork[[#This Row],[Конец порции]])),""),NA()) -> 26.082
H112: 110 | I112: =IF(tblWork[[#This Row],[Строка]]<=rngWindowNums,tblWork[[#This Row],[Строка]],) -> 110 | J112: =IF(tblWork[[#This Row],[Порция]]>0,1+(tblWork[[#This Row],[Порция]]-1)*rngPortionSize,"") -> 546 | K112: =IF(tblWork[[#This Row],[Порция]]>0,tblWork[[#This Row],[Начало порции]]+rngPortionSize-1,"") -> 550 | L112: =IF(tblWork[[#This Row],[Порция]]>0,INDEX(tblCUR[],tblWork[[#This Row],[Начало порции]],1),"") -> 2007-03-22 | M112: =IF(rngEnabledEUR,IF(tblWork[[#This Row],[Порция]]>0,AVERAGE(INDEX(tblCUR[EUR],tblWork[[#This Row],[Начало порции]]):INDEX(tblCUR[EUR],tblWork[[#This Row],[Конец порции]])),""),NA()) -> 34.66646 | N112: =IF(rngEnabledGBP,IF(tblWork[[#This Row],[Порция]]>0,AVERAGE(INDEX(tblCUR[GBP],tblWork[[#This Row],[Начало порции]]):INDEX(tblCUR[GBP],tblWork[[#This Row],[Конец порции]])),""),NA()) -> 51.14474 | O112: =IF(rngEnabledUSD,IF(tblWork[[#This Row],[Порция]]>0,AVERAGE(INDEX(tblCUR[USD],tblWork[[#This Row],[Начало порции]]):INDEX(tblCUR[USD],tblWork[[#This Row],[Конец порции]])),""),NA()) -> 26.02206
H113: 111 | I113: =IF(tblWork[[#This Row],[Строка]]<=rngWindowNums,tblWork[[#This Row],[Строка]],) -> 111 | J113: =IF(tblWork[[#This Row],[Порция]]>0,1+(tblWork[[#This Row],[Порция]]-1)*rngPortionSize,"") -> 551 | K113: =IF(tblWork[[#This Row],[Порция]]>0,tblWork[[#This Row],[Начало порции]]+rngPortionSize-1,"") -> 555 | L113: =IF(tblWork[[#This Row],[Порция]]>0,INDEX(tblCUR[],tblWork[[#This Row],[Начало порции]],1),"") -> 2007-03-29 | M113: =IF(rngEnabledEUR,IF(tblWork[[#This Row],[Порция]]>0,AVERAGE(INDEX(tblCUR[EUR],tblWork[[#This Row],[Начало порции]]):INDEX(tblCUR[EUR],tblWork[[#This Row],[Конец порции]])),""),NA()) -> 34.69856 | N113: =IF(rngEnabledGBP,IF(tblWork[[#This Row],[Порция]]>0,AVERAGE(INDEX(tblCUR[GBP],tblWork[[#This Row],[Начало порции]]):INDEX(tblCUR[GBP],tblWork[[#This Row],[Конец порции]])),""),NA()) -> 51.16042 | O113: =IF(rngEnabledUSD,IF(tblWork[[#This Row],[Порция]]>0,AVERAGE(INDEX(tblCUR[USD],tblWork[[#This Row],[Начало порции]]):INDEX(tblCUR[USD],tblWork[[#This Row],[Конец порции]])),""),NA()) -> 26.00118
H114: 112 | I114: =IF(tblWork[[#This Row],[Строка]]<=rngWindowNums,tblWork[[#This Row],[Строка]],) -> 112 | J114: =IF(tblWork[[#This Row],[Порция]]>0,1+(tblWork[[#This Row],[Порция]]-1)*rngPortionSize,"") -> 556 | K114: =IF(tblWork[[#This Row],[Порция]]>0,tblWork[[#This Row],[Начало порции]]+rngPortionSize-1,"") -> 560 | L114: =IF(tblWork[[#This Row],[Порция]]>0,INDEX(tblCUR[],tblWork[[#This Row],[Начало порции]],1),"") -> 2007-04-05 | M114: =IF(rngEnabledEUR,IF(tblWork[[#This Row],[Порция]]>0,AVERAGE(INDEX(tblCUR[EUR],tblWork[[#This Row],[Начало порции]]):INDEX(tblCUR[EUR],tblWork[[#This Row],[Конец порции]])),""),NA()) -> 34.73802 | N114: =IF(rngEnabledGBP,IF(tblWork[[#This Row],[Порция]]>0,AVERAGE(INDEX(tblCUR[GBP],tblWork[[#This Row],[Начало порции]]):INDEX(tblCUR[GBP],tblWork[[#This Row],[Конец порции]])),""),NA()) -> 51.17898 | O114: =IF(rngEnabledUSD,IF(tblWork[[#This Row],[Порция]]>0,AVERAGE(INDEX(tblCUR[USD],tblWork[[#This Row],[Начало порции]]):INDEX(tblCUR[USD],tblWork[[#This Row],[Конец порции]])),""),NA()) -> 25.96546
H115: 113 | I115: =IF(tblWork[[#This Row],[Строка]]<=rngWindowNums,tblWork[[#This Row],[Строка]],) -> 113 | J115: =IF(tblWork[[#This Row],[Порция]]>0,1+(tblWork[[#This Row],[Порция]]-1)*rngPortionSize,"") -> 561 | K115: =IF(tblWork[[#This Row],[Порция]]>0,tblWork[[#This Row],[Начало порции]]+rngPortionSize-1,"") -> 565 | L115: =IF(tblWork[[#This Row],[Порция]]>0,INDEX(tblCUR[],tblWork[[#This Row],[Начало порции]],1),"") -> 2007-04-12 | M115: =IF(rngEnabledEUR,IF(tblWork[[#This Row],[Порция]]>0,AVERAGE(INDEX(tblCUR[EUR],tblWork[[#This Row],[Начало порции]]):INDEX(tblCUR[EUR],tblWork[[#This Row],[Конец порции]])),""),NA()) -> 34.88992 | N115: =IF(rngEnabledGBP,IF(tblWork[[#This Row],[Порция]]>0,AVERAGE(INDEX(tblCUR[GBP],tblWork[[#This Row],[Начало порции]]):INDEX(tblCUR[GBP],tblWork[[#This Row],[Конец порции]])),""),NA()) -> 51.25894 | O115: =IF(rngEnabledUSD,IF(tblWork[[#This Row],[Порция]]>0,AVERAGE(INDEX(tblCUR[USD],tblWork[[#This Row],[Начало порции]]):INDEX(tblCUR[USD],tblWork[[#This Row],[Конец порции]])),""),NA()) -> 25.84148
H116: 114 | I116: =IF(tblWork[[#This Row],[Строка]]<=rngWindowNums,tblWork[[#This Row],[Строка]],) -> 114 | J116: =IF(tblWork[[#This Row],[Порция]]>0,1+(tblWork[[#This Row],[Порция]]-1)*rngPortionSize,"") -> 566 | K116: =IF(tblWork[[#This Row],[Порция]]>0,tblWork[[#This Row],[Начало порции]]+rngPortionSize-1,"") -> 570 | L116: =IF(tblWork[[#This Row],[Порция]]>0,INDEX(tblCUR[],tblWork[[#This Row],[Начало порции]],1),"") -> 2007-04-19 | M116: =IF(rngEnabledEUR,IF(tblWork[[#This Row],[Порция]]>0,AVERAGE(INDEX(tblCUR[EUR],tblWork[[#This Row],[Начало порции]]):INDEX(tblCUR[EUR],tblWork[[#This Row],[Конец порции]])),""),NA()) -> 34.99412 | N116: =IF(rngEnabledGBP,IF(tblWork[[#This Row],[Порция]]>0,AVERAGE(INDEX(tblCUR[GBP],tblWork[[#This Row],[Начало порции]]):INDEX(tblCUR[GBP],tblWork[[#This Row],[Конец порции]])),""),NA()) -> 51.59314 | O116: =IF(rngEnabledUSD,IF(tblWork[[#This Row],[Порция]]>0,AVERAGE(INDEX(tblCUR[USD],tblWork[[#This Row],[Начало порции]]):INDEX(tblCUR[USD],tblWork[[#This Row],[Конец порции]])),""),NA()) -> 25.75486
H117: 115 | I117: =IF(tblWork[[#This Row],[Строка]]<=rngWindowNums,tblWork[[#This Row],[Строка]],) -> 115 | J117: =IF(tblWork[[#This Row],[Порция]]>0,1+(tblWork[[#This Row],[Порция]]-1)*rngPortionSize,"") -> 571 | K117: =IF(tblWork[[#This Row],[Порция]]>0,tblWork[[#This Row],[Начало порции]]+rngPortionSize-1,"") -> 575 | L117: =IF(tblWork[[#This Row],[Порция]]>0,INDEX(tblCUR[],tblWork[[#This Row],[Начало порции]],1),"") -> 2007-04-26 | M117: =IF(rngEnabledEUR,IF(tblWork[[#This Row],[Порция]]>0,AVERAGE(INDEX(tblCUR[EUR],tblWork[[#This Row],[Начало порции]]):INDEX(tblCUR[EUR],tblWork[[#This Row],[Конец порции]])),""),NA()) -> 35.03228 | N117: =IF(rngEnabledGBP,IF(tblWork[[#This Row],[Порция]]>0,AVERAGE(INDEX(tblCUR[GBP],tblWork[[#This Row],[Начало порции]]):INDEX(tblCUR[GBP],tblWork[[#This Row],[Конец порции]])),""),NA()) -> 51.39822 | O117: =IF(rngEnabledUSD,IF(tblWork[[#This Row],[Порция]]>0,AVERAGE(INDEX(tblCUR[USD],tblWork[[#This Row],[Начало порции]]):INDEX(tblCUR[USD],tblWork[[#This Row],[Конец порции]])),""),NA()) -> 25.71486
H118: 116 | I118: =IF(tblWork[[#This Row],[Строка]]<=rngWindowNums,tblWork[[#This Row],[Строка]],) -> 116 | J118: =IF(tblWork[[#This Row],[Порция]]>0,1+(tblWork[[#This Row],[Порция]]-1)*rngPortionSize,"") -> 576 | K118: =IF(tblWork[[#This Row],[Порция]]>0,tblWork[[#This Row],[Начало порции]]+rngPortionSize-1,"") -> 580 | L118: =IF(tblWork[[#This Row],[Порция]]>0,INDEX(tblCUR[],tblWork[[#This Row],[Начало порции]],1),"") -> 2007-05-04 | M118: =IF(rngEnabledEUR,IF(tblWork[[#This Row],[Порция]]>0,AVERAGE(INDEX(tblCUR[EUR],tblWork[[#This Row],[Начало порции]]):INDEX(tblCUR[EUR],tblWork[[#This Row],[Конец порции]])),""),NA()) -> 34.99296 | N118: =IF(rngEnabledGBP,IF(tblWork[[#This Row],[Порция]]>0,AVERAGE(INDEX(tblCUR[GBP],tblWork[[#This Row],[Начало порции]]):INDEX(tblCUR[GBP],tblWork[[#This Row],[Конец порции]])),""),NA()) -> 51.33464 | O118: =IF(rngEnabledUSD,IF(tblWork[[#This Row],[Порция]]>0,AVERAGE(INDEX(tblCUR[USD],tblWork[[#This Row],[Начало порции]]):INDEX(tblCUR[USD],tblWork[[#This Row],[Конец порции]])),""),NA()) -> 25.7487
H119: 117 | I119: =IF(tblWork[[#This Row],[Строка]]<=rngWindowNums,tblWork[[#This Row],[Строка]],) -> 117 | J119: =IF(tblWork[[#This Row],[Порция]]>0,1+(tblWork[[#This Row],[Порция]]-1)*rngPortionSize,"") -> 581 | K119: =IF(tblWork[[#This Row],[Порция]]>0,tblWork[[#This Row],[Начало порции]]+rngPortionSize-1,"") -> 585 | L119: =IF(tblWork[[#This Row],[Порция]]>0,INDEX(tblCUR[],tblWork[[#This Row],[Начало порции]],1),"") -> 2007-05-12 | M119: =IF(rngEnabledEUR,IF(tblWork[[#This Row],[Порция]]>0,AVERAGE(INDEX(tblCUR[EUR],tblWork[[#This Row],[Начало порции]]):INDEX(tblCUR[EUR],tblWork[[#This Row],[Конец порции]])),""),NA()) -> 34.93304 | N119: =IF(rngEnabledGBP,IF(tblWork[[#This Row],[Порция]]>0,AVERAGE(INDEX(tblCUR[GBP],tblWork[[#This Row],[Начало порции]]):INDEX(tblCUR[GBP],tblWork[[#This Row],[Конец порции]])),""),NA()) -> 51.12722 | O119: =IF(rngEnabledUSD,IF(tblWork[[#This Row],[Порция]]>0,AVERAGE(INDEX(tblCUR[USD],tblWork[[#This Row],[Начало порции]]):INDEX(tblCUR[USD],tblWork[[#This Row],[Конец порции]])),""),NA()) -> 25.80076
H120: 118 | I120: =IF(tblWork[[#This Row],[Строка]]<=rngWindowNums,tblWork[[#This Row],[Строка]],) -> 118 | J120: =IF(tblWork[[#This Row],[Порция]]>0,1+(tblWork[[#This Row],[Порция]]-1)*rngPortionSize,"") -> 586 | K120: =IF(tblWork[[#This Row],[Порция]]>0,tblWork[[#This Row],[Начало порции]]+rngPortionSize-1,"") -> 590 | L120: =IF(tblWork[[#This Row],[Порция]]>0,INDEX(tblCUR[],tblWork[[#This Row],[Начало порции]],1),"") -> 2007-05-19 | M120: =IF(rngEnabledEUR,IF(tblWork[[#This Row],[Порция]]>0,AVERAGE(INDEX(tblCUR[EUR],tblWork[[#This Row],[Начало порции]]):INDEX(tblCUR[EUR],tblWork[[#This Row],[Конец порции]])),""),NA()) -> 34.86246 | N120: =IF(rngEnabledGBP,IF(tblWork[[#This Row],[Порция]]>0,AVERAGE(INDEX(tblCUR[GBP],tblWork[[#This Row],[Начало порции]]):INDEX(tblCUR[GBP],tblWork[[#This Row],[Конец порции]])),""),NA()) -> 51.136 | O120: =IF(rngEnabledUSD,IF(tblWork[[#This Row],[Порция]]>0,AVERAGE(INDEX(tblCUR[USD],tblWork[[#This Row],[Начало порции]]):INDEX(tblCUR[USD],tblWork[[#This Row],[Конец порции]])),""),NA()) -> 25.87354
H121: 119 | I121: =IF(tblWork[[#This Row],[Строка]]<=rngWindowNums,tblWork[[#This Row],[Строка]],) -> 119 | J121: =IF(tblWork[[#This Row],[Порция]]>0,1+(tblWork[[#This Row],[Порция]]-1)*rngPortionSize,"") -> 591 | K121: =IF(tblWork[[#This Row],[Порция]]>0,tblWork[[#This Row],[Начало порции]]+rngPortionSize-1,"") -> 595 | L121: =IF(tblWork[[#This Row],[Порция]]>0,INDEX(tblCUR[],tblWork[[#This Row],[Начало порции]],1),"") -> 2007-05-26 | M121: =IF(rngEnabledEUR,IF(tblWork[[#This Row],[Порция]]>0,AVERAGE(INDEX(tblCUR[EUR],tblWork[[#This Row],[Начало порции]]):INDEX(tblCUR[EUR],tblWork[[#This Row],[Конец порции]])),""),NA()) -> 34.81748 | N121: =IF(rngEnabledGBP,IF(tblWork[[#This Row],[Порция]]>0,AVERAGE(INDEX(tblCUR[GBP],tblWork[[#This Row],[Начало порции]]):INDEX(tblCUR[GBP],tblWork[[#This Row],[Конец порции]])),""),NA()) -> 51.3445 | O121: =IF(rngEnabledUSD,IF(tblWork[[#This Row],[Порция]]>0,AVERAGE(INDEX(tblCUR[USD],tblWork[[#This Row],[Начало порции]]):INDEX(tblCUR[USD],tblWork[[#This Row],[Конец порции]])),""),NA()) -> 25.90278
H122: 120 | I122: =IF(tblWork[[#This Row],[Строка]]<=rngWindowNums,tblWork[[#This Row],[Строка]],) -> 120 | J122: =IF(tblWork[[#This Row],[Порция]]>0,1+(tblWork[[#This Row],[Порция]]-1)*rngPortionSize,"") -> 596 | K122: =IF(tblWork[[#This Row],[Порция]]>0,tblWork[[#This Row],[Начало порции]]+rngPortionSize-1,"") -> 600 | L122: =IF(tblWork[[#This Row],[Порция]]>0,INDEX(tblCUR[],tblWork[[#This Row],[Начало порции]],1),"") -> 2007-06-02 | M122: =IF(rngEnabledEUR,IF(tblWork[[#This Row],[Порция]]>0,AVERAGE(INDEX(tblCUR[EUR],tblWork[[#This Row],[Начало порции]]):INDEX(tblCUR[EUR],tblWork[[#This Row],[Конец порции]])),""),NA()) -> 34.8719 | N122: =IF(rngEnabledGBP,IF(tblWork[[#This Row],[Порция]]>0,AVERAGE(INDEX(tblCUR[GBP],tblWork[[#This Row],[Начало порции]]):INDEX(tblCUR[GBP],tblWork[[#This Row],[Конец порции]])),""),NA()) -> 51.42858 | O122: =IF(rngEnabledUSD,IF(tblWork[[#This Row],[Порция]]>0,AVERAGE(INDEX(tblCUR[USD],tblWork[[#This Row],[Начало порции]]):INDEX(tblCUR[USD],tblWork[[#This Row],[Конец порции]])),""),NA()) -> 25.86024
H123: 121 | I123: =IF(tblWork[[#This Row],[Строка]]<=rngWindowNums,tblWork[[#This Row],[Строка]],) -> 121 | J123: =IF(tblWork[[#This Row],[Порция]]>0,1+(tblWork[[#This Row],[Порция]]-1)*rngPortionSize,"") -> 601 | K123: =IF(tblWork[[#This Row],[Порция]]>0,tblWork[[#This Row],[Начало порции]]+rngPortionSize-1,"") -> 605 | L123: =IF(tblWork[[#This Row],[Порция]]>0,INDEX(tblCUR[],tblWork[[#This Row],[Начало порции]],1),"") -> 2007-06-09 | M123: =IF(rngEnabledEUR,IF(tblWork[[#This Row],[Порция]]>0,AVERAGE(INDEX(tblCUR[EUR],tblWork[[#This Row],[Начало порции]]):INDEX(tblCUR[EUR],tblWork[[#This Row],[Конец порции]])),""),NA()) -> 34.69506 | N123: =IF(rngEnabledGBP,IF(tblWork[[#This Row],[Порция]]>0,AVERAGE(INDEX(tblCUR[GBP],tblWork[[#This Row],[Начало порции]]):INDEX(tblCUR[GBP],tblWork[[#This Row],[Конец порции]])),""),NA()) -> 51.30634 | O123: =IF(rngEnabledUSD,IF(tblWork[[#This Row],[Порция]]>0,AVERAGE(INDEX(tblCUR[USD],tblWork[[#This Row],[Начало порции]]):INDEX(tblCUR[USD],tblWork[[#This Row],[Конец порции]])),""),NA()) -> 26.00532
H124: 122 | I124: =IF(tblWork[[#This Row],[Строка]]<=rngWindowNums,tblWork[[#This Row],[Строка]],) -> 122 | J124: =IF(tblWork[[#This Row],[Порция]]>0,1+(tblWork[[#This Row],[Порция]]-1)*rngPortionSize,"") -> 606 | K124: =IF(tblWork[[#This Row],[Порция]]>0,tblWork[[#This Row],[Начало порции]]+rngPortionSize-1,"") -> 610 | L124: =IF(tblWork[[#This Row],[Порция]]>0,INDEX(tblCUR[],tblWork[[#This Row],[Начало порции]],1),"") -> 2007-06-19 | M124: =IF(rngEnabledEUR,IF(tblWork[[#This Row],[Порция]]>0,AVERAGE(INDEX(tblCUR[EUR],tblWork[[#This Row],[Начало порции]]):INDEX(tblCUR[EUR],tblWork[[#This Row],[Конец порции]])),""),NA()) -> 34.7916 | N124: =IF(rngEnabledGBP,IF(tblWork[[#This Row],[Порция]]>0,AVERAGE(INDEX(tblCUR[GBP],tblWork[[#This Row],[Начало порции]]):INDEX(tblCUR[GBP],tblWork[[#This Row],[Конец порции]])),""),NA()) -> 51.58004 | O124: =IF(rngEnabledUSD,IF(tblWork[[#This Row],[Порция]]>0,AVERAGE(INDEX(tblCUR[USD],tblWork[[#This Row],[Начало порции]]):INDEX(tblCUR[USD],tblWork[[#This Row],[Конец порции]])),""),NA()) -> 25.94492
H125: 123 | I125: =IF(tblWork[[#This Row],[Строка]]<=rngWindowNums,tblWork[[#This Row],[Строка]],) -> 123 | J125: =IF(tblWork[[#This Row],[Порция]]>0,1+(tblWork[[#This Row],[Порция]]-1)*rngPortionSize,"") -> 611 | K125: =IF(tblWork[[#This Row],[Порция]]>0,tblWork[[#This Row],[Начало порции]]+rngPortionSize-1,"") -> 615 | L125: =IF(tblWork[[#This Row],[Порция]]>0,INDEX(tblCUR[],tblWork[[#This Row],[Начало порции]],1),"") -> 2007-06-26 | M125: =IF(rngEnabledEUR,IF(tblWork[[#This Row],[Порция]]>0,AVERAGE(INDEX(tblCUR[EUR],tblWork[[#This Row],[Начало порции]]):INDEX(tblCUR[EUR],tblWork[[#This Row],[Конец порции]])),""),NA()) -> 34.73516 | N125: =IF(rngEnabledGBP,IF(tblWork[[#This Row],[Порция]]>0,AVERAGE(INDEX(tblCUR[GBP],tblWork[[#This Row],[Начало порции]]):INDEX(tblCUR[GBP],tblWork[[#This Row],[Конец порции]])),""),NA()) -> 51.63576 | O125: =IF(rngEnabledUSD,IF(tblWork[[#This Row],[Порция]]>0,AVERAGE(INDEX(tblCUR[USD],tblWork[[#This Row],[Начало порции]]):INDEX(tblCUR[USD],tblWork[[#This Row],[Конец порции]])),""),NA()) -> 25.82772
H126: 124 | I126: =IF(tblWork[[#This Row],[Строка]]<=rngWindowNums,tblWork[[#This Row],[Строка]],) -> 124 | J126: =IF(tblWork[[#This Row],[Порция]]>0,1+(tblWork[[#This Row],[Порция]]-1)*rngPortionSize,"") -> 616 | K126: =IF(tblWork[[#This Row],[Порция]]>0,tblWork[[#This Row],[Начало порции]]+rngPortionSize-1,"") -> 620 | L126: =IF(tblWork[[#This Row],[Порция]]>0,INDEX(tblCUR[],tblWork[[#This Row],[Начало порции]],1),"") -> 2007-07-03 | M126: =IF(rngEnabledEUR,IF(tblWork[[#This Row],[Порция]]>0,AVERAGE(INDEX(tblCUR[EUR],tblWork[[#This Row],[Начало порции]]):INDEX(tblCUR[EUR],tblWork[[#This Row],[Конец порции]])),""),NA()) -> 34.93268 | N126: =IF(rngEnabledGBP,IF(tblWork[[#This Row],[Порция]]>0,AVERAGE(INDEX(tblCUR[GBP],tblWork[[#This Row],[Начало порции]]):INDEX(tblCUR[GBP],tblWork[[#This Row],[Конец порции]])),""),NA()) -> 51.75958 | O126: =IF(rngEnabledUSD,IF(tblWork[[#This Row],[Порция]]>0,AVERAGE(INDEX(tblCUR[USD],tblWork[[#This Row],[Начало порции]]):INDEX(tblCUR[USD],tblWork[[#This Row],[Конец порции]])),""),NA()) -> 25.69076
H127: 125 | I127: =IF(tblWork[[#This Row],[Строка]]<=rngWindowNums,tblWork[[#This Row],[Строка]],) -> 125 | J127: =IF(tblWork[[#This Row],[Порция]]>0,1+(tblWork[[#This Row],[Порция]]-1)*rngPortionSize,"") -> 621 | K127: =IF(tblWork[[#This Row],[Порция]]>0,tblWork[[#This Row],[Начало порции]]+rngPortionSize-1,"") -> 625 | L127: =IF(tblWork[[#This Row],[Порция]]>0,INDEX(tblCUR[],tblWork[[#This Row],[Начало порции]],1),"") -> 2007-07-10 | M127: =IF(rngEnabledEUR,IF(tblWork[[#This Row],[Порция]]>0,AVERAGE(INDEX(tblCUR[EUR],tblWork[[#This Row],[Начало порции]]):INDEX(tblCUR[EUR],tblWork[[#This Row],[Конец порции]])),""),NA()) -> 35.05714 | N127: =IF(rngEnabledGBP,IF(tblWork[[#This Row],[Порция]]>0,AVERAGE(INDEX(tblCUR[GBP],tblWork[[#This Row],[Начало порции]]):INDEX(tblCUR[GBP],tblWork[[#This Row],[Конец порции]])),""),NA()) -> 51.74836 | O127: =IF(rngEnabledUSD,IF(tblWork[[#This Row],[Порция]]>0,AVERAGE(INDEX(tblCUR[USD],tblWork[[#This Row],[Начало порции]]):INDEX(tblCUR[USD],tblWork[[#This Row],[Конец порции]])),""),NA()) -> 25.58136
H128: 126 | I128: =IF(tblWork[[#This Row],[Строка]]<=rngWindowNums,tblWork[[#This Row],[Строка]],) -> 126 | J128: =IF(tblWork[[#This Row],[Порция]]>0,1+(tblWork[[#This Row],[Порция]]-1)*rngPortionSize,"") -> 626 | K128: =IF(tblWork[[#This Row],[Порция]]>0,tblWork[[#This Row],[Начало порции]]+rngPortionSize-1,"") -> 630 | L128: =IF(tblWork[[#This Row],[Порция]]>0,INDEX(tblCUR[],tblWork[[#This Row],[Начало порции]],1),"") -> 2007-07-17 | M128: =IF(rngEnabledEUR,IF(tblWork[[#This Row],[Порция]]>0,AVERAGE(INDEX(tblCUR[EUR],tblWork[[#This Row],[Начало порции]]):INDEX(tblCUR[EUR],tblWork[[#This Row],[Конец порции]])),""),NA()) -> 35.10304 | N128: =IF(rngEnabledGBP,IF(tblWork[[#This Row],[Порция]]>0,AVERAGE(INDEX(tblCUR[GBP],tblWork[[#This Row],[Начало порции]]):INDEX(tblCUR[GBP],tblWork[[#This Row],[Конец порции]])),""),NA()) -> 52.0385 | O128: =IF(rngEnabledUSD,IF(tblWork[[#This Row],[Порция]]>0,AVERAGE(INDEX(tblCUR[USD],tblWork[[#This Row],[Начало порции]]):INDEX(tblCUR[USD],tblWork[[#This Row],[Конец порции]])),""),NA()) -> 25.44104
H129: 127 | I129: =IF(tblWork[[#This Row],[Строка]]<=rngWindowNums,tblWork[[#This Row],[Строка]],) -> 127 | J129: =IF(tblWork[[#This Row],[Порция]]>0,1+(tblWork[[#This Row],[Порция]]-1)*rngPortionSize,"") -> 631 | K129: =IF(tblWork[[#This Row],[Порция]]>0,tblWork[[#This Row],[Начало порции]]+rngPortionSize-1,"") -> 635 | L129: =IF(tblWork[[#This Row],[Порция]]>0,INDEX(tblCUR[],tblWork[[#This Row],[Начало порции]],1),"") -> 2007-07-24 | M129: =IF(rngEnabledEUR,IF(tblWork[[#This Row],[Порция]]>0,AVERAGE(INDEX(tblCUR[EUR],tblWork[[#This Row],[Начало порции]]):INDEX(tblCUR[EUR],tblWork[[#This Row],[Конец порции]])),""),NA()) -> 35.04572 | N129: =IF(rngEnabledGBP,IF(tblWork[[#This Row],[Порция]]>0,AVERAGE(INDEX(tblCUR[GBP],tblWork[[#This Row],[Начало порции]]):INDEX(tblCUR[GBP],tblWork[[#This Row],[Конец порции]])),""),NA()) -> 52.2773 | O129: =IF(rngEnabledUSD,IF(tblWork[[#This Row],[Порция]]>0,AVERAGE(INDEX(tblCUR[USD],tblWork[[#This Row],[Начало порции]]):INDEX(tblCUR[USD],tblWork[[#This Row],[Конец порции]])),""),NA()) -> 25.43802
H130: 128 | I130: =IF(tblWork[[#This Row],[Строка]]<=rngWindowNums,tblWork[[#This Row],[Строка]],) -> 128 | J130: =IF(tblWork[[#This Row],[Порция]]>0,1+(tblWork[[#This Row],[Порция]]-1)*rngPortionSize,"") -> 636 | K130: =IF(tblWork[[#This Row],[Порция]]>0,tblWork[[#This Row],[Начало порции]]+rngPortionSize-1,"") -> 640 | L130: =IF(tblWork[[#This Row],[Порция]]>0,INDEX(tblCUR[],tblWork[[#This Row],[Начало порции]],1),"") -> 2007-07-31 | M130: =IF(rngEnabledEUR,IF(tblWork[[#This Row],[Порция]]>0,AVERAGE(INDEX(tblCUR[EUR],tblWork[[#This Row],[Начало порции]]):INDEX(tblCUR[EUR],tblWork[[#This Row],[Конец порции]])),""),NA()) -> 34.9783 | N130: =IF(rngEnabledGBP,IF(tblWork[[#This Row],[Порция]]>0,AVERAGE(INDEX(tblCUR[GBP],tblWork[[#This Row],[Начало порции]]):INDEX(tblCUR[GBP],tblWork[[#This Row],[Конец порции]])),""),NA()) -> 51.88096 | O130: =IF(rngEnabledUSD,IF(tblWork[[#This Row],[Порция]]>0,AVERAGE(INDEX(tblCUR[USD],tblWork[[#This Row],[Начало порции]]):INDEX(tblCUR[USD],tblWork[[#This Row],[Конец порции]])),""),NA()) -> 25.57908
H131: 129 | I131: =IF(tblWork[[#This Row],[Строка]]<=rngWindowNums,tblWork[[#This Row],[Строка]],) -> 129 | J131: =IF(tblWork[[#This Row],[Порция]]>0,1+(tblWork[[#This Row],[Порция]]-1)*rngPortionSize,"") -> 641 | K131: =IF(tblWork[[#This Row],[Порция]]>0,tblWork[[#This Row],[Начало порции]]+rngPortionSize-1,"") -> 645 | L131: =IF(tblWork[[#This Row],[Порция]]>0,INDEX(tblCUR[],tblWork[[#This Row],[Начало порции]],1),"") -> 2007-08-07 | M131: =IF(rngEnabledEUR,IF(tblWork[[#This Row],[Порция]]>0,AVERAGE(INDEX(tblCUR[EUR],tblWork[[#This Row],[Начало порции]]):INDEX(tblCUR[EUR],tblWork[[#This Row],[Конец порции]])),""),NA()) -> 35.03428 | N131: =IF(rngEnabledGBP,IF(tblWork[[#This Row],[Порция]]>0,AVERAGE(INDEX(tblCUR[GBP],tblWork[[#This Row],[Начало порции]]):INDEX(tblCUR[GBP],tblWork[[#This Row],[Конец порции]])),""),NA()) -> 51.68082 | O131: =IF(rngEnabledUSD,IF(tblWork[[#This Row],[Порция]]>0,AVERAGE(INDEX(tblCUR[USD],tblWork[[#This Row],[Начало порции]]):INDEX(tblCUR[USD],tblWork[[#This Row],[Конец порции]])),""),NA()) -> 25.45146
H132: 130 | I132: =IF(tblWork[[#This Row],[Строка]]<=rngWindowNums,tblWork[[#This Row],[Строка]],) -> 130 | J132: =IF(tblWork[[#This Row],[Порция]]>0,1+(tblWork[[#This Row],[Порция]]-1)*rngPortionSize,"") -> 646 | K132: =IF(tblWork[[#This Row],[Порция]]>0,tblWork[[#This Row],[Начало порции]]+rngPortionSize-1,"") -> 650 | L132: =IF(tblWork[[#This Row],[Порция]]>0,INDEX(tblCUR[],tblWork[[#This Row],[Начало порции]],1),"") -> 2007-08-14 | M132: =IF(rngEnabledEUR,IF(tblWork[[#This Row],[Порция]]>0,AVERAGE(INDEX(tblCUR[EUR],tblWork[[#This Row],[Начало порции]]):INDEX(tblCUR[EUR],tblWork[[#This Row],[Конец порции]])),""),NA()) -> 34.65066 | N132: =IF(rngEnabledGBP,IF(tblWork[[#This Row],[Порция]]>0,AVERAGE(INDEX(tblCUR[GBP],tblWork[[#This Row],[Начало порции]]):INDEX(tblCUR[GBP],tblWork[[#This Row],[Конец порции]])),""),NA()) -> 51.186 | O132: =IF(rngEnabledUSD,IF(tblWork[[#This Row],[Порция]]>0,AVERAGE(INDEX(tblCUR[USD],tblWork[[#This Row],[Начало порции]]):INDEX(tblCUR[USD],tblWork[[#This Row],[Конец порции]])),""),NA()) -> 25.63088
H133: 131 | I133: =IF(tblWork[[#This Row],[Строка]]<=rngWindowNums,tblWork[[#This Row],[Строка]],) -> 131 | J133: =IF(tblWork[[#This Row],[Порция]]>0,1+(tblWork[[#This Row],[Порция]]-1)*rngPortionSize,"") -> 651 | K133: =IF(tblWork[[#This Row],[Порция]]>0,tblWork[[#This Row],[Начало порции]]+rngPortionSize-1,"") -> 655 | L133: =IF(tblWork[[#This Row],[Порция]]>0,INDEX(tblCUR[],tblWork[[#This Row],[Начало порции]],1),"") -> 2007-08-21 | M133: =IF(rngEnabledEUR,IF(tblWork[[#This Row],[Порция]]>0,AVERAGE(INDEX(tblCUR[EUR],tblWork[[#This Row],[Начало порции]]):INDEX(tblCUR[EUR],tblWork[[#This Row],[Конец порции]])),""),NA()) -> 34.83726 | N133: =IF(rngEnabledGBP,IF(tblWork[[#This Row],[Порция]]>0,AVERAGE(INDEX(tblCUR[GBP],tblWork[[#This Row],[Начало порции]]):INDEX(tblCUR[GBP],tblWork[[#This Row],[Конец порции]])),""),NA()) -> 51.2981 | O133: =IF(rngEnabledUSD,IF(tblWork[[#This Row],[Порция]]>0,AVERAGE(INDEX(tblCUR[USD],tblWork[[#This Row],[Начало порции]]):INDEX(tblCUR[USD],tblWork[[#This Row],[Конец порции]])),""),NA()) -> 25.77912
H134: 132 | I134: =IF(tblWork[[#This Row],[Строка]]<=rngWindowNums,tblWork[[#This Row],[Строка]],) -> 132 | J134: =IF(tblWork[[#This Row],[Порция]]>0,1+(tblWork[[#This Row],[Порция]]-1)*rngPortionSize,"") -> 656 | K134: =IF(tblWork[[#This Row],[Порция]]>0,tblWork[[#This Row],[Начало порции]]+rngPortionSize-1,"") -> 660 | L134: =IF(tblWork[[#This Row],[Порция]]>0,INDEX(tblCUR[],tblWork[[#This Row],[Начало порции]],1),"") -> 2007-08-28 | M134: =IF(rngEnabledEUR,IF(tblWork[[#This Row],[Порция]]>0,AVERAGE(INDEX(tblCUR[EUR],tblWork[[#This Row],[Начало порции]]):INDEX(tblCUR[EUR],tblWork[[#This Row],[Конец порции]])),""),NA()) -> 35.02336 | N134: =IF(rngEnabledGBP,IF(tblWork[[#This Row],[Порция]]>0,AVERAGE(INDEX(tblCUR[GBP],tblWork[[#This Row],[Начало порции]]):INDEX(tblCUR[GBP],tblWork[[#This Row],[Конец порции]])),""),NA()) -> 51.63974 | O134: =IF(rngEnabledUSD,IF(tblWork[[#This Row],[Порция]]>0,AVERAGE(INDEX(tblCUR[USD],tblWork[[#This Row],[Начало порции]]):INDEX(tblCUR[USD],tblWork[[#This Row],[Конец порции]])),""),NA()) -> 25.67366
H135: 133 | I135: =IF(tblWork[[#This Row],[Строка]]<=rngWindowNums,tblWork[[#This Row],[Строка]],) -> 133 | J135: =IF(tblWork[[#This Row],[Порция]]>0,1+(tblWork[[#This Row],[Порция]]-1)*rngPortionSize,"") -> 661 | K135: =IF(tblWork[[#This Row],[Порция]]>0,tblWork[[#This Row],[Начало порции]]+rngPortionSize-1,"") -> 665 | L135: =IF(tblWork[[#This Row],[Порция]]>0,INDEX(tblCUR[],tblWork[[#This Row],[Начало порции]],1),"") -> 2007-09-04 | M135: =IF(rngEnabledEUR,IF(tblWork[[#This Row],[Порция]]>0,AVERAGE(INDEX(tblCUR[EUR],tblWork[[#This Row],[Начало порции]]):INDEX(tblCUR[EUR],tblWork[[#This Row],[Конец порции]])),""),NA()) -> 34.95602 | N135: =IF(rngEnabledGBP,IF(tblWork[[#This Row],[Порция]]>0,AVERAGE(INDEX(tblCUR[GBP],tblWork[[#This Row],[Начало порции]]):INDEX(tblCUR[GBP],tblWork[[#This Row],[Конец порции]])),""),NA()) -> 51.7103 | O135: =IF(rngEnabledUSD,IF(tblWork[[#This Row],[Порция]]>0,AVERAGE(INDEX(tblCUR[USD],tblWork[[#This Row],[Начало порции]]):INDEX(tblCUR[USD],tblWork[[#This Row],[Конец порции]])),""),NA()) -> 25.64264
H136: 134 | I136: =IF(tblWork[[#This Row],[Строка]]<=rngWindowNums,tblWork[[#This Row],[Строка]],) -> 134 | J136: =IF(tblWork[[#This Row],[Порция]]>0,1+(tblWork[[#This Row],[Порция]]-1)*rngPortionSize,"") -> 666 | K136: =IF(tblWork[[#This Row],[Порция]]>0,tblWork[[#This Row],[Начало порции]]+rngPortionSize-1,"") -> 670 | L136: =IF(tblWork[[#This Row],[Порция]]>0,INDEX(tblCUR[],tblWork[[#This Row],[Начало порции]],1),"") -> 2007-09-11 | M136: =IF(rngEnabledEUR,IF(tblWork[[#This Row],[Порция]]>0,AVERAGE(INDEX(tblCUR[EUR],tblWork[[#This Row],[Начало порции]]):INDEX(tblCUR[EUR],tblWork[[#This Row],[Конец порции]])),""),NA()) -> 35.20858 | N136: =IF(rngEnabledGBP,IF(tblWork[[#This Row],[Порция]]>0,AVERAGE(INDEX(tblCUR[GBP],tblWork[[#This Row],[Начало порции]]):INDEX(tblCUR[GBP],tblWork[[#This Row],[Конец порции]])),""),NA()) -> 51.59322 | O136: =IF(rngEnabledUSD,IF(tblWork[[#This Row],[Порция]]>0,AVERAGE(INDEX(tblCUR[USD],tblWork[[#This Row],[Начало порции]]):INDEX(tblCUR[USD],tblWork[[#This Row],[Конец порции]])),""),NA()) -> 25.44038
H137: 135 | I137: =IF(tblWork[[#This Row],[Строка]]<=rngWindowNums,tblWork[[#This Row],[Строка]],) -> 135 | J137: =IF(tblWork[[#This Row],[Порция]]>0,1+(tblWork[[#This Row],[Порция]]-1)*rngPortionSize,"") -> 671 | K137: =IF(tblWork[[#This Row],[Порция]]>0,tblWork[[#This Row],[Начало порции]]+rngPortionSize-1,"") -> 675 | L137: =IF(tblWork[[#This Row],[Порция]]>0,INDEX(tblCUR[],tblWork[[#This Row],[Начало порции]],1),"") -> 2007-09-18 | M137: =IF(rngEnabledEUR,IF(tblWork[[#This Row],[Порция]]>0,AVERAGE(INDEX(tblCUR[EUR],tblWork[[#This Row],[Начало порции]]):INDEX(tblCUR[EUR],tblWork[[#This Row],[Конец порции]])),""),NA()) -> 35.19754 | N137: =IF(rngEnabledGBP,IF(tblWork[[#This Row],[Порция]]>0,AVERAGE(INDEX(tblCUR[GBP],tblWork[[#This Row],[Начало порции]]):INDEX(tblCUR[GBP],tblWork[[#This Row],[Конец порции]])),""),NA()) -> 50.5136 | O137: =IF(rngEnabledUSD,IF(tblWork[[#This Row],[Порция]]>0,AVERAGE(INDEX(tblCUR[USD],tblWork[[#This Row],[Начало порции]]):INDEX(tblCUR[USD],tblWork[[#This Row],[Конец порции]])),""),NA()) -> 25.20996
H138: 136 | I138: =IF(tblWork[[#This Row],[Строка]]<=rngWindowNums,tblWork[[#This Row],[Строка]],) -> 136 | J138: =IF(tblWork[[#This Row],[Порция]]>0,1+(tblWork[[#This Row],[Порция]]-1)*rngPortionSize,"") -> 676 | K138: =IF(tblWork[[#This Row],[Порция]]>0,tblWork[[#This Row],[Начало порции]]+rngPortionSize-1,"") -> 680 | L138: =IF(tblWork[[#This Row],[Порция]]>0,INDEX(tblCUR[],tblWork[[#This Row],[Начало порции]],1),"") -> 2007-09-25 | M138: =IF(rngEnabledEUR,IF(tblWork[[#This Row],[Порция]]>0,AVERAGE(INDEX(tblCUR[EUR],tblWork[[#This Row],[Начало порции]]):INDEX(tblCUR[EUR],tblWork[[#This Row],[Конец порции]])),""),NA()) -> 35.29906 | N138: =IF(rngEnabledGBP,IF(tblWork[[#This Row],[Порция]]>0,AVERAGE(INDEX(tblCUR[GBP],tblWork[[#This Row],[Начало порции]]):INDEX(tblCUR[GBP],tblWork[[#This Row],[Конец порции]])),""),NA()) -> 50.48442 | O138: =IF(rngEnabledUSD,IF(tblWork[[#This Row],[Порция]]>0,AVERAGE(INDEX(tblCUR[USD],tblWork[[#This Row],[Начало порции]]):INDEX(tblCUR[USD],tblWork[[#This Row],[Конец порции]])),""),NA()) -> 24.98488
H139: 137 | I139: =IF(tblWork[[#This Row],[Строка]]<=rngWindowNums,tblWork[[#This Row],[Строка]],) -> 137 | J139: =IF(tblWork[[#This Row],[Порция]]>0,1+(tblWork[[#This Row],[Порция]]-1)*rngPortionSize,"") -> 681 | K139: =IF(tblWork[[#This Row],[Порция]]>0,tblWork[[#This Row],[Начало порции]]+rngPortionSize-1,"") -> 685 | L139: =IF(tblWork[[#This Row],[Порция]]>0,INDEX(tblCUR[],tblWork[[#This Row],[Начало порции]],1),"") -> 2007-10-02 | M139: =IF(rngEnabledEUR,IF(tblWork[[#This Row],[Порция]]>0,AVERAGE(INDEX(tblCUR[EUR],tblWork[[#This Row],[Начало порции]]):INDEX(tblCUR[EUR],tblWork[[#This Row],[Конец порции]])),""),NA()) -> 35.33902 | N139: =IF(rngEnabledGBP,IF(tblWork[[#This Row],[Порция]]>0,AVERAGE(INDEX(tblCUR[GBP],tblWork[[#This Row],[Начало порции]]):INDEX(tblCUR[GBP],tblWork[[#This Row],[Конец порции]])),""),NA()) -> 50.84894 | O139: =IF(rngEnabledUSD,IF(tblWork[[#This Row],[Порция]]>0,AVERAGE(INDEX(tblCUR[USD],tblWork[[#This Row],[Начало порции]]):INDEX(tblCUR[USD],tblWork[[#This Row],[Конец порции]])),""),NA()) -> 24.94198
H140: 138 | I140: =IF(tblWork[[#This Row],[Строка]]<=rngWindowNums,tblWork[[#This Row],[Строка]],) -> 138 | J140: =IF(tblWork[[#This Row],[Порция]]>0,1+(tblWork[[#This Row],[Порция]]-1)*rngPortionSize,"") -> 686 | K140: =IF(tblWork[[#This Row],[Порция]]>0,tblWork[[#This Row],[Начало порции]]+rngPortionSize-1,"") -> 690 | L140: =IF(tblWork[[#This Row],[Порция]]>0,INDEX(tblCUR[],tblWork[[#This Row],[Начало порции]],1),"") -> 2007-10-09 | M140: =IF(rngEnabledEUR,IF(tblWork[[#This Row],[Порция]]>0,AVERAGE(INDEX(tblCUR[EUR],tblWork[[#This Row],[Начало порции]]):INDEX(tblCUR[EUR],tblWork[[#This Row],[Конец порции]])),""),NA()) -> 35.2782 | N140: =IF(rngEnabledGBP,IF(tblWork[[#This Row],[Порция]]>0,AVERAGE(INDEX(tblCUR[GBP],tblWork[[#This Row],[Начало порции]]):INDEX(tblCUR[GBP],tblWork[[#This Row],[Конец порции]])),""),NA()) -> 50.8337 | O140: =IF(rngEnabledUSD,IF(tblWork[[#This Row],[Порция]]>0,AVERAGE(INDEX(tblCUR[USD],tblWork[[#This Row],[Начало порции]]):INDEX(tblCUR[USD],tblWork[[#This Row],[Конец порции]])),""),NA()) -> 24.97308
H141: 139 | I141: =IF(tblWork[[#This Row],[Строка]]<=rngWindowNums,tblWork[[#This Row],[Строка]],) -> 139 | J141: =IF(tblWork[[#This Row],[Порция]]>0,1+(tblWork[[#This Row],[Порция]]-1)*rngPortionSize,"") -> 691 | K141: =IF(tblWork[[#This Row],[Порция]]>0,tblWork[[#This Row],[Начало порции]]+rngPortionSize-1,"") -> 695 | L141: =IF(tblWork[[#This Row],[Порция]]>0,INDEX(tblCUR[],tblWork[[#This Row],[Начало порции]],1),"") -> 2007-10-16 | M141: =IF(rngEnabledEUR,IF(tblWork[[#This Row],[Порция]]>0,AVERAGE(INDEX(tblCUR[EUR],tblWork[[#This Row],[Начало порции]]):INDEX(tblCUR[EUR],tblWork[[#This Row],[Конец порции]])),""),NA()) -> 35.40082 | N141: =IF(rngEnabledGBP,IF(tblWork[[#This Row],[Порция]]>0,AVERAGE(INDEX(tblCUR[GBP],tblWork[[#This Row],[Начало порции]]):INDEX(tblCUR[GBP],tblWork[[#This Row],[Конец порции]])),""),NA()) -> 50.75718 | O141: =IF(rngEnabledUSD,IF(tblWork[[#This Row],[Порция]]>0,AVERAGE(INDEX(tblCUR[USD],tblWork[[#This Row],[Начало порции]]):INDEX(tblCUR[USD],tblWork[[#This Row],[Конец порции]])),""),NA()) -> 24.8952
H142: 140 | I142: =IF(tblWork[[#This Row],[Строка]]<=rngWindowNums,tblWork[[#This Row],[Строка]],) -> 140 | J142: =IF(tblWork[[#This Row],[Порция]]>0,1+(tblWork[[#This Row],[Порция]]-1)*rngPortionSize,"") -> 696 | K142: =IF(tblWork[[#This Row],[Порция]]>0,tblWork[[#This Row],[Начало порции]]+rngPortionSize-1,"") -> 700 | L142: =IF(tblWork[[#This Row],[Порция]]>0,INDEX(tblCUR[],tblWork[[#This Row],[Начало порции]],1),"") -> 2007-10-23 | M142: =IF(rngEnabledEUR,IF(tblWork[[#This Row],[Порция]]>0,AVERAGE(INDEX(tblCUR[EUR],tblWork[[#This Row],[Начало порции]]):INDEX(tblCUR[EUR],tblWork[[#This Row],[Конец порции]])),""),NA()) -> 35.46818 | N142: =IF(rngEnabledGBP,IF(tblWork[[#This Row],[Порция]]>0,AVERAGE(INDEX(tblCUR[GBP],tblWork[[#This Row],[Начало порции]]):INDEX(tblCUR[GBP],tblWork[[#This Row],[Конец порции]])),""),NA()) -> 50.88376 | O142: =IF(rngEnabledUSD,IF(tblWork[[#This Row],[Порция]]>0,AVERAGE(INDEX(tblCUR[USD],tblWork[[#This Row],[Начало порции]]):INDEX(tblCUR[USD],tblWork[[#This Row],[Конец порции]])),""),NA()) -> 24.84866
H143: 141 | I143: =IF(tblWork[[#This Row],[Строка]]<=rngWindowNums,tblWork[[#This Row],[Строка]],) -> 141 | J143: =IF(tblWork[[#This Row],[Порция]]>0,1+(tblWork[[#This Row],[Порция]]-1)*rngPortionSize,"") -> 701 | K143: =IF(tblWork[[#This Row],[Порция]]>0,tblWork[[#This Row],[Начало порции]]+rngPortionSize-1,"") -> 705 | L143: =IF(tblWork[[#This Row],[Порция]]>0,INDEX(tblCUR[],tblWork[[#This Row],[Начало порции]],1),"") -> 2007-10-30 | M143: =IF(rngEnabledEUR,IF(tblWork[[#This Row],[Порция]]>0,AVERAGE(INDEX(tblCUR[EUR],tblWork[[#This Row],[Начало порции]]):INDEX(tblCUR[EUR],tblWork[[#This Row],[Конец порции]])),""),NA()) -> 35.6454 | N143: =IF(rngEnabledGBP,IF(tblWork[[#This Row],[Порция]]>0,AVERAGE(INDEX(tblCUR[GBP],tblWork[[#This Row],[Начало порции]]):INDEX(tblCUR[GBP],tblWork[[#This Row],[Конец порции]])),""),NA()) -> 51.11214 | O143: =IF(rngEnabledUSD,IF(tblWork[[#This Row],[Порция]]>0,AVERAGE(INDEX(tblCUR[USD],tblWork[[#This Row],[Начало порции]]):INDEX(tblCUR[USD],tblWork[[#This Row],[Конец порции]])),""),NA()) -> 24.68932
H144: 142 | I144: =IF(tblWork[[#This Row],[Строка]]<=rngWindowNums,tblWork[[#This Row],[Строка]],) -> 142 | J144: =IF(tblWork[[#This Row],[Порция]]>0,1+(tblWork[[#This Row],[Порция]]-1)*rngPortionSize,"") -> 706 | K144: =IF(tblWork[[#This Row],[Порция]]>0,tblWork[[#This Row],[Начало порции]]+rngPortionSize-1,"") -> 710 | L144: =IF(tblWork[[#This Row],[Порция]]>0,INDEX(tblCUR[],tblWork[[#This Row],[Начало порции]],1),"") -> 2007-11-07 | M144: =IF(rngEnabledEUR,IF(tblWork[[#This Row],[Порция]]>0,AVERAGE(INDEX(tblCUR[EUR],tblWork[[#This Row],[Начало порции]]):INDEX(tblCUR[EUR],tblWork[[#This Row],[Конец порции]])),""),NA()) -> 35.85496 | N144: =IF(rngEnabledGBP,IF(tblWork[[#This Row],[Порция]]>0,AVERAGE(INDEX(tblCUR[GBP],tblWork[[#This Row],[Начало порции]]):INDEX(tblCUR[GBP],tblWork[[#This Row],[Конец порции]])),""),NA()) -> 51.33898 | O144: =IF(rngEnabledUSD,IF(tblWork[[#This Row],[Порция]]>0,AVERAGE(INDEX(tblCUR[USD],tblWork[[#This Row],[Начало порции]]):INDEX(tblCUR[USD],tblWork[[#This Row],[Конец порции]])),""),NA()) -> 24.51178
H145: 143 | I145: =IF(tblWork[[#This Row],[Строка]]<=rngWindowNums,tblWork[[#This Row],[Строка]],) -> 143 | J145: =IF(tblWork[[#This Row],[Порция]]>0,1+(tblWork[[#This Row],[Порция]]-1)*rngPortionSize,"") -> 711 | K145: =IF(tblWork[[#This Row],[Порция]]>0,tblWork[[#This Row],[Начало порции]]+rngPortionSize-1,"") -> 715 | L145: =IF(tblWork[[#This Row],[Порция]]>0,INDEX(tblCUR[],tblWork[[#This Row],[Начало порции]],1),"") -> 2007-11-14 | M145: =IF(rngEnabledEUR,IF(tblWork[[#This Row],[Порция]]>0,AVERAGE(INDEX(tblCUR[EUR],tblWork[[#This Row],[Начало порции]]):INDEX(tblCUR[EUR],tblWork[[#This Row],[Конец порции]])),""),NA()) -> 35.86848 | N145: =IF(rngEnabledGBP,IF(tblWork[[#This Row],[Порция]]>0,AVERAGE(INDEX(tblCUR[GBP],tblWork[[#This Row],[Начало порции]]):INDEX(tblCUR[GBP],tblWork[[#This Row],[Конец порции]])),""),NA()) -> 50.47186 | O145: =IF(rngEnabledUSD,IF(tblWork[[#This Row],[Порция]]>0,AVERAGE(INDEX(tblCUR[USD],tblWork[[#This Row],[Начало порции]]):INDEX(tblCUR[USD],tblWork[[#This Row],[Конец порции]])),""),NA()) -> 24.49902
H146: 144 | I146: =IF(tblWork[[#This Row],[Строка]]<=rngWindowNums,tblWork[[#This Row],[Строка]],) -> 144 | J146: =IF(tblWork[[#This Row],[Порция]]>0,1+(tblWork[[#This Row],[Порция]]-1)*rngPortionSize,"") -> 716 | K146: =IF(tblWork[[#This Row],[Порция]]>0,tblWork[[#This Row],[Начало порции]]+rngPortionSize-1,"") -> 720 | L146: =IF(tblWork[[#This Row],[Порция]]>0,INDEX(tblCUR[],tblWork[[#This Row],[Начало порции]],1),"") -> 2007-11-21 | M146: =IF(rngEnabledEUR,IF(tblWork[[#This Row],[Порция]]>0,AVERAGE(INDEX(tblCUR[EUR],tblWork[[#This Row],[Начало порции]]):INDEX(tblCUR[EUR],tblWork[[#This Row],[Конец порции]])),""),NA()) -> 36.0713 | N146: =IF(rngEnabledGBP,IF(tblWork[[#This Row],[Порция]]>0,AVERAGE(INDEX(tblCUR[GBP],tblWork[[#This Row],[Начало порции]]):INDEX(tblCUR[GBP],tblWork[[#This Row],[Конец порции]])),""),NA()) -> 50.24876 | O146: =IF(rngEnabledUSD,IF(tblWork[[#This Row],[Порция]]>0,AVERAGE(INDEX(tblCUR[USD],tblWork[[#This Row],[Начало порции]]):INDEX(tblCUR[USD],tblWork[[#This Row],[Конец порции]])),""),NA()) -> 24.33292
H147: 145 | I147: =IF(tblWork[[#This Row],[Строка]]<=rngWindowNums,tblWork[[#This Row],[Строка]],) -> 145 | J147: =IF(tblWork[[#This Row],[Порция]]>0,1+(tblWork[[#This Row],[Порция]]-1)*rngPortionSize,"") -> 721 | K147: =IF(tblWork[[#This Row],[Порция]]>0,tblWork[[#This Row],[Начало порции]]+rngPortionSize-1,"") -> 725 | L147: =IF(tblWork[[#This Row],[Порция]]>0,INDEX(tblCUR[],tblWork[[#This Row],[Начало порции]],1),"") -> 2007-11-28 | M147: =IF(rngEnabledEUR,IF(tblWork[[#This Row],[Порция]]>0,AVERAGE(INDEX(tblCUR[EUR],tblWork[[#This Row],[Начало порции]]):INDEX(tblCUR[EUR],tblWork[[#This Row],[Конец порции]])),""),NA()) -> 36.01396 | N147: =IF(rngEnabledGBP,IF(tblWork[[#This Row],[Порция]]>0,AVERAGE(INDEX(tblCUR[GBP],tblWork[[#This Row],[Начало порции]]):INDEX(tblCUR[GBP],tblWork[[#This Row],[Конец порции]])),""),NA()) -> 50.39694 | O147: =IF(rngEnabledUSD,IF(tblWork[[#This Row],[Порция]]>0,AVERAGE(INDEX(tblCUR[USD],tblWork[[#This Row],[Начало порции]]):INDEX(tblCUR[USD],tblWork[[#This Row],[Конец порции]])),""),NA()) -> 24.3794
H148: 146 | I148: =IF(tblWork[[#This Row],[Строка]]<=rngWindowNums,tblWork[[#This Row],[Строка]],) -> 146 | J148: =IF(tblWork[[#This Row],[Порция]]>0,1+(tblWork[[#This Row],[Порция]]-1)*rngPortionSize,"") -> 726 | K148: =IF(tblWork[[#This Row],[Порция]]>0,tblWork[[#This Row],[Начало порции]]+rngPortionSize-1,"") -> 730 | L148: =IF(tblWork[[#This Row],[Порция]]>0,INDEX(tblCUR[],tblWork[[#This Row],[Начало порции]],1),"") -> 2007-12-05 | M148: =IF(rngEnabledEUR,IF(tblWork[[#This Row],[Порция]]>0,AVERAGE(INDEX(tblCUR[EUR],tblWork[[#This Row],[Начало порции]]):INDEX(tblCUR[EUR],tblWork[[#This Row],[Конец порции]])),""),NA()) -> 35.87368 | N148: =IF(rngEnabledGBP,IF(tblWork[[#This Row],[Порция]]>0,AVERAGE(INDEX(tblCUR[GBP],tblWork[[#This Row],[Начало порции]]):INDEX(tblCUR[GBP],tblWork[[#This Row],[Конец порции]])),""),NA()) -> 50.00434 | O148: =IF(rngEnabledUSD,IF(tblWork[[#This Row],[Порция]]>0,AVERAGE(INDEX(tblCUR[USD],tblWork[[#This Row],[Начало порции]]):INDEX(tblCUR[USD],tblWork[[#This Row],[Конец порции]])),""),NA()) -> 24.493
H149: 147 | I149: =IF(tblWork[[#This Row],[Строка]]<=rngWindowNums,tblWork[[#This Row],[Строка]],) -> 147 | J149: =IF(tblWork[[#This Row],[Порция]]>0,1+(tblWork[[#This Row],[Порция]]-1)*rngPortionSize,"") -> 731 | K149: =IF(tblWork[[#This Row],[Порция]]>0,tblWork[[#This Row],[Начало порции]]+rngPortionSize-1,"") -> 735 | L149: =IF(tblWork[[#This Row],[Порция]]>0,INDEX(tblCUR[],tblWork[[#This Row],[Начало порции]],1),"") -> 2007-12-12 | M149: =IF(rngEnabledEUR,IF(tblWork[[#This Row],[Порция]]>0,AVERAGE(INDEX(tblCUR[EUR],tblWork[[#This Row],[Начало порции]]):INDEX(tblCUR[EUR],tblWork[[#This Row],[Конец порции]])),""),NA()) -> 35.85382 | N149: =IF(rngEnabledGBP,IF(tblWork[[#This Row],[Порция]]>0,AVERAGE(INDEX(tblCUR[GBP],tblWork[[#This Row],[Начало порции]]):INDEX(tblCUR[GBP],tblWork[[#This Row],[Конец порции]])),""),NA()) -> 49.93858 | O149: =IF(rngEnabledUSD,IF(tblWork[[#This Row],[Порция]]>0,AVERAGE(INDEX(tblCUR[USD],tblWork[[#This Row],[Начало порции]]):INDEX(tblCUR[USD],tblWork[[#This Row],[Конец порции]])),""),NA()) -> 24.50088
H150: 148 | I150: =IF(tblWork[[#This Row],[Строка]]<=rngWindowNums,tblWork[[#This Row],[Строка]],) -> 148 | J150: =IF(tblWork[[#This Row],[Порция]]>0,1+(tblWork[[#This Row],[Порция]]-1)*rngPortionSize,"") -> 736 | K150: =IF(tblWork[[#This Row],[Порция]]>0,tblWork[[#This Row],[Начало порции]]+rngPortionSize-1,"") -> 740 | L150: =IF(tblWork[[#This Row],[Порция]]>0,INDEX(tblCUR[],tblWork[[#This Row],[Начало порции]],1),"") -> 2007-12-19 | M150: =IF(rngEnabledEUR,IF(tblWork[[#This Row],[Порция]]>0,AVERAGE(INDEX(tblCUR[EUR],tblWork[[#This Row],[Начало порции]]):INDEX(tblCUR[EUR],tblWork[[#This Row],[Конец порции]])),""),NA()) -> 35.57218 | N150: =IF(rngEnabledGBP,IF(tblWork[[#This Row],[Порция]]>0,AVERAGE(INDEX(tblCUR[GBP],tblWork[[#This Row],[Начало порции]]):INDEX(tblCUR[GBP],tblWork[[#This Row],[Конец порции]])),""),NA()) -> 49.4427 | O150: =IF(rngEnabledUSD,IF(tblWork[[#This Row],[Порция]]>0,AVERAGE(INDEX(tblCUR[USD],tblWork[[#This Row],[Начало порции]]):INDEX(tblCUR[USD],tblWork[[#This Row],[Конец порции]])),""),NA()) -> 24.73176
H151: 149 | I151: =IF(tblWork[[#This Row],[Строка]]<=rngWindowNums,tblWork[[#This Row],[Строка]],) -> 149 | J151: =IF(tblWork[[#This Row],[Порция]]>0,1+(tblWork[[#This Row],[Порция]]-1)*rngPortionSize,"") -> 741 | K151: =IF(tblWork[[#This Row],[Порция]]>0,tblWork[[#This Row],[Начало порции]]+rngPortionSize-1,"") -> 745 | L151: =IF(tblWork[[#This Row],[Порция]]>0,INDEX(tblCUR[],tblWork[[#This Row],[Начало порции]],1),"") -> 2007-12-26 | M151: =IF(rngEnabledEUR,IF(tblWork[[#This Row],[Порция]]>0,AVERAGE(INDEX(tblCUR[EUR],tblWork[[#This Row],[Начало порции]]):INDEX(tblCUR[EUR],tblWork[[#This Row],[Конец порции]])),""),NA()) -> 35.75988 | N151: =IF(rngEnabledGBP,IF(tblWork[[#This Row],[Порция]]>0,AVERAGE(INDEX(tblCUR[GBP],tblWork[[#This Row],[Начало порции]]):INDEX(tblCUR[GBP],tblWork[[#This Row],[Конец порции]])),""),NA()) -> 48.95448 | O151: =IF(rngEnabledUSD,IF(tblWork[[#This Row],[Порция]]>0,AVERAGE(INDEX(tblCUR[USD],tblWork[[#This Row],[Начало порции]]):INDEX(tblCUR[USD],tblWork[[#This Row],[Конец порции]])),""),NA()) -> 24.62924
H152: 150 | I152: =IF(tblWork[[#This Row],[Строка]]<=rngWindowNums,tblWork[[#This Row],[Строка]],) -> 150 | J152: =IF(tblWork[[#This Row],[Порция]]>0,1+(tblWork[[#This Row],[Порция]]-1)*rngPortionSize,"") -> 746 | K152: =IF(tblWork[[#This Row],[Порция]]>0,tblWork[[#This Row],[Начало порции]]+rngPortionSize-1,"") -> 750 | L152: =IF(tblWork[[#This Row],[Порция]]>0,INDEX(tblCUR[],tblWork[[#This Row],[Начало порции]],1),"") -> 2008-01-10 | M152: =IF(rngEnabledEUR,IF(tblWork[[#This Row],[Порция]]>0,AVERAGE(INDEX(tblCUR[EUR],tblWork[[#This Row],[Начало порции]]):INDEX(tblCUR[EUR],tblWork[[#This Row],[Конец порции]])),""),NA()) -> 36.03414 | N152: =IF(rngEnabledGBP,IF(tblWork[[#This Row],[Порция]]>0,AVERAGE(INDEX(tblCUR[GBP],tblWork[[#This Row],[Начало порции]]):INDEX(tblCUR[GBP],tblWork[[#This Row],[Конец порции]])),""),NA()) -> 47.77454 | O152: =IF(rngEnabledUSD,IF(tblWork[[#This Row],[Порция]]>0,AVERAGE(INDEX(tblCUR[USD],tblWork[[#This Row],[Начало порции]]):INDEX(tblCUR[USD],tblWork[[#This Row],[Конец порции]])),""),NA()) -> 24.3725
H153: 151 | I153: =IF(tblWork[[#This Row],[Строка]]<=rngWindowNums,tblWork[[#This Row],[Строка]],) -> 151 | J153: =IF(tblWork[[#This Row],[Порция]]>0,1+(tblWork[[#This Row],[Порция]]-1)*rngPortionSize,"") -> 751 | K153: =IF(tblWork[[#This Row],[Порция]]>0,tblWork[[#This Row],[Начало порции]]+rngPortionSize-1,"") -> 755 | L153: =IF(tblWork[[#This Row],[Порция]]>0,INDEX(tblCUR[],tblWork[[#This Row],[Начало порции]],1),"") -> 2008-01-17 | M153: =IF(rngEnabledEUR,IF(tblWork[[#This Row],[Порция]]>0,AVERAGE(INDEX(tblCUR[EUR],tblWork[[#This Row],[Начало порции]]):INDEX(tblCUR[EUR],tblWork[[#This Row],[Конец порции]])),""),NA()) -> 35.89446 | N153: =IF(rngEnabledGBP,IF(tblWork[[#This Row],[Порция]]>0,AVERAGE(INDEX(tblCUR[GBP],tblWork[[#This Row],[Начало порции]]):INDEX(tblCUR[GBP],tblWork[[#This Row],[Конец порции]])),""),NA()) -> 48.08418 | O153: =IF(rngEnabledUSD,IF(tblWork[[#This Row],[Порция]]>0,AVERAGE(INDEX(tblCUR[USD],tblWork[[#This Row],[Начало порции]]):INDEX(tblCUR[USD],tblWork[[#This Row],[Конец порции]])),""),NA()) -> 24.57718
H154: 152 | I154: =IF(tblWork[[#This Row],[Строка]]<=rngWindowNums,tblWork[[#This Row],[Строка]],) -> 152 | J154: =IF(tblWork[[#This Row],[Порция]]>0,1+(tblWork[[#This Row],[Порция]]-1)*rngPortionSize,"") -> 756 | K154: =IF(tblWork[[#This Row],[Порция]]>0,tblWork[[#This Row],[Начало порции]]+rngPortionSize-1,"") -> 760 | L154: =IF(tblWork[[#This Row],[Порция]]>0,INDEX(tblCUR[],tblWork[[#This Row],[Начало порции]],1),"") -> 2008-01-24 | M154: =IF(rngEnabledEUR,IF(tblWork[[#This Row],[Порция]]>0,AVERAGE(INDEX(tblCUR[EUR],tblWork[[#This Row],[Начало порции]]):INDEX(tblCUR[EUR],tblWork[[#This Row],[Конец порции]])),""),NA()) -> 36.05736 | N154: =IF(rngEnabledGBP,IF(tblWork[[#This Row],[Порция]]>0,AVERAGE(INDEX(tblCUR[GBP],tblWork[[#This Row],[Начало порции]]):INDEX(tblCUR[GBP],tblWork[[#This Row],[Конец порции]])),""),NA()) -> 48.39806 | O154: =IF(rngEnabledUSD,IF(tblWork[[#This Row],[Порция]]>0,AVERAGE(INDEX(tblCUR[USD],tblWork[[#This Row],[Начало порции]]):INDEX(tblCUR[USD],tblWork[[#This Row],[Конец порции]])),""),NA()) -> 24.55524
H155: 153 | I155: =IF(tblWork[[#This Row],[Строка]]<=rngWindowNums,tblWork[[#This Row],[Строка]],) -> 153 | J155: =IF(tblWork[[#This Row],[Порция]]>0,1+(tblWork[[#This Row],[Порция]]-1)*rngPortionSize,"") -> 761 | K155: =IF(tblWork[[#This Row],[Порция]]>0,tblWork[[#This Row],[Начало порции]]+rngPortionSize-1,"") -> 765 | L155: =IF(tblWork[[#This Row],[Порция]]>0,INDEX(tblCUR[],tblWork[[#This Row],[Начало порции]],1),"") -> 2008-01-31 | M155: =IF(rngEnabledEUR,IF(tblWork[[#This Row],[Порция]]>0,AVERAGE(INDEX(tblCUR[EUR],tblWork[[#This Row],[Начало порции]]):INDEX(tblCUR[EUR],tblWork[[#This Row],[Конец порции]])),""),NA()) -> 36.27206 | N155: =IF(rngEnabledGBP,IF(tblWork[[#This Row],[Порция]]>0,AVERAGE(INDEX(tblCUR[GBP],tblWork[[#This Row],[Начало порции]]):INDEX(tblCUR[GBP],tblWork[[#This Row],[Конец порции]])),""),NA()) -> 48.46856 | O155: =IF(rngEnabledUSD,IF(tblWork[[#This Row],[Порция]]>0,AVERAGE(INDEX(tblCUR[USD],tblWork[[#This Row],[Начало порции]]):INDEX(tblCUR[USD],tblWork[[#This Row],[Конец порции]])),""),NA()) -> 24.45962
H156: 154 | I156: =IF(tblWork[[#This Row],[Строка]]<=rngWindowNums,tblWork[[#This Row],[Строка]],) -> 154 | J156: =IF(tblWork[[#This Row],[Порция]]>0,1+(tblWork[[#This Row],[Порция]]-1)*rngPortionSize,"") -> 766 | K156: =IF(tblWork[[#This Row],[Порция]]>0,tblWork[[#This Row],[Начало порции]]+rngPortionSize-1,"") -> 770 | L156: =IF(tblWork[[#This Row],[Порция]]>0,INDEX(tblCUR[],tblWork[[#This Row],[Начало порции]],1),"") -> 2008-02-07 | M156: =IF(rngEnabledEUR,IF(tblWork[[#This Row],[Порция]]>0,AVERAGE(INDEX(tblCUR[EUR],tblWork[[#This Row],[Начало порции]]):INDEX(tblCUR[EUR],tblWork[[#This Row],[Конец порции]])),""),NA()) -> 35.94914 | N156: =IF(rngEnabledGBP,IF(tblWork[[#This Row],[Порция]]>0,AVERAGE(INDEX(tblCUR[GBP],tblWork[[#This Row],[Начало порции]]):INDEX(tblCUR[GBP],tblWork[[#This Row],[Конец порции]])),""),NA()) -> 48.19718 | O156: =IF(rngEnabledUSD,IF(tblWork[[#This Row],[Порция]]>0,AVERAGE(INDEX(tblCUR[USD],tblWork[[#This Row],[Начало порции]]):INDEX(tblCUR[USD],tblWork[[#This Row],[Конец порции]])),""),NA()) -> 24.68474
H157: 155 | I157: =IF(tblWork[[#This Row],[Строка]]<=rngWindowNums,tblWork[[#This Row],[Строка]],) -> 155 | J157: =IF(tblWork[[#This Row],[Порция]]>0,1+(tblWork[[#This Row],[Порция]]-1)*rngPortionSize,"") -> 771 | K157: =IF(tblWork[[#This Row],[Порция]]>0,tblWork[[#This Row],[Начало порции]]+rngPortionSize-1,"") -> 775 | L157: =IF(tblWork[[#This Row],[Порция]]>0,INDEX(tblCUR[],tblWork[[#This Row],[Начало порции]],1),"") -> 2008-02-14 | M157: =IF(rngEnabledEUR,IF(tblWork[[#This Row],[Порция]]>0,AVERAGE(INDEX(tblCUR[EUR],tblWork[[#This Row],[Начало порции]]):INDEX(tblCUR[EUR],tblWork[[#This Row],[Конец порции]])),""),NA()) -> 36.01404 | N157: =IF(rngEnabledGBP,IF(tblWork[[#This Row],[Порция]]>0,AVERAGE(INDEX(tblCUR[GBP],tblWork[[#This Row],[Начало порции]]):INDEX(tblCUR[GBP],tblWork[[#This Row],[Конец порции]])),""),NA()) -> 48.2528 | O157: =IF(rngEnabledUSD,IF(tblWork[[#This Row],[Порция]]>0,AVERAGE(INDEX(tblCUR[USD],tblWork[[#This Row],[Начало порции]]):INDEX(tblCUR[USD],tblWork[[#This Row],[Конец порции]])),""),NA()) -> 24.59762
H158: 156 | I158: =IF(tblWork[[#This Row],[Строка]]<=rngWindowNums,tblWork[[#This Row],[Строка]],) -> 156 | J158: =IF(tblWork[[#This Row],[Порция]]>0,1+(tblWork[[#This Row],[Порция]]-1)*rngPortionSize,"") -> 776 | K158: =IF(tblWork[[#This Row],[Порция]]>0,tblWork[[#This Row],[Начало порции]]+rngPortionSize-1,"") -> 780 | L158: =IF(tblWork[[#This Row],[Порция]]>0,INDEX(tblCUR[],tblWork[[#This Row],[Начало порции]],1),"") -> 2008-02-21 | M158: =IF(rngEnabledEUR,IF(tblWork[[#This Row],[Порция]]>0,AVERAGE(INDEX(tblCUR[EUR],tblWork[[#This Row],[Начало порции]]):INDEX(tblCUR[EUR],tblWork[[#This Row],[Конец порции]])),""),NA()) -> 36.20994 | N158: =IF(rngEnabledGBP,IF(tblWork[[#This Row],[Порция]]>0,AVERAGE(INDEX(tblCUR[GBP],tblWork[[#This Row],[Начало порции]]):INDEX(tblCUR[GBP],tblWork[[#This Row],[Конец порции]])),""),NA()) -> 47.96836 | O158: =IF(rngEnabledUSD,IF(tblWork[[#This Row],[Порция]]>0,AVERAGE(INDEX(tblCUR[USD],tblWork[[#This Row],[Начало порции]]):INDEX(tblCUR[USD],tblWork[[#This Row],[Конец порции]])),""),NA()) -> 24.43944
H159: 157 | I159: =IF(tblWork[[#This Row],[Строка]]<=rngWindowNums,tblWork[[#This Row],[Строка]],) -> 157 | J159: =IF(tblWork[[#This Row],[Порция]]>0,1+(tblWork[[#This Row],[Порция]]-1)*rngPortionSize,"") -> 781 | K159: =IF(tblWork[[#This Row],[Порция]]>0,tblWork[[#This Row],[Начало порции]]+rngPortionSize-1,"") -> 785 | L159: =IF(tblWork[[#This Row],[Порция]]>0,INDEX(tblCUR[],tblWork[[#This Row],[Начало порции]],1),"") -> 2008-02-29 | M159: =IF(rngEnabledEUR,IF(tblWork[[#This Row],[Порция]]>0,AVERAGE(INDEX(tblCUR[EUR],tblWork[[#This Row],[Начало порции]]):INDEX(tblCUR[EUR],tblWork[[#This Row],[Конец порции]])),""),NA()) -> 36.4873 | N159: =IF(rngEnabledGBP,IF(tblWork[[#This Row],[Порция]]>0,AVERAGE(INDEX(tblCUR[GBP],tblWork[[#This Row],[Начало порции]]):INDEX(tblCUR[GBP],tblWork[[#This Row],[Конец порции]])),""),NA()) -> 47.7163 | O159: =IF(rngEnabledUSD,IF(tblWork[[#This Row],[Порция]]>0,AVERAGE(INDEX(tblCUR[USD],tblWork[[#This Row],[Начало порции]]):INDEX(tblCUR[USD],tblWork[[#This Row],[Конец порции]])),""),NA()) -> 24.04476
H160: 158 | I160: =IF(tblWork[[#This Row],[Строка]]<=rngWindowNums,tblWork[[#This Row],[Строка]],) -> 158 | J160: =IF(tblWork[[#This Row],[Порция]]>0,1+(tblWork[[#This Row],[Порция]]-1)*rngPortionSize,"") -> 786 | K160: =IF(tblWork[[#This Row],[Порция]]>0,tblWork[[#This Row],[Начало порции]]+rngPortionSize-1,"") -> 790 | L160: =IF(tblWork[[#This Row],[Порция]]>0,INDEX(tblCUR[],tblWork[[#This Row],[Начало порции]],1),"") -> 2008-03-07 | M160: =IF(rngEnabledEUR,IF(tblWork[[#This Row],[Порция]]>0,AVERAGE(INDEX(tblCUR[EUR],tblWork[[#This Row],[Начало порции]]):INDEX(tblCUR[EUR],tblWork[[#This Row],[Конец порции]])),""),NA()) -> 36.6962 | N160: =IF(rngEnabledGBP,IF(tblWork[[#This Row],[Порция]]>0,AVERAGE(INDEX(tblCUR[GBP],tblWork[[#This Row],[Начало порции]]):INDEX(tblCUR[GBP],tblWork[[#This Row],[Конец порции]])),""),NA()) -> 47.95238 | O160: =IF(rngEnabledUSD,IF(tblWork[[#This Row],[Порция]]>0,AVERAGE(INDEX(tblCUR[USD],tblWork[[#This Row],[Начало порции]]):INDEX(tblCUR[USD],tblWork[[#This Row],[Конец порции]])),""),NA()) -> 23.83348
H161: 159 | I161: =IF(tblWork[[#This Row],[Строка]]<=rngWindowNums,tblWork[[#This Row],[Строка]],) -> 159 | J161: =IF(tblWork[[#This Row],[Порция]]>0,1+(tblWork[[#This Row],[Порция]]-1)*rngPortionSize,"") -> 791 | K161: =IF(tblWork[[#This Row],[Порция]]>0,tblWork[[#This Row],[Начало порции]]+rngPortionSize-1,"") -> 795 | L161: =IF(tblWork[[#This Row],[Порция]]>0,INDEX(tblCUR[],tblWork[[#This Row],[Начало порции]],1),"") -> 2008-03-15 | M161: =IF(rngEnabledEUR,IF(tblWork[[#This Row],[Порция]]>0,AVERAGE(INDEX(tblCUR[EUR],tblWork[[#This Row],[Начало порции]]):INDEX(tblCUR[EUR],tblWork[[#This Row],[Конец порции]])),""),NA()) -> 36.99796 | N161: =IF(rngEnabledGBP,IF(tblWork[[#This Row],[Порция]]>0,AVERAGE(INDEX(tblCUR[GBP],tblWork[[#This Row],[Начало порции]]):INDEX(tblCUR[GBP],tblWork[[#This Row],[Конец порции]])),""),NA()) -> 47.37806 | O161: =IF(rngEnabledUSD,IF(tblWork[[#This Row],[Порция]]>0,AVERAGE(INDEX(tblCUR[USD],tblWork[[#This Row],[Начало порции]]):INDEX(tblCUR[USD],tblWork[[#This Row],[Конец порции]])),""),NA()) -> 23.58606
H162: 160 | I162: =IF(tblWork[[#This Row],[Строка]]<=rngWindowNums,tblWork[[#This Row],[Строка]],) -> 160 | J162: =IF(tblWork[[#This Row],[Порция]]>0,1+(tblWork[[#This Row],[Порция]]-1)*rngPortionSize,"") -> 796 | K162: =IF(tblWork[[#This Row],[Порция]]>0,tblWork[[#This Row],[Начало порции]]+rngPortionSize-1,"") -> 800 | L162: =IF(tblWork[[#This Row],[Порция]]>0,INDEX(tblCUR[],tblWork[[#This Row],[Начало порции]],1),"") -> 2008-03-22 | M162: =IF(rngEnabledEUR,IF(tblWork[[#This Row],[Порция]]>0,AVERAGE(INDEX(tblCUR[EUR],tblWork[[#This Row],[Начало порции]]):INDEX(tblCUR[EUR],tblWork[[#This Row],[Конец порции]])),""),NA()) -> 36.85164 | N162: =IF(rngEnabledGBP,IF(tblWork[[#This Row],[Порция]]>0,AVERAGE(INDEX(tblCUR[GBP],tblWork[[#This Row],[Начало порции]]):INDEX(tblCUR[GBP],tblWork[[#This Row],[Конец порции]])),""),NA()) -> 47.2352 | O162: =IF(rngEnabledUSD,IF(tblWork[[#This Row],[Порция]]>0,AVERAGE(INDEX(tblCUR[USD],tblWork[[#This Row],[Начало порции]]):INDEX(tblCUR[USD],tblWork[[#This Row],[Конец порции]])),""),NA()) -> 23.69728
H163: 161 | I163: =IF(tblWork[[#This Row],[Строка]]<=rngWindowNums,tblWork[[#This Row],[Строка]],) -> 161 | J163: =IF(tblWork[[#This Row],[Порция]]>0,1+(tblWork[[#This Row],[Порция]]-1)*rngPortionSize,"") -> 801 | K163: =IF(tblWork[[#This Row],[Порция]]>0,tblWork[[#This Row],[Начало порции]]+rngPortionSize-1,"") -> 805 | L163: =IF(tblWork[[#This Row],[Порция]]>0,INDEX(tblCUR[],tblWork[[#This Row],[Начало порции]],1),"") -> 2008-03-29 | M163: =IF(rngEnabledEUR,IF(tblWork[[#This Row],[Порция]]>0,AVERAGE(INDEX(tblCUR[EUR],tblWork[[#This Row],[Начало порции]]):INDEX(tblCUR[EUR],tblWork[[#This Row],[Конец порции]])),""),NA()) -> 36.99014 | N163: =IF(rngEnabledGBP,IF(tblWork[[#This Row],[Порция]]>0,AVERAGE(INDEX(tblCUR[GBP],tblWork[[#This Row],[Начало порции]]):INDEX(tblCUR[GBP],tblWork[[#This Row],[Конец порции]])),""),NA()) -> 46.83314 | O163: =IF(rngEnabledUSD,IF(tblWork[[#This Row],[Порция]]>0,AVERAGE(INDEX(tblCUR[USD],tblWork[[#This Row],[Начало порции]]):INDEX(tblCUR[USD],tblWork[[#This Row],[Конец порции]])),""),NA()) -> 23.57682
H164: 162 | I164: =IF(tblWork[[#This Row],[Строка]]<=rngWindowNums,tblWork[[#This Row],[Строка]],) -> 162 | J164: =IF(tblWork[[#This Row],[Порция]]>0,1+(tblWork[[#This Row],[Порция]]-1)*rngPortionSize,"") -> 806 | K164: =IF(tblWork[[#This Row],[Порция]]>0,tblWork[[#This Row],[Начало порции]]+rngPortionSize-1,"") -> 810 | L164: =IF(tblWork[[#This Row],[Порция]]>0,INDEX(tblCUR[],tblWork[[#This Row],[Начало порции]],1),"") -> 2008-04-05 | M164: =IF(rngEnabledEUR,IF(tblWork[[#This Row],[Порция]]>0,AVERAGE(INDEX(tblCUR[EUR],tblWork[[#This Row],[Начало порции]]):INDEX(tblCUR[EUR],tblWork[[#This Row],[Конец порции]])),""),NA()) -> 37.03002 | N164: =IF(rngEnabledGBP,IF(tblWork[[#This Row],[Порция]]>0,AVERAGE(INDEX(tblCUR[GBP],tblWork[[#This Row],[Начало порции]]):INDEX(tblCUR[GBP],tblWork[[#This Row],[Конец порции]])),""),NA()) -> 46.66792 | O164: =IF(rngEnabledUSD,IF(tblWork[[#This Row],[Порция]]>0,AVERAGE(INDEX(tblCUR[USD],tblWork[[#This Row],[Начало порции]]):INDEX(tblCUR[USD],tblWork[[#This Row],[Конец порции]])),""),NA()) -> 23.5481
H165: 163 | I165: =IF(tblWork[[#This Row],[Строка]]<=rngWindowNums,tblWork[[#This Row],[Строка]],) -> 163 | J165: =IF(tblWork[[#This Row],[Порция]]>0,1+(tblWork[[#This Row],[Порция]]-1)*rngPortionSize,"") -> 811 | K165: =IF(tblWork[[#This Row],[Порция]]>0,tblWork[[#This Row],[Начало порции]]+rngPortionSize-1,"") -> 815 | L165: =IF(tblWork[[#This Row],[Порция]]>0,INDEX(tblCUR[],tblWork[[#This Row],[Начало порции]],1),"") -> 2008-04-12 | M165: =IF(rngEnabledEUR,IF(tblWork[[#This Row],[Порция]]>0,AVERAGE(INDEX(tblCUR[EUR],tblWork[[#This Row],[Начало порции]]):INDEX(tblCUR[EUR],tblWork[[#This Row],[Конец порции]])),""),NA()) -> 37.13392 | N165: =IF(rngEnabledGBP,IF(tblWork[[#This Row],[Порция]]>0,AVERAGE(INDEX(tblCUR[GBP],tblWork[[#This Row],[Начало порции]]):INDEX(tblCUR[GBP],tblWork[[#This Row],[Конец порции]])),""),NA()) -> 46.2395 | O165: =IF(rngEnabledUSD,IF(tblWork[[#This Row],[Порция]]>0,AVERAGE(INDEX(tblCUR[USD],tblWork[[#This Row],[Начало порции]]):INDEX(tblCUR[USD],tblWork[[#This Row],[Конец порции]])),""),NA()) -> 23.45396
H166: 164 | I166: =IF(tblWork[[#This Row],[Строка]]<=rngWindowNums,tblWork[[#This Row],[Строка]],) -> 164 | J166: =IF(tblWork[[#This Row],[Порция]]>0,1+(tblWork[[#This Row],[Порция]]-1)*rngPortionSize,"") -> 816 | K166: =IF(tblWork[[#This Row],[Порция]]>0,tblWork[[#This Row],[Начало порции]]+rngPortionSize-1,"") -> 820 | L166: =IF(tblWork[[#This Row],[Порция]]>0,INDEX(tblCUR[],tblWork[[#This Row],[Начало порции]],1),"") -> 2008-04-19 | M166: =IF(rngEnabledEUR,IF(tblWork[[#This Row],[Порция]]>0,AVERAGE(INDEX(tblCUR[EUR],tblWork[[#This Row],[Начало порции]]):INDEX(tblCUR[EUR],tblWork[[#This Row],[Конец порции]])),""),NA()) -> 37.18304 | N166: =IF(rngEnabledGBP,IF(tblWork[[#This Row],[Порция]]>0,AVERAGE(INDEX(tblCUR[GBP],tblWork[[#This Row],[Начало порции]]):INDEX(tblCUR[GBP],tblWork[[#This Row],[Конец порции]])),""),NA()) -> 46.53912 | O166: =IF(rngEnabledUSD,IF(tblWork[[#This Row],[Порция]]>0,AVERAGE(INDEX(tblCUR[USD],tblWork[[#This Row],[Начало порции]]):INDEX(tblCUR[USD],tblWork[[#This Row],[Конец порции]])),""),NA()) -> 23.41076
H167: 165 | I167: =IF(tblWork[[#This Row],[Строка]]<=rngWindowNums,tblWork[[#This Row],[Строка]],) -> 165 | J167: =IF(tblWork[[#This Row],[Порция]]>0,1+(tblWork[[#This Row],[Порция]]-1)*rngPortionSize,"") -> 821 | K167: =IF(tblWork[[#This Row],[Порция]]>0,tblWork[[#This Row],[Начало порции]]+rngPortionSize-1,"") -> 825 | L167: =IF(tblWork[[#This Row],[Порция]]>0,INDEX(tblCUR[],tblWork[[#This Row],[Начало порции]],1),"") -> 2008-04-26 | M167: =IF(rngEnabledEUR,IF(tblWork[[#This Row],[Порция]]>0,AVERAGE(INDEX(tblCUR[EUR],tblWork[[#This Row],[Начало порции]]):INDEX(tblCUR[EUR],tblWork[[#This Row],[Конец порции]])),""),NA()) -> 36.87484 | N167: =IF(rngEnabledGBP,IF(tblWork[[#This Row],[Порция]]>0,AVERAGE(INDEX(tblCUR[GBP],tblWork[[#This Row],[Начало порции]]):INDEX(tblCUR[GBP],tblWork[[#This Row],[Конец порции]])),""),NA()) -> 46.77822 | O167: =IF(rngEnabledUSD,IF(tblWork[[#This Row],[Порция]]>0,AVERAGE(INDEX(tblCUR[USD],tblWork[[#This Row],[Начало порции]]):INDEX(tblCUR[USD],tblWork[[#This Row],[Конец порции]])),""),NA()) -> 23.66084
H168: 166 | I168: =IF(tblWork[[#This Row],[Строка]]<=rngWindowNums,tblWork[[#This Row],[Строка]],) -> 166 | J168: =IF(tblWork[[#This Row],[Порция]]>0,1+(tblWork[[#This Row],[Порция]]-1)*rngPortionSize,"") -> 826 | K168: =IF(tblWork[[#This Row],[Порция]]>0,tblWork[[#This Row],[Начало порции]]+rngPortionSize-1,"") -> 830 | L168: =IF(tblWork[[#This Row],[Порция]]>0,INDEX(tblCUR[],tblWork[[#This Row],[Начало порции]],1),"") -> 2008-05-06 | M168: =IF(rngEnabledEUR,IF(tblWork[[#This Row],[Порция]]>0,AVERAGE(INDEX(tblCUR[EUR],tblWork[[#This Row],[Начало порции]]):INDEX(tblCUR[EUR],tblWork[[#This Row],[Конец порции]])),""),NA()) -> 36.71748 | N168: =IF(rngEnabledGBP,IF(tblWork[[#This Row],[Порция]]>0,AVERAGE(INDEX(tblCUR[GBP],tblWork[[#This Row],[Начало порции]]):INDEX(tblCUR[GBP],tblWork[[#This Row],[Конец порции]])),""),NA()) -> 46.72616 | O168: =IF(rngEnabledUSD,IF(tblWork[[#This Row],[Порция]]>0,AVERAGE(INDEX(tblCUR[USD],tblWork[[#This Row],[Начало порции]]):INDEX(tblCUR[USD],tblWork[[#This Row],[Конец порции]])),""),NA()) -> 23.79546
H169: 167 | I169: =IF(tblWork[[#This Row],[Строка]]<=rngWindowNums,tblWork[[#This Row],[Строка]],) -> 167 | J169: =IF(tblWork[[#This Row],[Порция]]>0,1+(tblWork[[#This Row],[Порция]]-1)*rngPortionSize,"") -> 831 | K169: =IF(tblWork[[#This Row],[Порция]]>0,tblWork[[#This Row],[Начало порции]]+rngPortionSize-1,"") -> 835 | L169: =IF(tblWork[[#This Row],[Порция]]>0,INDEX(tblCUR[],tblWork[[#This Row],[Начало порции]],1),"") -> 2008-05-14 | M169: =IF(rngEnabledEUR,IF(tblWork[[#This Row],[Порция]]>0,AVERAGE(INDEX(tblCUR[EUR],tblWork[[#This Row],[Начало порции]]):INDEX(tblCUR[EUR],tblWork[[#This Row],[Конец порции]])),""),NA()) -> 36.91884 | N169: =IF(rngEnabledGBP,IF(tblWork[[#This Row],[Порция]]>0,AVERAGE(INDEX(tblCUR[GBP],tblWork[[#This Row],[Начало порции]]):INDEX(tblCUR[GBP],tblWork[[#This Row],[Конец порции]])),""),NA()) -> 46.41502 | O169: =IF(rngEnabledUSD,IF(tblWork[[#This Row],[Порция]]>0,AVERAGE(INDEX(tblCUR[USD],tblWork[[#This Row],[Начало порции]]):INDEX(tblCUR[USD],tblWork[[#This Row],[Конец порции]])),""),NA()) -> 23.79662
H170: 168 | I170: =IF(tblWork[[#This Row],[Строка]]<=rngWindowNums,tblWork[[#This Row],[Строка]],) -> 168 | J170: =IF(tblWork[[#This Row],[Порция]]>0,1+(tblWork[[#This Row],[Порция]]-1)*rngPortionSize,"") -> 836 | K170: =IF(tblWork[[#This Row],[Порция]]>0,tblWork[[#This Row],[Начало порции]]+rngPortionSize-1,"") -> 840 | L170: =IF(tblWork[[#This Row],[Порция]]>0,INDEX(tblCUR[],tblWork[[#This Row],[Начало порции]],1),"") -> 2008-05-21 | M170: =IF(rngEnabledEUR,IF(tblWork[[#This Row],[Порция]]>0,AVERAGE(INDEX(tblCUR[EUR],tblWork[[#This Row],[Начало порции]]):INDEX(tblCUR[EUR],tblWork[[#This Row],[Конец порции]])),""),NA()) -> 37.09926 | N170: =IF(rngEnabledGBP,IF(tblWork[[#This Row],[Порция]]>0,AVERAGE(INDEX(tblCUR[GBP],tblWork[[#This Row],[Начало порции]]):INDEX(tblCUR[GBP],tblWork[[#This Row],[Конец порции]])),""),NA()) -> 46.57362 | O170: =IF(rngEnabledUSD,IF(tblWork[[#This Row],[Порция]]>0,AVERAGE(INDEX(tblCUR[USD],tblWork[[#This Row],[Начало порции]]):INDEX(tblCUR[USD],tblWork[[#This Row],[Конец порции]])),""),NA()) -> 23.63168
H171: 169 | I171: =IF(tblWork[[#This Row],[Строка]]<=rngWindowNums,tblWork[[#This Row],[Строка]],) -> 169 | J171: =IF(tblWork[[#This Row],[Порция]]>0,1+(tblWork[[#This Row],[Порция]]-1)*rngPortionSize,"") -> 841 | K171: =IF(tblWork[[#This Row],[Порция]]>0,tblWork[[#This Row],[Начало порции]]+rngPortionSize-1,"") -> 845 | L171: =IF(tblWork[[#This Row],[Порция]]>0,INDEX(tblCUR[],tblWork[[#This Row],[Начало порции]],1),"") -> 2008-05-28 | M171: =IF(rngEnabledEUR,IF(tblWork[[#This Row],[Порция]]>0,AVERAGE(INDEX(tblCUR[EUR],tblWork[[#This Row],[Начало порции]]):INDEX(tblCUR[EUR],tblWork[[#This Row],[Конец порции]])),""),NA()) -> 36.95316 | N171: =IF(rngEnabledGBP,IF(tblWork[[#This Row],[Порция]]>0,AVERAGE(INDEX(tblCUR[GBP],tblWork[[#This Row],[Начало порции]]):INDEX(tblCUR[GBP],tblWork[[#This Row],[Конец порции]])),""),NA()) -> 46.73108 | O171: =IF(rngEnabledUSD,IF(tblWork[[#This Row],[Порция]]>0,AVERAGE(INDEX(tblCUR[USD],tblWork[[#This Row],[Начало порции]]):INDEX(tblCUR[USD],tblWork[[#This Row],[Конец порции]])),""),NA()) -> 23.65752
H172: 170 | I172: =IF(tblWork[[#This Row],[Строка]]<=rngWindowNums,tblWork[[#This Row],[Строка]],) -> 170 | J172: =IF(tblWork[[#This Row],[Порция]]>0,1+(tblWork[[#This Row],[Порция]]-1)*rngPortionSize,"") -> 846 | K172: =IF(tblWork[[#This Row],[Порция]]>0,tblWork[[#This Row],[Начало порции]]+rngPortionSize-1,"") -> 850 | L172: =IF(tblWork[[#This Row],[Порция]]>0,INDEX(tblCUR[],tblWork[[#This Row],[Начало порции]],1),"") -> 2008-06-04 | M172: =IF(rngEnabledEUR,IF(tblWork[[#This Row],[Порция]]>0,AVERAGE(INDEX(tblCUR[EUR],tblWork[[#This Row],[Начало порции]]):INDEX(tblCUR[EUR],tblWork[[#This Row],[Конец порции]])),""),NA()) -> 36.89646 | N172: =IF(rngEnabledGBP,IF(tblWork[[#This Row],[Порция]]>0,AVERAGE(INDEX(tblCUR[GBP],tblWork[[#This Row],[Начало порции]]):INDEX(tblCUR[GBP],tblWork[[#This Row],[Конец порции]])),""),NA()) -> 46.4797 | O172: =IF(rngEnabledUSD,IF(tblWork[[#This Row],[Порция]]>0,AVERAGE(INDEX(tblCUR[USD],tblWork[[#This Row],[Начало порции]]):INDEX(tblCUR[USD],tblWork[[#This Row],[Конец порции]])),""),NA()) -> 23.71126
H173: 171 | I173: =IF(tblWork[[#This Row],[Строка]]<=rngWindowNums,tblWork[[#This Row],[Строка]],) -> 171 | J173: =IF(tblWork[[#This Row],[Порция]]>0,1+(tblWork[[#This Row],[Порция]]-1)*rngPortionSize,"") -> 851 | K173: =IF(tblWork[[#This Row],[Порция]]>0,tblWork[[#This Row],[Начало порции]]+rngPortionSize-1,"") -> 855 | L173: =IF(tblWork[[#This Row],[Порция]]>0,INDEX(tblCUR[],tblWork[[#This Row],[Начало порции]],1),"") -> 2008-06-10 | M173: =IF(rngEnabledEUR,IF(tblWork[[#This Row],[Порция]]>0,AVERAGE(INDEX(tblCUR[EUR],tblWork[[#This Row],[Начало порции]]):INDEX(tblCUR[EUR],tblWork[[#This Row],[Конец порции]])),""),NA()) -> 36.7791 | N173: =IF(rngEnabledGBP,IF(tblWork[[#This Row],[Порция]]>0,AVERAGE(INDEX(tblCUR[GBP],tblWork[[#This Row],[Начало порции]]):INDEX(tblCUR[GBP],tblWork[[#This Row],[Конец порции]])),""),NA()) -> 46.37784 | O173: =IF(rngEnabledUSD,IF(tblWork[[#This Row],[Порция]]>0,AVERAGE(INDEX(tblCUR[USD],tblWork[[#This Row],[Начало порции]]):INDEX(tblCUR[USD],tblWork[[#This Row],[Конец порции]])),""),NA()) -> 23.64528
H174: 172 | I174: =IF(tblWork[[#This Row],[Строка]]<=rngWindowNums,tblWork[[#This Row],[Строка]],) -> 172 | J174: =IF(tblWork[[#This Row],[Порция]]>0,1+(tblWork[[#This Row],[Порция]]-1)*rngPortionSize,"") -> 856 | K174: =IF(tblWork[[#This Row],[Порция]]>0,tblWork[[#This Row],[Начало порции]]+rngPortionSize-1,"") -> 860 | L174: =IF(tblWork[[#This Row],[Порция]]>0,INDEX(tblCUR[],tblWork[[#This Row],[Начало порции]],1),"") -> 2008-06-19 | M174: =IF(rngEnabledEUR,IF(tblWork[[#This Row],[Порция]]>0,AVERAGE(INDEX(tblCUR[EUR],tblWork[[#This Row],[Начало порции]]):INDEX(tblCUR[EUR],tblWork[[#This Row],[Конец порции]])),""),NA()) -> 36.7144 | N174: =IF(rngEnabledGBP,IF(tblWork[[#This Row],[Порция]]>0,AVERAGE(INDEX(tblCUR[GBP],tblWork[[#This Row],[Начало порции]]):INDEX(tblCUR[GBP],tblWork[[#This Row],[Конец порции]])),""),NA()) -> 46.3946 | O174: =IF(rngEnabledUSD,IF(tblWork[[#This Row],[Порция]]>0,AVERAGE(INDEX(tblCUR[USD],tblWork[[#This Row],[Начало порции]]):INDEX(tblCUR[USD],tblWork[[#This Row],[Конец порции]])),""),NA()) -> 23.61968
H175: 173 | I175: =IF(tblWork[[#This Row],[Строка]]<=rngWindowNums,tblWork[[#This Row],[Строка]],) -> 173 | J175: =IF(tblWork[[#This Row],[Порция]]>0,1+(tblWork[[#This Row],[Порция]]-1)*rngPortionSize,"") -> 861 | K175: =IF(tblWork[[#This Row],[Порция]]>0,tblWork[[#This Row],[Начало порции]]+rngPortionSize-1,"") -> 865 | L175: =IF(tblWork[[#This Row],[Порция]]>0,INDEX(tblCUR[],tblWork[[#This Row],[Начало порции]],1),"") -> 2008-06-26 | M175: =IF(rngEnabledEUR,IF(tblWork[[#This Row],[Порция]]>0,AVERAGE(INDEX(tblCUR[EUR],tblWork[[#This Row],[Начало порции]]):INDEX(tblCUR[EUR],tblWork[[#This Row],[Конец порции]])),""),NA()) -> 36.88178 | N175: =IF(rngEnabledGBP,IF(tblWork[[#This Row],[Порция]]>0,AVERAGE(INDEX(tblCUR[GBP],tblWork[[#This Row],[Начало порции]]):INDEX(tblCUR[GBP],tblWork[[#This Row],[Конец порции]])),""),NA()) -> 46.60538 | O175: =IF(rngEnabledUSD,IF(tblWork[[#This Row],[Порция]]>0,AVERAGE(INDEX(tblCUR[USD],tblWork[[#This Row],[Начало порции]]):INDEX(tblCUR[USD],tblWork[[#This Row],[Конец порции]])),""),NA()) -> 23.49376
H176: 174 | I176: =IF(tblWork[[#This Row],[Строка]]<=rngWindowNums,tblWork[[#This Row],[Строка]],) -> 174 | J176: =IF(tblWork[[#This Row],[Порция]]>0,1+(tblWork[[#This Row],[Порция]]-1)*rngPortionSize,"") -> 866 | K176: =IF(tblWork[[#This Row],[Порция]]>0,tblWork[[#This Row],[Начало порции]]+rngPortionSize-1,"") -> 870 | L176: =IF(tblWork[[#This Row],[Порция]]>0,INDEX(tblCUR[],tblWork[[#This Row],[Начало порции]],1),"") -> 2008-07-03 | M176: =IF(rngEnabledEUR,IF(tblWork[[#This Row],[Порция]]>0,AVERAGE(INDEX(tblCUR[EUR],tblWork[[#This Row],[Начало порции]]):INDEX(tblCUR[EUR],tblWork[[#This Row],[Конец порции]])),""),NA()) -> 36.9593 | N176: =IF(rngEnabledGBP,IF(tblWork[[#This Row],[Порция]]>0,AVERAGE(INDEX(tblCUR[GBP],tblWork[[#This Row],[Начало порции]]):INDEX(tblCUR[GBP],tblWork[[#This Row],[Конец порции]])),""),NA()) -> 46.56314 | O176: =IF(rngEnabledUSD,IF(tblWork[[#This Row],[Порция]]>0,AVERAGE(INDEX(tblCUR[USD],tblWork[[#This Row],[Начало порции]]):INDEX(tblCUR[USD],tblWork[[#This Row],[Конец порции]])),""),NA()) -> 23.47288
H177: 175 | I177: =IF(tblWork[[#This Row],[Строка]]<=rngWindowNums,tblWork[[#This Row],[Строка]],) -> 175 | J177: =IF(tblWork[[#This Row],[Порция]]>0,1+(tblWork[[#This Row],[Порция]]-1)*rngPortionSize,"") -> 871 | K177: =IF(tblWork[[#This Row],[Порция]]>0,tblWork[[#This Row],[Начало порции]]+rngPortionSize-1,"") -> 875 | L177: =IF(tblWork[[#This Row],[Порция]]>0,INDEX(tblCUR[],tblWork[[#This Row],[Начало порции]],1),"") -> 2008-07-10 | M177: =IF(rngEnabledEUR,IF(tblWork[[#This Row],[Порция]]>0,AVERAGE(INDEX(tblCUR[EUR],tblWork[[#This Row],[Начало порции]]):INDEX(tblCUR[EUR],tblWork[[#This Row],[Конец порции]])),""),NA()) -> 36.86222 | N177: =IF(rngEnabledGBP,IF(tblWork[[#This Row],[Порция]]>0,AVERAGE(INDEX(tblCUR[GBP],tblWork[[#This Row],[Начало порции]]):INDEX(tblCUR[GBP],tblWork[[#This Row],[Конец порции]])),""),NA()) -> 46.21498 | O177: =IF(rngEnabledUSD,IF(tblWork[[#This Row],[Порция]]>0,AVERAGE(INDEX(tblCUR[USD],tblWork[[#This Row],[Начало порции]]):INDEX(tblCUR[USD],tblWork[[#This Row],[Конец порции]])),""),NA()) -> 23.31584
H178: 176 | I178: =IF(tblWork[[#This Row],[Строка]]<=rngWindowNums,tblWork[[#This Row],[Строка]],) -> 176 | J178: =IF(tblWork[[#This Row],[Порция]]>0,1+(tblWork[[#This Row],[Порция]]-1)*rngPortionSize,"") -> 876 | K178: =IF(tblWork[[#This Row],[Порция]]>0,tblWork[[#This Row],[Начало порции]]+rngPortionSize-1,"") -> 880 | L178: =IF(tblWork[[#This Row],[Порция]]>0,INDEX(tblCUR[],tblWork[[#This Row],[Начало порции]],1),"") -> 2008-07-17 | M178: =IF(rngEnabledEUR,IF(tblWork[[#This Row],[Порция]]>0,AVERAGE(INDEX(tblCUR[EUR],tblWork[[#This Row],[Начало порции]]):INDEX(tblCUR[EUR],tblWork[[#This Row],[Конец порции]])),""),NA()) -> 36.84408 | N178: =IF(rngEnabledGBP,IF(tblWork[[#This Row],[Порция]]>0,AVERAGE(INDEX(tblCUR[GBP],tblWork[[#This Row],[Начало порции]]):INDEX(tblCUR[GBP],tblWork[[#This Row],[Конец порции]])),""),NA()) -> 46.39056 | O178: =IF(rngEnabledUSD,IF(tblWork[[#This Row],[Порция]]>0,AVERAGE(INDEX(tblCUR[USD],tblWork[[#This Row],[Начало порции]]):INDEX(tblCUR[USD],tblWork[[#This Row],[Конец порции]])),""),NA()) -> 23.1981
H179: 177 | I179: =IF(tblWork[[#This Row],[Строка]]<=rngWindowNums,tblWork[[#This Row],[Строка]],) -> 177 | J179: =IF(tblWork[[#This Row],[Порция]]>0,1+(tblWork[[#This Row],[Порция]]-1)*rngPortionSize,"") -> 881 | K179: =IF(tblWork[[#This Row],[Порция]]>0,tblWork[[#This Row],[Начало порции]]+rngPortionSize-1,"") -> 885 | L179: =IF(tblWork[[#This Row],[Порция]]>0,INDEX(tblCUR[],tblWork[[#This Row],[Начало порции]],1),"") -> 2008-07-24 | M179: =IF(rngEnabledEUR,IF(tblWork[[#This Row],[Порция]]>0,AVERAGE(INDEX(tblCUR[EUR],tblWork[[#This Row],[Начало порции]]):INDEX(tblCUR[EUR],tblWork[[#This Row],[Конец порции]])),""),NA()) -> 36.70916 | N179: =IF(rngEnabledGBP,IF(tblWork[[#This Row],[Порция]]>0,AVERAGE(INDEX(tblCUR[GBP],tblWork[[#This Row],[Начало порции]]):INDEX(tblCUR[GBP],tblWork[[#This Row],[Конец порции]])),""),NA()) -> 46.48038 | O179: =IF(rngEnabledUSD,IF(tblWork[[#This Row],[Порция]]>0,AVERAGE(INDEX(tblCUR[USD],tblWork[[#This Row],[Начало порции]]):INDEX(tblCUR[USD],tblWork[[#This Row],[Конец порции]])),""),NA()) -> 23.34924
H180: 178 | I180: =IF(tblWork[[#This Row],[Строка]]<=rngWindowNums,tblWork[[#This Row],[Строка]],) -> 178 | J180: =IF(tblWork[[#This Row],[Порция]]>0,1+(tblWork[[#This Row],[Порция]]-1)*rngPortionSize,"") -> 886 | K180: =IF(tblWork[[#This Row],[Порция]]>0,tblWork[[#This Row],[Начало порции]]+rngPortionSize-1,"") -> 890 | L180: =IF(tblWork[[#This Row],[Порция]]>0,INDEX(tblCUR[],tblWork[[#This Row],[Начало порции]],1),"") -> 2008-07-31 | M180: =IF(rngEnabledEUR,IF(tblWork[[#This Row],[Порция]]>0,AVERAGE(INDEX(tblCUR[EUR],tblWork[[#This Row],[Начало порции]]):INDEX(tblCUR[EUR],tblWork[[#This Row],[Конец порции]])),""),NA()) -> 36.50038 | N180: =IF(rngEnabledGBP,IF(tblWork[[#This Row],[Порция]]>0,AVERAGE(INDEX(tblCUR[GBP],tblWork[[#This Row],[Начало порции]]):INDEX(tblCUR[GBP],tblWork[[#This Row],[Конец порции]])),""),NA()) -> 46.24876 | O180: =IF(rngEnabledUSD,IF(tblWork[[#This Row],[Порция]]>0,AVERAGE(INDEX(tblCUR[USD],tblWork[[#This Row],[Начало порции]]):INDEX(tblCUR[USD],tblWork[[#This Row],[Конец порции]])),""),NA()) -> 23.43464
H181: 179 | I181: =IF(tblWork[[#This Row],[Строка]]<=rngWindowNums,tblWork[[#This Row],[Строка]],) -> 179 | J181: =IF(tblWork[[#This Row],[Порция]]>0,1+(tblWork[[#This Row],[Порция]]-1)*rngPortionSize,"") -> 891 | K181: =IF(tblWork[[#This Row],[Порция]]>0,tblWork[[#This Row],[Начало порции]]+rngPortionSize-1,"") -> 895 | L181: =IF(tblWork[[#This Row],[Порция]]>0,INDEX(tblCUR[],tblWork[[#This Row],[Начало порции]],1),"") -> 2008-08-07 | M181: =IF(rngEnabledEUR,IF(tblWork[[#This Row],[Порция]]>0,AVERAGE(INDEX(tblCUR[EUR],tblWork[[#This Row],[Начало порции]]):INDEX(tblCUR[EUR],tblWork[[#This Row],[Конец порции]])),""),NA()) -> 36.4391 | N181: =IF(rngEnabledGBP,IF(tblWork[[#This Row],[Порция]]>0,AVERAGE(INDEX(tblCUR[GBP],tblWork[[#This Row],[Начало порции]]):INDEX(tblCUR[GBP],tblWork[[#This Row],[Конец порции]])),""),NA()) -> 46.2776 | O181: =IF(rngEnabledUSD,IF(tblWork[[#This Row],[Порция]]>0,AVERAGE(INDEX(tblCUR[USD],tblWork[[#This Row],[Начало порции]]):INDEX(tblCUR[USD],tblWork[[#This Row],[Конец порции]])),""),NA()) -> 23.97722
H182: 180 | I182: =IF(tblWork[[#This Row],[Строка]]<=rngWindowNums,tblWork[[#This Row],[Строка]],) -> 180 | J182: =IF(tblWork[[#This Row],[Порция]]>0,1+(tblWork[[#This Row],[Порция]]-1)*rngPortionSize,"") -> 896 | K182: =IF(tblWork[[#This Row],[Порция]]>0,tblWork[[#This Row],[Начало порции]]+rngPortionSize-1,"") -> 900 | L182: =IF(tblWork[[#This Row],[Порция]]>0,INDEX(tblCUR[],tblWork[[#This Row],[Начало порции]],1),"") -> 2008-08-14 | M182: =IF(rngEnabledEUR,IF(tblWork[[#This Row],[Порция]]>0,AVERAGE(INDEX(tblCUR[EUR],tblWork[[#This Row],[Начало порции]]):INDEX(tblCUR[EUR],tblWork[[#This Row],[Конец порции]])),""),NA()) -> 36.10788 | N182: =IF(rngEnabledGBP,IF(tblWork[[#This Row],[Порция]]>0,AVERAGE(INDEX(tblCUR[GBP],tblWork[[#This Row],[Начало порции]]):INDEX(tblCUR[GBP],tblWork[[#This Row],[Конец порции]])),""),NA()) -> 45.61822 | O182: =IF(rngEnabledUSD,IF(tblWork[[#This Row],[Порция]]>0,AVERAGE(INDEX(tblCUR[USD],tblWork[[#This Row],[Начало порции]]):INDEX(tblCUR[USD],tblWork[[#This Row],[Конец порции]])),""),NA()) -> 24.4023
H183: 181 | I183: =IF(tblWork[[#This Row],[Строка]]<=rngWindowNums,tblWork[[#This Row],[Строка]],) -> 181 | J183: =IF(tblWork[[#This Row],[Порция]]>0,1+(tblWork[[#This Row],[Порция]]-1)*rngPortionSize,"") -> 901 | K183: =IF(tblWork[[#This Row],[Порция]]>0,tblWork[[#This Row],[Начало порции]]+rngPortionSize-1,"") -> 905 | L183: =IF(tblWork[[#This Row],[Порция]]>0,INDEX(tblCUR[],tblWork[[#This Row],[Начало порции]],1),"") -> 2008-08-21 | M183: =IF(rngEnabledEUR,IF(tblWork[[#This Row],[Порция]]>0,AVERAGE(INDEX(tblCUR[EUR],tblWork[[#This Row],[Начало порции]]):INDEX(tblCUR[EUR],tblWork[[#This Row],[Конец порции]])),""),NA()) -> 36.05284 | N183: =IF(rngEnabledGBP,IF(tblWork[[#This Row],[Порция]]>0,AVERAGE(INDEX(tblCUR[GBP],tblWork[[#This Row],[Начало порции]]):INDEX(tblCUR[GBP],tblWork[[#This Row],[Конец порции]])),""),NA()) -> 45.33582 | O183: =IF(rngEnabledUSD,IF(tblWork[[#This Row],[Порция]]>0,AVERAGE(INDEX(tblCUR[USD],tblWork[[#This Row],[Начало порции]]):INDEX(tblCUR[USD],tblWork[[#This Row],[Конец порции]])),""),NA()) -> 24.4044
H184: 182 | I184: =IF(tblWork[[#This Row],[Строка]]<=rngWindowNums,tblWork[[#This Row],[Строка]],) -> 182 | J184: =IF(tblWork[[#This Row],[Порция]]>0,1+(tblWork[[#This Row],[Порция]]-1)*rngPortionSize,"") -> 906 | K184: =IF(tblWork[[#This Row],[Порция]]>0,tblWork[[#This Row],[Начало порции]]+rngPortionSize-1,"") -> 910 | L184: =IF(tblWork[[#This Row],[Порция]]>0,INDEX(tblCUR[],tblWork[[#This Row],[Начало порции]],1),"") -> 2008-08-28 | M184: =IF(rngEnabledEUR,IF(tblWork[[#This Row],[Порция]]>0,AVERAGE(INDEX(tblCUR[EUR],tblWork[[#This Row],[Начало порции]]):INDEX(tblCUR[EUR],tblWork[[#This Row],[Конец порции]])),""),NA()) -> 36.1485 | N184: =IF(rngEnabledGBP,IF(tblWork[[#This Row],[Порция]]>0,AVERAGE(INDEX(tblCUR[GBP],tblWork[[#This Row],[Начало порции]]):INDEX(tblCUR[GBP],tblWork[[#This Row],[Конец порции]])),""),NA()) -> 44.82176 | O184: =IF(rngEnabledUSD,IF(tblWork[[#This Row],[Порция]]>0,AVERAGE(INDEX(tblCUR[USD],tblWork[[#This Row],[Начало порции]]):INDEX(tblCUR[USD],tblWork[[#This Row],[Конец порции]])),""),NA()) -> 24.62232
H185: 183 | I185: =IF(tblWork[[#This Row],[Строка]]<=rngWindowNums,tblWork[[#This Row],[Строка]],) -> 183 | J185: =IF(tblWork[[#This Row],[Порция]]>0,1+(tblWork[[#This Row],[Порция]]-1)*rngPortionSize,"") -> 911 | K185: =IF(tblWork[[#This Row],[Порция]]>0,tblWork[[#This Row],[Начало порции]]+rngPortionSize-1,"") -> 915 | L185: =IF(tblWork[[#This Row],[Порция]]>0,INDEX(tblCUR[],tblWork[[#This Row],[Начало порции]],1),"") -> 2008-09-04 | M185: =IF(rngEnabledEUR,IF(tblWork[[#This Row],[Порция]]>0,AVERAGE(INDEX(tblCUR[EUR],tblWork[[#This Row],[Начало порции]]):INDEX(tblCUR[EUR],tblWork[[#This Row],[Конец порции]])),""),NA()) -> 36.25342 | N185: =IF(rngEnabledGBP,IF(tblWork[[#This Row],[Порция]]>0,AVERAGE(INDEX(tblCUR[GBP],tblWork[[#This Row],[Начало порции]]):INDEX(tblCUR[GBP],tblWork[[#This Row],[Конец порции]])),""),NA()) -> 44.75196 | O185: =IF(rngEnabledUSD,IF(tblWork[[#This Row],[Порция]]>0,AVERAGE(INDEX(tblCUR[USD],tblWork[[#This Row],[Начало порции]]):INDEX(tblCUR[USD],tblWork[[#This Row],[Конец порции]])),""),NA()) -> 25.2775
H186: 184 | I186: =IF(tblWork[[#This Row],[Строка]]<=rngWindowNums,tblWork[[#This Row],[Строка]],) -> 184 | J186: =IF(tblWork[[#This Row],[Порция]]>0,1+(tblWork[[#This Row],[Порция]]-1)*rngPortionSize,"") -> 916 | K186: =IF(tblWork[[#This Row],[Порция]]>0,tblWork[[#This Row],[Начало порции]]+rngPortionSize-1,"") -> 920 | L186: =IF(tblWork[[#This Row],[Порция]]>0,INDEX(tblCUR[],tblWork[[#This Row],[Начало порции]],1),"") -> 2008-09-11 | M186: =IF(rngEnabledEUR,IF(tblWork[[#This Row],[Порция]]>0,AVERAGE(INDEX(tblCUR[EUR],tblWork[[#This Row],[Начало порции]]):INDEX(tblCUR[EUR],tblWork[[#This Row],[Конец порции]])),""),NA()) -> 36.20616 | N186: =IF(rngEnabledGBP,IF(tblWork[[#This Row],[Порция]]>0,AVERAGE(INDEX(tblCUR[GBP],tblWork[[#This Row],[Начало порции]]):INDEX(tblCUR[GBP],tblWork[[#This Row],[Конец порции]])),""),NA()) -> 45.45978 | O186: =IF(rngEnabledUSD,IF(tblWork[[#This Row],[Порция]]>0,AVERAGE(INDEX(tblCUR[USD],tblWork[[#This Row],[Начало порции]]):INDEX(tblCUR[USD],tblWork[[#This Row],[Конец порции]])),""),NA()) -> 25.59236
H187: 185 | I187: =IF(tblWork[[#This Row],[Строка]]<=rngWindowNums,tblWork[[#This Row],[Строка]],) -> 185 | J187: =IF(tblWork[[#This Row],[Порция]]>0,1+(tblWork[[#This Row],[Порция]]-1)*rngPortionSize,"") -> 921 | K187: =IF(tblWork[[#This Row],[Порция]]>0,tblWork[[#This Row],[Начало порции]]+rngPortionSize-1,"") -> 925 | L187: =IF(tblWork[[#This Row],[Порция]]>0,INDEX(tblCUR[],tblWork[[#This Row],[Начало порции]],1),"") -> 2008-09-18 | M187: =IF(rngEnabledEUR,IF(tblWork[[#This Row],[Порция]]>0,AVERAGE(INDEX(tblCUR[EUR],tblWork[[#This Row],[Начало порции]]):INDEX(tblCUR[EUR],tblWork[[#This Row],[Конец порции]])),""),NA()) -> 36.4968 | N187: =IF(rngEnabledGBP,IF(tblWork[[#This Row],[Порция]]>0,AVERAGE(INDEX(tblCUR[GBP],tblWork[[#This Row],[Начало порции]]):INDEX(tblCUR[GBP],tblWork[[#This Row],[Конец порции]])),""),NA()) -> 46.1247 | O187: =IF(rngEnabledUSD,IF(tblWork[[#This Row],[Порция]]>0,AVERAGE(INDEX(tblCUR[USD],tblWork[[#This Row],[Начало порции]]):INDEX(tblCUR[USD],tblWork[[#This Row],[Конец порции]])),""),NA()) -> 25.33938
H188: 186 | I188: =IF(tblWork[[#This Row],[Строка]]<=rngWindowNums,tblWork[[#This Row],[Строка]],) -> 186 | J188: =IF(tblWork[[#This Row],[Порция]]>0,1+(tblWork[[#This Row],[Порция]]-1)*rngPortionSize,"") -> 926 | K188: =IF(tblWork[[#This Row],[Порция]]>0,tblWork[[#This Row],[Начало порции]]+rngPortionSize-1,"") -> 930 | L188: =IF(tblWork[[#This Row],[Порция]]>0,INDEX(tblCUR[],tblWork[[#This Row],[Начало порции]],1),"") -> 2008-09-25 | M188: =IF(rngEnabledEUR,IF(tblWork[[#This Row],[Порция]]>0,AVERAGE(INDEX(tblCUR[EUR],tblWork[[#This Row],[Начало порции]]):INDEX(tblCUR[EUR],tblWork[[#This Row],[Конец порции]])),""),NA()) -> 36.59406 | N188: =IF(rngEnabledGBP,IF(tblWork[[#This Row],[Порция]]>0,AVERAGE(INDEX(tblCUR[GBP],tblWork[[#This Row],[Начало порции]]):INDEX(tblCUR[GBP],tblWork[[#This Row],[Конец порции]])),""),NA()) -> 46.0877 | O188: =IF(rngEnabledUSD,IF(tblWork[[#This Row],[Порция]]>0,AVERAGE(INDEX(tblCUR[USD],tblWork[[#This Row],[Начало порции]]):INDEX(tblCUR[USD],tblWork[[#This Row],[Конец порции]])),""),NA()) -> 25.12176
H189: 187 | I189: =IF(tblWork[[#This Row],[Строка]]<=rngWindowNums,tblWork[[#This Row],[Строка]],) -> 187 | J189: =IF(tblWork[[#This Row],[Порция]]>0,1+(tblWork[[#This Row],[Порция]]-1)*rngPortionSize,"") -> 931 | K189: =IF(tblWork[[#This Row],[Порция]]>0,tblWork[[#This Row],[Начало порции]]+rngPortionSize-1,"") -> 935 | L189: =IF(tblWork[[#This Row],[Порция]]>0,INDEX(tblCUR[],tblWork[[#This Row],[Начало порции]],1),"") -> 2008-10-02 | M189: =IF(rngEnabledEUR,IF(tblWork[[#This Row],[Порция]]>0,AVERAGE(INDEX(tblCUR[EUR],tblWork[[#This Row],[Начало порции]]):INDEX(tblCUR[EUR],tblWork[[#This Row],[Конец порции]])),""),NA()) -> 35.81466 | N189: =IF(rngEnabledGBP,IF(tblWork[[#This Row],[Порция]]>0,AVERAGE(INDEX(tblCUR[GBP],tblWork[[#This Row],[Начало порции]]):INDEX(tblCUR[GBP],tblWork[[#This Row],[Конец порции]])),""),NA()) -> 45.76778 | O189: =IF(rngEnabledUSD,IF(tblWork[[#This Row],[Порция]]>0,AVERAGE(INDEX(tblCUR[USD],tblWork[[#This Row],[Начало порции]]):INDEX(tblCUR[USD],tblWork[[#This Row],[Конец порции]])),""),NA()) -> 25.93608
H190: 188 | I190: =IF(tblWork[[#This Row],[Строка]]<=rngWindowNums,tblWork[[#This Row],[Строка]],) -> 188 | J190: =IF(tblWork[[#This Row],[Порция]]>0,1+(tblWork[[#This Row],[Порция]]-1)*rngPortionSize,"") -> 936 | K190: =IF(tblWork[[#This Row],[Порция]]>0,tblWork[[#This Row],[Начало порции]]+rngPortionSize-1,"") -> 940 | L190: =IF(tblWork[[#This Row],[Порция]]>0,INDEX(tblCUR[],tblWork[[#This Row],[Начало порции]],1),"") -> 2008-10-09 | M190: =IF(rngEnabledEUR,IF(tblWork[[#This Row],[Порция]]>0,AVERAGE(INDEX(tblCUR[EUR],tblWork[[#This Row],[Начало порции]]):INDEX(tblCUR[EUR],tblWork[[#This Row],[Конец порции]])),""),NA()) -> 35.59512 | N190: =IF(rngEnabledGBP,IF(tblWork[[#This Row],[Порция]]>0,AVERAGE(INDEX(tblCUR[GBP],tblWork[[#This Row],[Начало порции]]):INDEX(tblCUR[GBP],tblWork[[#This Row],[Конец порции]])),""),NA()) -> 45.12154 | O190: =IF(rngEnabledUSD,IF(tblWork[[#This Row],[Порция]]>0,AVERAGE(INDEX(tblCUR[USD],tblWork[[#This Row],[Начало порции]]):INDEX(tblCUR[USD],tblWork[[#This Row],[Конец порции]])),""),NA()) -> 26.12772
H191: 189 | I191: =IF(tblWork[[#This Row],[Строка]]<=rngWindowNums,tblWork[[#This Row],[Строка]],) -> 189 | J191: =IF(tblWork[[#This Row],[Порция]]>0,1+(tblWork[[#This Row],[Порция]]-1)*rngPortionSize,"") -> 941 | K191: =IF(tblWork[[#This Row],[Порция]]>0,tblWork[[#This Row],[Начало порции]]+rngPortionSize-1,"") -> 945 | L191: =IF(tblWork[[#This Row],[Порция]]>0,INDEX(tblCUR[],tblWork[[#This Row],[Начало порции]],1),"") -> 2008-10-16 | M191: =IF(rngEnabledEUR,IF(tblWork[[#This Row],[Порция]]>0,AVERAGE(INDEX(tblCUR[EUR],tblWork[[#This Row],[Начало порции]]):INDEX(tblCUR[EUR],tblWork[[#This Row],[Конец порции]])),""),NA()) -> 35.31172 | N191: =IF(rngEnabledGBP,IF(tblWork[[#This Row],[Порция]]>0,AVERAGE(INDEX(tblCUR[GBP],tblWork[[#This Row],[Начало порции]]):INDEX(tblCUR[GBP],tblWork[[#This Row],[Конец порции]])),""),NA()) -> 45.50106 | O191: =IF(rngEnabledUSD,IF(tblWork[[#This Row],[Порция]]>0,AVERAGE(INDEX(tblCUR[USD],tblWork[[#This Row],[Начало порции]]):INDEX(tblCUR[USD],tblWork[[#This Row],[Конец порции]])),""),NA()) -> 26.25042
H192: 190 | I192: =IF(tblWork[[#This Row],[Строка]]<=rngWindowNums,tblWork[[#This Row],[Строка]],) -> 190 | J192: =IF(tblWork[[#This Row],[Порция]]>0,1+(tblWork[[#This Row],[Порция]]-1)*rngPortionSize,"") -> 946 | K192: =IF(tblWork[[#This Row],[Порция]]>0,tblWork[[#This Row],[Начало порции]]+rngPortionSize-1,"") -> 950 | L192: =IF(tblWork[[#This Row],[Порция]]>0,INDEX(tblCUR[],tblWork[[#This Row],[Начало порции]],1),"") -> 2008-10-23 | M192: =IF(rngEnabledEUR,IF(tblWork[[#This Row],[Порция]]>0,AVERAGE(INDEX(tblCUR[EUR],tblWork[[#This Row],[Начало порции]]):INDEX(tblCUR[EUR],tblWork[[#This Row],[Конец порции]])),""),NA()) -> 34.37454 | N192: =IF(rngEnabledGBP,IF(tblWork[[#This Row],[Порция]]>0,AVERAGE(INDEX(tblCUR[GBP],tblWork[[#This Row],[Начало порции]]):INDEX(tblCUR[GBP],tblWork[[#This Row],[Конец порции]])),""),NA()) -> 43.11568 | O192: =IF(rngEnabledUSD,IF(tblWork[[#This Row],[Порция]]>0,AVERAGE(INDEX(tblCUR[USD],tblWork[[#This Row],[Начало порции]]):INDEX(tblCUR[USD],tblWork[[#This Row],[Конец порции]])),""),NA()) -> 27.12258
H193: 191 | I193: =IF(tblWork[[#This Row],[Строка]]<=rngWindowNums,tblWork[[#This Row],[Строка]],) -> 191 | J193: =IF(tblWork[[#This Row],[Порция]]>0,1+(tblWork[[#This Row],[Порция]]-1)*rngPortionSize,"") -> 951 | K193: =IF(tblWork[[#This Row],[Порция]]>0,tblWork[[#This Row],[Начало порции]]+rngPortionSize-1,"") -> 955 | L193: =IF(tblWork[[#This Row],[Порция]]>0,INDEX(tblCUR[],tblWork[[#This Row],[Начало порции]],1),"") -> 2008-10-30 | M193: =IF(rngEnabledEUR,IF(tblWork[[#This Row],[Порция]]>0,AVERAGE(INDEX(tblCUR[EUR],tblWork[[#This Row],[Начало порции]]):INDEX(tblCUR[EUR],tblWork[[#This Row],[Конец порции]])),""),NA()) -> 34.58244 | N193: =IF(rngEnabledGBP,IF(tblWork[[#This Row],[Порция]]>0,AVERAGE(INDEX(tblCUR[GBP],tblWork[[#This Row],[Начало порции]]):INDEX(tblCUR[GBP],tblWork[[#This Row],[Конец порции]])),""),NA()) -> 43.44964 | O193: =IF(rngEnabledUSD,IF(tblWork[[#This Row],[Порция]]>0,AVERAGE(INDEX(tblCUR[USD],tblWork[[#This Row],[Начало порции]]):INDEX(tblCUR[USD],tblWork[[#This Row],[Конец порции]])),""),NA()) -> 26.94658
H194: 192 | I194: =IF(tblWork[[#This Row],[Строка]]<=rngWindowNums,tblWork[[#This Row],[Строка]],) -> 192 | J194: =IF(tblWork[[#This Row],[Порция]]>0,1+(tblWork[[#This Row],[Порция]]-1)*rngPortionSize,"") -> 956 | K194: =IF(tblWork[[#This Row],[Порция]]>0,tblWork[[#This Row],[Начало порции]]+rngPortionSize-1,"") -> 960 | L194: =IF(tblWork[[#This Row],[Порция]]>0,INDEX(tblCUR[],tblWork[[#This Row],[Начало порции]],1),"") -> 2008-11-07 | M194: =IF(rngEnabledEUR,IF(tblWork[[#This Row],[Порция]]>0,AVERAGE(INDEX(tblCUR[EUR],tblWork[[#This Row],[Начало порции]]):INDEX(tblCUR[EUR],tblWork[[#This Row],[Конец порции]])),""),NA()) -> 34.63312 | N194: =IF(rngEnabledGBP,IF(tblWork[[#This Row],[Порция]]>0,AVERAGE(INDEX(tblCUR[GBP],tblWork[[#This Row],[Начало порции]]):INDEX(tblCUR[GBP],tblWork[[#This Row],[Конец порции]])),""),NA()) -> 42.55984 | O194: =IF(rngEnabledUSD,IF(tblWork[[#This Row],[Порция]]>0,AVERAGE(INDEX(tblCUR[USD],tblWork[[#This Row],[Начало порции]]):INDEX(tblCUR[USD],tblWork[[#This Row],[Конец порции]])),""),NA()) -> 27.13794
H195: 193 | I195: =IF(tblWork[[#This Row],[Строка]]<=rngWindowNums,tblWork[[#This Row],[Строка]],) -> 193 | J195: =IF(tblWork[[#This Row],[Порция]]>0,1+(tblWork[[#This Row],[Порция]]-1)*rngPortionSize,"") -> 961 | K195: =IF(tblWork[[#This Row],[Порция]]>0,tblWork[[#This Row],[Начало порции]]+rngPortionSize-1,"") -> 965 | L195: =IF(tblWork[[#This Row],[Порция]]>0,INDEX(tblCUR[],tblWork[[#This Row],[Начало порции]],1),"") -> 2008-11-14 | M195: =IF(rngEnabledEUR,IF(tblWork[[#This Row],[Порция]]>0,AVERAGE(INDEX(tblCUR[EUR],tblWork[[#This Row],[Начало порции]]):INDEX(tblCUR[EUR],tblWork[[#This Row],[Конец порции]])),""),NA()) -> 34.60848 | N195: =IF(rngEnabledGBP,IF(tblWork[[#This Row],[Порция]]>0,AVERAGE(INDEX(tblCUR[GBP],tblWork[[#This Row],[Начало порции]]):INDEX(tblCUR[GBP],tblWork[[#This Row],[Конец порции]])),""),NA()) -> 40.92292 | O195: =IF(rngEnabledUSD,IF(tblWork[[#This Row],[Порция]]>0,AVERAGE(INDEX(tblCUR[USD],tblWork[[#This Row],[Начало порции]]):INDEX(tblCUR[USD],tblWork[[#This Row],[Конец порции]])),""),NA()) -> 27.46356
H196: 194 | I196: =IF(tblWork[[#This Row],[Строка]]<=rngWindowNums,tblWork[[#This Row],[Строка]],) -> 194 | J196: =IF(tblWork[[#This Row],[Порция]]>0,1+(tblWork[[#This Row],[Порция]]-1)*rngPortionSize,"") -> 966 | K196: =IF(tblWork[[#This Row],[Порция]]>0,tblWork[[#This Row],[Начало порции]]+rngPortionSize-1,"") -> 970 | L196: =IF(tblWork[[#This Row],[Порция]]>0,INDEX(tblCUR[],tblWork[[#This Row],[Начало порции]],1),"") -> 2008-11-21 | M196: =IF(rngEnabledEUR,IF(tblWork[[#This Row],[Порция]]>0,AVERAGE(INDEX(tblCUR[EUR],tblWork[[#This Row],[Начало порции]]):INDEX(tblCUR[EUR],tblWork[[#This Row],[Конец порции]])),""),NA()) -> 34.92624 | N196: =IF(rngEnabledGBP,IF(tblWork[[#This Row],[Порция]]>0,AVERAGE(INDEX(tblCUR[GBP],tblWork[[#This Row],[Начало порции]]):INDEX(tblCUR[GBP],tblWork[[#This Row],[Конец порции]])),""),NA()) -> 41.31592 | O196: =IF(rngEnabledUSD,IF(tblWork[[#This Row],[Порция]]>0,AVERAGE(INDEX(tblCUR[USD],tblWork[[#This Row],[Начало порции]]):INDEX(tblCUR[USD],tblWork[[#This Row],[Конец порции]])),""),NA()) -> 27.50938
H197: 195 | I197: =IF(tblWork[[#This Row],[Строка]]<=rngWindowNums,tblWork[[#This Row],[Строка]],) -> 195 | J197: =IF(tblWork[[#This Row],[Порция]]>0,1+(tblWork[[#This Row],[Порция]]-1)*rngPortionSize,"") -> 971 | K197: =IF(tblWork[[#This Row],[Порция]]>0,tblWork[[#This Row],[Начало порции]]+rngPortionSize-1,"") -> 975 | L197: =IF(tblWork[[#This Row],[Порция]]>0,INDEX(tblCUR[],tblWork[[#This Row],[Начало порции]],1),"") -> 2008-11-28 | M197: =IF(rngEnabledEUR,IF(tblWork[[#This Row],[Порция]]>0,AVERAGE(INDEX(tblCUR[EUR],tblWork[[#This Row],[Начало порции]]):INDEX(tblCUR[EUR],tblWork[[#This Row],[Конец порции]])),""),NA()) -> 35.44662 | N197: =IF(rngEnabledGBP,IF(tblWork[[#This Row],[Порция]]>0,AVERAGE(INDEX(tblCUR[GBP],tblWork[[#This Row],[Начало порции]]):INDEX(tblCUR[GBP],tblWork[[#This Row],[Конец порции]])),""),NA()) -> 42.02904 | O197: =IF(rngEnabledUSD,IF(tblWork[[#This Row],[Порция]]>0,AVERAGE(INDEX(tblCUR[USD],tblWork[[#This Row],[Начало порции]]):INDEX(tblCUR[USD],tblWork[[#This Row],[Конец порции]])),""),NA()) -> 27.78126
H198: 196 | I198: =IF(tblWork[[#This Row],[Строка]]<=rngWindowNums,tblWork[[#This Row],[Строка]],) -> 196 | J198: =IF(tblWork[[#This Row],[Порция]]>0,1+(tblWork[[#This Row],[Порция]]-1)*rngPortionSize,"") -> 976 | K198: =IF(tblWork[[#This Row],[Порция]]>0,tblWork[[#This Row],[Начало порции]]+rngPortionSize-1,"") -> 980 | L198: =IF(tblWork[[#This Row],[Порция]]>0,INDEX(tblCUR[],tblWork[[#This Row],[Начало порции]],1),"") -> 2008-12-05 | M198: =IF(rngEnabledEUR,IF(tblWork[[#This Row],[Порция]]>0,AVERAGE(INDEX(tblCUR[EUR],tblWork[[#This Row],[Начало порции]]):INDEX(tblCUR[EUR],tblWork[[#This Row],[Конец порции]])),""),NA()) -> 35.89112 | N198: =IF(rngEnabledGBP,IF(tblWork[[#This Row],[Порция]]>0,AVERAGE(INDEX(tblCUR[GBP],tblWork[[#This Row],[Начало порции]]):INDEX(tblCUR[GBP],tblWork[[#This Row],[Конец порции]])),""),NA()) -> 41.40378 | O198: =IF(rngEnabledUSD,IF(tblWork[[#This Row],[Порция]]>0,AVERAGE(INDEX(tblCUR[USD],tblWork[[#This Row],[Начало порции]]):INDEX(tblCUR[USD],tblWork[[#This Row],[Конец порции]])),""),NA()) -> 27.9847
H199: 197 | I199: =IF(tblWork[[#This Row],[Строка]]<=rngWindowNums,tblWork[[#This Row],[Строка]],) -> 197 | J199: =IF(tblWork[[#This Row],[Порция]]>0,1+(tblWork[[#This Row],[Порция]]-1)*rngPortionSize,"") -> 981 | K199: =IF(tblWork[[#This Row],[Порция]]>0,tblWork[[#This Row],[Начало порции]]+rngPortionSize-1,"") -> 985 | L199: =IF(tblWork[[#This Row],[Порция]]>0,INDEX(tblCUR[],tblWork[[#This Row],[Начало порции]],1),"") -> 2008-12-12 | M199: =IF(rngEnabledEUR,IF(tblWork[[#This Row],[Порция]]>0,AVERAGE(INDEX(tblCUR[EUR],tblWork[[#This Row],[Начало порции]]):INDEX(tblCUR[EUR],tblWork[[#This Row],[Конец порции]])),""),NA()) -> 37.50412 | N199: =IF(rngEnabledGBP,IF(tblWork[[#This Row],[Порция]]>0,AVERAGE(INDEX(tblCUR[GBP],tblWork[[#This Row],[Начало порции]]):INDEX(tblCUR[GBP],tblWork[[#This Row],[Конец порции]])),""),NA()) -> 42.01788 | O199: =IF(rngEnabledUSD,IF(tblWork[[#This Row],[Порция]]>0,AVERAGE(INDEX(tblCUR[USD],tblWork[[#This Row],[Начало порции]]):INDEX(tblCUR[USD],tblWork[[#This Row],[Конец порции]])),""),NA()) -> 27.7351
H200: 198 | I200: =IF(tblWork[[#This Row],[Строка]]<=rngWindowNums,tblWork[[#This Row],[Строка]],) -> 198 | J200: =IF(tblWork[[#This Row],[Порция]]>0,1+(tblWork[[#This Row],[Порция]]-1)*rngPortionSize,"") -> 986 | K200: =IF(tblWork[[#This Row],[Порция]]>0,tblWork[[#This Row],[Начало порции]]+rngPortionSize-1,"") -> 990 | L200: =IF(tblWork[[#This Row],[Порция]]>0,INDEX(tblCUR[],tblWork[[#This Row],[Начало порции]],1),"") -> 2008-12-19 | M200: =IF(rngEnabledEUR,IF(tblWork[[#This Row],[Порция]]>0,AVERAGE(INDEX(tblCUR[EUR],tblWork[[#This Row],[Начало порции]]):INDEX(tblCUR[EUR],tblWork[[#This Row],[Конец порции]])),""),NA()) -> 39.7353 | N200: =IF(rngEnabledGBP,IF(tblWork[[#This Row],[Порция]]>0,AVERAGE(INDEX(tblCUR[GBP],tblWork[[#This Row],[Начало порции]]):INDEX(tblCUR[GBP],tblWork[[#This Row],[Конец порции]])),""),NA()) -> 42.18596 | O200: =IF(rngEnabledUSD,IF(tblWork[[#This Row],[Порция]]>0,AVERAGE(INDEX(tblCUR[USD],tblWork[[#This Row],[Начало порции]]):INDEX(tblCUR[USD],tblWork[[#This Row],[Конец порции]])),""),NA()) -> 28.11212
H201: 199 | I201: =IF(tblWork[[#This Row],[Строка]]<=rngWindowNums,tblWork[[#This Row],[Строка]],) -> 199 | J201: =IF(tblWork[[#This Row],[Порция]]>0,1+(tblWork[[#This Row],[Порция]]-1)*rngPortionSize,"") -> 991 | K201: =IF(tblWork[[#This Row],[Порция]]>0,tblWork[[#This Row],[Начало порции]]+rngPortionSize-1,"") -> 995 | L201: =IF(tblWork[[#This Row],[Порция]]>0,INDEX(tblCUR[],tblWork[[#This Row],[Начало порции]],1),"") -> 2008-12-26 | M201: =IF(rngEnabledEUR,IF(tblWork[[#This Row],[Порция]]>0,AVERAGE(INDEX(tblCUR[EUR],tblWork[[#This Row],[Начало порции]]):INDEX(tblCUR[EUR],tblWork[[#This Row],[Конец порции]])),""),NA()) -> 41.09438 | N201: =IF(rngEnabledGBP,IF(tblWork[[#This Row],[Порция]]>0,AVERAGE(INDEX(tblCUR[GBP],tblWork[[#This Row],[Начало порции]]):INDEX(tblCUR[GBP],tblWork[[#This Row],[Конец порции]])),""),NA()) -> 42.65676 | O201: =IF(rngEnabledUSD,IF(tblWork[[#This Row],[Порция]]>0,AVERAGE(INDEX(tblCUR[USD],tblWork[[#This Row],[Начало порции]]):INDEX(tblCUR[USD],tblWork[[#This Row],[Конец порции]])),""),NA()) -> 29.13626
... 2312 more rows

Sheet Chart
